Workbook

Sheet Shop Briefing
A1: RMV | D1: =TODAY() -> 2025-10-09 | I1: LY SEP MTD | K1: 2800864
A2: 本月 | B2: 生意 | D2: ATV | F2: UPT | H2: 單數 | J2: 件数 | L2: 人流 | N2: 轉化率
C3: VS+/-%
A4: 昨天生意 | B4: 71879 | C4: =SUM(B4/B5)-1 -> -12% | D4: =SUM(B4/H4) -> 2479 | F4: =SUM(J4/H4) -> 3.1 | H4: 29 | J4: 90 | L4: 348 | N4: =SUM(H4/L4)*100% -> 8%
A5: 去年同期 | B5: 81985
A6: 本月累计 | B6: 694105 | C6: =B6/K1-1 -> -75% | D6: =SUM(B6/H6) -> 2533 | F6: =SUM(J6/H6) -> 3.7 | H6: 274 | J6: 1016
A8: 當天 | B8: Promotion
B9: 項目 | F9: 單價 | H9: 單數 | J9: 銷售占比
B10: 6000-1200 | F10: 11961 | H10: 2 | J10: =F10/B4 -> 17%
B11: 3件85折 | F11: 11395 | H11: 4 | J11: =F11/B4 -> 16%
B12: 10000-2000 | F12: 17560 | H12: 2 | J12: =F12/B4 -> 24%
B13: 2件88折 | F13: 9755 | H13: 4 | J13: =F13/B4 -> 14%
J14: =F14/B4 -> 0%
J15: =F15/B4 -> 0%
J16: =F16/B4 -> 0%
A18: 當天 | B18: 系列/品類 | F18: 銷售金額 | H18: 件數 | J18: 銷售占比
B19: FILA ORIGINALE | F19: =SUMIFS('Sales receipt((當天)'!K:K,'Sales receipt((當天)'!B:B,'Sales receipt((當天)'!B4,'Sales receipt((當天)'!G:G,'Sales receipt((當天)'!G6) -> 9831 | H19: =SUMIFS('Sales receipt((當天)'!J:J,'Sales receipt((當天)'!B:B,'Sales receipt((當天)'!B4,'Sales receipt((當天)'!G:G,'Sales receipt((當天)'!G6) -> 10 | J19: =F19/F30 -> 22%
B20: HERITAGE | F20: =SUMIFS('Sales receipt((當天)'!K:K,'Sales receipt((當天)'!B:B,'Sales receipt((當天)'!B4,'Sales receipt((當天)'!G:G,'Sales receipt((當天)'!G9) -> 8208 | H20: =SUMIFS('Sales receipt((當天)'!J:J,'Sales receipt((當天)'!B:B,'Sales receipt((當天)'!B4,'Sales receipt((當天)'!G:G,'Sales receipt((當天)'!G9) -> 9 | J20: =F20/F30 -> 19%
B21: WHITE | F21: =SUMIFS('Sales receipt((當天)'!K:K,'Sales receipt((當天)'!B:B,'Sales receipt((當天)'!B4,'Sales receipt((當天)'!G:G,'Sales receipt((當天)'!G17) -> 7046 | H21: =SUMIFS('Sales receipt((當天)'!J:J,'Sales receipt((當天)'!B:B,'Sales receipt((當天)'!B4,'Sales receipt((當天)'!G:G,'Sales receipt((當天)'!G17) -> 6 | J21: =F21/F30 -> 16%
B22: BLUE | F22: =SUMIFS('Sales receipt((當天)'!K:K,'Sales receipt((當天)'!B:B,'Sales receipt((當天)'!B4,'Sales receipt((當天)'!G:G,'Sales receipt((當天)'!G3) -> 2331 | H22: =SUMIFS('Sales receipt((當天)'!J:J,'Sales receipt((當天)'!B:B,'Sales receipt((當天)'!B4,'Sales receipt((當天)'!G:G,'Sales receipt((當天)'!G3) -> 1 | J22: =F22/F30 -> 5%
B23: FITNESS | F23: =SUMIFS('Sales receipt((當天)'!K:K,'Sales receipt((當天)'!B:B,'Sales receipt((當天)'!B4,'Sales receipt((當天)'!G:G,'Sales receipt((當天)'!G7) -> 1549 | H23: =SUMIFS('Sales receipt((當天)'!J:J,'Sales receipt((當天)'!B:B,'Sales receipt((當天)'!B4,'Sales receipt((當天)'!G:G,'Sales receipt((當天)'!G7) -> 2 | J23: =F23/F30 -> 4%
B24: A.P. | F24: =SUMIFS('Sales receipt((當天)'!K:K,'Sales receipt((當天)'!B:B,'Sales receipt((當天)'!B4,'Sales receipt((當天)'!G:G,'Sales receipt((當天)'!G2) -> 969 | H24: =SUMIFS('Sales receipt((當天)'!J:J,'Sales receipt((當天)'!B:B,'Sales receipt((當天)'!B4,'Sales receipt((當天)'!G:G,'Sales receipt((當天)'!G2) -> 1 | J24: =F24/F30 -> 2%
B25: GOLF | F25: =SUMIFS('Sales receipt((當天)'!K:K,'Sales receipt((當天)'!B:B,'Sales receipt((當天)'!B4,'Sales receipt((當天)'!G:G,'Sales receipt((當天)'!G8) -> 11217 | H25: =SUMIFS('Sales receipt((當天)'!J:J,'Sales receipt((當天)'!B:B,'Sales receipt((當天)'!B4,'Sales receipt((當天)'!G:G,'Sales receipt((當天)'!G8) -> 7 | J25: =F25/F30 -> 26%
B26: EXPLORE | F26: =SUMIFS('Sales receipt((當天)'!K:K,'Sales receipt((當天)'!B:B,'Sales receipt((當天)'!B4,'Sales receipt((當天)'!G:G,'Sales receipt((當天)'!G4) -> 6647 | H26: =SUMIFS('Sales receipt((當天)'!J:J,'Sales receipt((當天)'!B:B,'Sales receipt((當天)'!B4,'Sales receipt((當天)'!G:G,'Sales receipt((當天)'!G4) -> 2 | J26: =F26/F30 -> 15%
B27: TENNIS | F27: =SUMIFS('Sales receipt((當天)'!K:K,'Sales receipt((當天)'!B:B,'Sales receipt((當天)'!B4,'Sales receipt((當天)'!G:G,'Sales receipt((當天)'!G16) -> 0 | H27: =SUMIFS('Sales receipt((當天)'!J:J,'Sales receipt((當天)'!B:B,'Sales receipt((當天)'!B4,'Sales receipt((當天)'!G:G,'Sales receipt((當天)'!G16) -> 0 | J27: =F27/F30 -> 0%
A28: 服裝 | B28: 男 | F28: =SUMIFS('Sales receipt((當天)'!K:K,'Sales receipt((當天)'!B:B,'Sales receipt((當天)'!B4,'Sales receipt((當天)'!H:H,'Sales receipt((當天)'!H3) -> 26510 | H28: =SUMIFS('Sales receipt((當天)'!J:J,'Sales receipt((當天)'!B:B,'Sales receipt((當天)'!B4,'Sales receipt((當天)'!H:H,'Sales receipt((當天)'!H3) -> 21 | J28: =F28/F30 -> 60%
B29: 女 | F29: =SUMIFS('Sales receipt((當天)'!K:K,'Sales receipt((當天)'!B:B,'Sales receipt((當天)'!B4,'Sales receipt((當天)'!H:H,'Sales receipt((當天)'!H2) -> 17454 | H29: =SUMIFS('Sales receipt((當天)'!J:J,'Sales receipt((當天)'!B:B,'Sales receipt((當天)'!B4,'Sales receipt((當天)'!H:H,'Sales receipt((當天)'!H2) -> 16 | J29: =F29/F30 -> 40%
B30: Total | F30: =SUM(F28:G29) -> 43964 | H30: =SUM(H28:I29) -> 37 | J30: =F30/B4 -> 61%
A31: 鞋 | F31: =SUMIFS('Sales receipt((當天)'!K:K,'Sales receipt((當天)'!B:B,'Sales receipt((當天)'!B6) -> 19109 | H31: =SUMIFS('Sales receipt((當天)'!J:J,'Sales receipt((當天)'!B:B,'Sales receipt((當天)'!B6) -> 22 | J31: =F31/B4 -> 27%
A32: 配件 | F32: =SUMIFS('Sales receipt((當天)'!K:K,'Sales receipt((當天)'!B:B,'Sales receipt((當天)'!B5) -> 1789 | H32: =SUMIFS('Sales receipt((當天)'!J:J,'Sales receipt((當天)'!B:B,'Sales receipt((當天)'!B5) -> 8 | J32: =F32/B4 -> 2%
A34: 姓名 | C34: 生意
C35: 當天目標 | E35: 實際 | G35: 月累計 | I35: 单数 | K35: 件数 | M35: ATV | O35: UPT
A36: M0989 Susanna | C36: 19975 | E36: 10358 | G36: 109293 | I36: 7 | K36: 16 | M36: =SUM(E36/I36) -> 1480 | O36: =SUM(K36/I36) -> 2.3
A37: M1436 Khaki | C37: NBA | E37: 3005 | G37: 94009 | I37: 2 | K37: 4 | M37: =SUM(E37/I37) -> 1503 | O37: =SUM(K37/I37) -> 2.0
A38: M2172 Janet | C38: 19975 | E38: 14740 | G38: 117275 | I38: 5 | K38: 21 | M38: 2948 | O38: =SUM(K38/I38) -> 4.2
A39: M2801 Fanny | C39: RO | G39: 135823
A40: M2798 Ryan | C40: 19975 | E40: 18315 | G40: 125020 | I40: 6 | K40: 16 | M40: =SUM(E40/I40) -> 3053 | O40: 2.7
A41: M2902 Carmen | C41: 19975 | E41: 25461 | G41: 112685 | I41: 9 | K41: 33 | M41: 2829 | O41: 3.7
B45: M0989 Susanna | D45: M2172 Janet | F45: M2801 Fanny | H45: M2798 Ryan | J45: M2902 Carmen | N45: M1436 Khaki
B46: Sales | C46: Qty | D46: Sales | E46: Qty | F46: Sales | G46: Qty | H46: Sales | I46: Qty | J46: Sales | K46: Qty | L46: Sales | M46: Qty | N46: Sales | O46: Qty
A47: ORIGINALE | B47: =SUMIFS('Sales receipt((當天)'!K:K,'Sales receipt((當天)'!A:A,'Sales receipt((當天)'!A2,'Sales receipt((當天)'!B:B,'Sales receipt((當天)'!B4,'Sales receipt((當天)'!G:G,'Sales receipt((當天)'!G6) -> 1003 | C47: =SUMIFS('Sales receipt((當天)'!J:J,'Sales receipt((當天)'!A:A,'Sales receipt((當天)'!A2,'Sales receipt((當天)'!B:B,'Sales receipt((當天)'!B4,'Sales receipt((當天)'!G:G,'Sales receipt((當天)'!G6) -> 1 | D47: =SUMIFS('Sales receipt((當天)'!K:K,'Sales receipt((當天)'!A:A,'Sales receipt((當天)'!A3,'Sales receipt((當天)'!B:B,'Sales receipt((當天)'!B4,'Sales receipt((當天)'!G:G,'Sales receipt((當天)'!G6) -> 2414 | E47: =SUMIFS('Sales receipt((當天)'!J:J,'Sales receipt((當天)'!A:A,'Sales receipt((當天)'!A3,'Sales receipt((當天)'!B:B,'Sales receipt((當天)'!B4,'Sales receipt((當天)'!G:G,'Sales receipt((當天)'!G6) -> 3 | F47: =SUMIFS('Sales receipt((當天)'!K:K,'Sales receipt((當天)'!A:A,'Sales receipt((當天)'!A7,'Sales receipt((當天)'!B:B,'Sales receipt((當天)'!B4,'Sales receipt((當天)'!G:G,'Sales receipt((當天)'!G6) -> 0 | G47: =SUMIFS('Sales receipt((當天)'!J:J,'Sales receipt((當天)'!A:A,'Sales receipt((當天)'!A7,'Sales receipt((當天)'!B:B,'Sales receipt((當天)'!B4,'Sales receipt((當天)'!G:G,'Sales receipt((當天)'!G6) -> 0 | H47: =SUMIFS('Sales receipt((當天)'!K:K,'Sales receipt((當天)'!A:A,'Sales receipt((當天)'!A6,'Sales receipt((當天)'!B:B,'Sales receipt((當天)'!B4,'Sales receipt((當天)'!G:G,'Sales receipt((當天)'!G6) -> 1428 | I47: =SUMIFS('Sales receipt((當天)'!J:J,'Sales receipt((當天)'!A:A,'Sales receipt((當天)'!A6,'Sales receipt((當天)'!B:B,'Sales receipt((當天)'!B4,'Sales receipt((當天)'!G:G,'Sales receipt((當天)'!G6) -> 2 | J47: =SUMIFS('Sales receipt((當天)'!K:K,'Sales receipt((當天)'!A:A,'Sales receipt((當天)'!A8,'Sales receipt((當天)'!B:B,'Sales receipt((當天)'!B4,'Sales receipt((當天)'!G:G,'Sales receipt((當天)'!G6) -> 4986 | K47: =SUMIFS('Sales receipt((當天)'!J:J,'Sales receipt((當天)'!A:A,'Sales receipt((當天)'!A8,'Sales receipt((當天)'!B:B,'Sales receipt((當天)'!B4,'Sales receipt((當天)'!G:G,'Sales receipt((當天)'!G6) -> 4 | L47: =SUMIFS('Sales receipt((當天)'!K:K,'Sales receipt((當天)'!A:A,'Sales receipt((當天)'!A4,'Sales receipt((當天)'!B:B,'Sales receipt((當天)'!B4,'Sales receipt((當天)'!G:G,'Sales receipt((當天)'!G6) -> 0 | M47: =SUMIFS('Sales receipt((當天)'!J:J,'Sales receipt((當天)'!A:A,'Sales receipt((當天)'!A4,'Sales receipt((當天)'!B:B,'Sales receipt((當天)'!B4,'Sales receipt((當天)'!G:G,'Sales receipt((當天)'!G6) -> 0 | N47: =SUMIFS('Sales receipt((當天)'!K:K,'Sales receipt((當天)'!A:A,'Sales receipt((當天)'!A5,'Sales receipt((當天)'!B:B,'Sales receipt((當天)'!B4,'Sales receipt((當天)'!G:G,'Sales receipt((當天)'!G6) -> 0 | O47: =SUMIFS('Sales receipt((當天)'!J:J,'Sales receipt((當天)'!A:A,'Sales receipt((當天)'!A5,'Sales receipt((當天)'!B:B,'Sales receipt((當天)'!B4,'Sales receipt((當天)'!G:G,'Sales receipt((當天)'!G6) -> 0
A48: HERITAGE | B48: =SUMIFS('Sales receipt((當天)'!K:K,'Sales receipt((當天)'!A:A,'Sales receipt((當天)'!A2,'Sales receipt((當天)'!B:B,'Sales receipt((當天)'!B4,'Sales receipt((當天)'!G:G,'Sales receipt((當天)'!G9) -> 2781 | C48: =SUMIFS('Sales receipt((當天)'!J:J,'Sales receipt((當天)'!A:A,'Sales receipt((當天)'!A2,'Sales receipt((當天)'!B:B,'Sales receipt((當天)'!B4,'Sales receipt((當天)'!G:G,'Sales receipt((當天)'!G9) -> 2 | D48: =SUMIFS('Sales receipt((當天)'!K:K,'Sales receipt((當天)'!A:A,'Sales receipt((當天)'!A3,'Sales receipt((當天)'!B:B,'Sales receipt((當天)'!B4,'Sales receipt((當天)'!G:G,'Sales receipt((當天)'!G9) -> 493 | E48: =SUMIFS('Sales receipt((當天)'!J:J,'Sales receipt((當天)'!A:A,'Sales receipt((當天)'!A3,'Sales receipt((當天)'!B:B,'Sales receipt((當天)'!B4,'Sales receipt((當天)'!G:G,'Sales receipt((當天)'!G9) -> 1 | F48: =SUMIFS('Sales receipt((當天)'!K:K,'Sales receipt((當天)'!A:A,'Sales receipt((當天)'!A7,'Sales receipt((當天)'!B:B,'Sales receipt((當天)'!B4,'Sales receipt((當天)'!G:G,'Sales receipt((當天)'!G9) -> 0 | G48: =SUMIFS('Sales receipt((當天)'!J:J,'Sales receipt((當天)'!A:A,'Sales receipt((當天)'!A7,'Sales receipt((當天)'!B:B,'Sales receipt((當天)'!B4,'Sales receipt((當天)'!G:G,'Sales receipt((當天)'!G9) -> 0 | H48: =SUMIFS('Sales receipt((當天)'!K:K,'Sales receipt((當天)'!A:A,'Sales receipt((當天)'!A6,'Sales receipt((當天)'!B:B,'Sales receipt((當天)'!B4,'Sales receipt((當天)'!G:G,'Sales receipt((當天)'!G9) -> 2308 | I48: =SUMIFS('Sales receipt((當天)'!J:J,'Sales receipt((當天)'!A:A,'Sales receipt((當天)'!A6,'Sales receipt((當天)'!B:B,'Sales receipt((當天)'!B4,'Sales receipt((當天)'!G:G,'Sales receipt((當天)'!G9) -> 3 | J48: =SUMIFS('Sales receipt((當天)'!K:K,'Sales receipt((當天)'!A:A,'Sales receipt((當天)'!A8,'Sales receipt((當天)'!B:B,'Sales receipt((當天)'!B4,'Sales receipt((當天)'!G:G,'Sales receipt((當天)'!G9) -> 1368 | K48: =SUMIFS('Sales receipt((當天)'!J:J,'Sales receipt((當天)'!A:A,'Sales receipt((當天)'!A8,'Sales receipt((當天)'!B:B,'Sales receipt((當天)'!B4,'Sales receipt((當天)'!G:G,'Sales receipt((當天)'!G9) -> 2 | L48: =SUMIFS('Sales receipt((當天)'!K:K,'Sales receipt((當天)'!A:A,'Sales receipt((當天)'!A4,'Sales receipt((當天)'!B:B,'Sales receipt((當天)'!B4,'Sales receipt((當天)'!G:G,'Sales receipt((當天)'!G9) -> 0 | M48: =SUMIFS('Sales receipt((當天)'!J:J,'Sales receipt((當天)'!A:A,'Sales receipt((當天)'!A4,'Sales receipt((當天)'!B:B,'Sales receipt((當天)'!B4,'Sales receipt((當天)'!G:G,'Sales receipt((當天)'!G9) -> 0 | N48: =SUMIFS('Sales receipt((當天)'!K:K,'Sales receipt((當天)'!A:A,'Sales receipt((當天)'!A5,'Sales receipt((當天)'!B:B,'Sales receipt((當天)'!B4,'Sales receipt((當天)'!G:G,'Sales receipt((當天)'!G9) -> 1258 | O48: =SUMIFS('Sales receipt((當天)'!J:J,'Sales receipt((當天)'!A:A,'Sales receipt((當天)'!A5,'Sales receipt((當天)'!B:B,'Sales receipt((當天)'!B4,'Sales receipt((當天)'!G:G,'Sales receipt((當天)'!G9) -> 1
A49: WHITE | B49: =SUMIFS('Sales receipt((當天)'!K:K,'Sales receipt((當天)'!A:A,'Sales receipt((當天)'!A2,'Sales receipt((當天)'!B:B,'Sales receipt((當天)'!B4,'Sales receipt((當天)'!G:G,'Sales receipt((當天)'!G17) -> 2359 | C49: =SUMIFS('Sales receipt((當天)'!J:J,'Sales receipt((當天)'!A:A,'Sales receipt((當天)'!A2,'Sales receipt((當天)'!B:B,'Sales receipt((當天)'!B4,'Sales receipt((當天)'!G:G,'Sales receipt((當天)'!G17) -> 2 | D49: =SUMIFS('Sales receipt((當天)'!K:K,'Sales receipt((當天)'!A:A,'Sales receipt((當天)'!A3,'Sales receipt((當天)'!B:B,'Sales receipt((當天)'!B4,'Sales receipt((當天)'!G:G,'Sales receipt((當天)'!G17) -> 0 | E49: =SUMIFS('Sales receipt((當天)'!J:J,'Sales receipt((當天)'!A:A,'Sales receipt((當天)'!A3,'Sales receipt((當天)'!B:B,'Sales receipt((當天)'!B4,'Sales receipt((當天)'!G:G,'Sales receipt((當天)'!G17) -> 0 | F49: =SUMIFS('Sales receipt((當天)'!K:K,'Sales receipt((當天)'!A:A,'Sales receipt((當天)'!A7,'Sales receipt((當天)'!B:B,'Sales receipt((當天)'!B4,'Sales receipt((當天)'!G:G,'Sales receipt((當天)'!G17) -> 0 | G49: =SUMIFS('Sales receipt((當天)'!J:J,'Sales receipt((當天)'!A:A,'Sales receipt((當天)'!A7,'Sales receipt((當天)'!B:B,'Sales receipt((當天)'!B4,'Sales receipt((當天)'!G:G,'Sales receipt((當天)'!G17) -> 0 | H49: =SUMIFS('Sales receipt((當天)'!K:K,'Sales receipt((當天)'!A:A,'Sales receipt((當天)'!A6,'Sales receipt((當天)'!B:B,'Sales receipt((當天)'!B4,'Sales receipt((當天)'!G:G,'Sales receipt((當天)'!G17) -> 2474 | I49: =SUMIFS('Sales receipt((當天)'!J:J,'Sales receipt((當天)'!A:A,'Sales receipt((當天)'!A6,'Sales receipt((當天)'!B:B,'Sales receipt((當天)'!B4,'Sales receipt((當天)'!G:G,'Sales receipt((當天)'!G17) -> 2 | J49: =SUMIFS('Sales receipt((當天)'!K:K,'Sales receipt((當天)'!A:A,'Sales receipt((當天)'!A8,'Sales receipt((當天)'!B:B,'Sales receipt((當天)'!B4,'Sales receipt((當天)'!G:G,'Sales receipt((當天)'!G17) -> 2213 | K49: =SUMIFS('Sales receipt((當天)'!J:J,'Sales receipt((當天)'!A:A,'Sales receipt((當天)'!A8,'Sales receipt((當天)'!B:B,'Sales receipt((當天)'!B4,'Sales receipt((當天)'!G:G,'Sales receipt((當天)'!G17) -> 2 | L49: =SUMIFS('Sales receipt((當天)'!K:K,'Sales receipt((當天)'!A:A,'Sales receipt((當天)'!A4,'Sales receipt((當天)'!B:B,'Sales receipt((當天)'!B4,'Sales receipt((當天)'!G:G,'Sales receipt((當天)'!G17) -> 0 | M49: =SUMIFS('Sales receipt((當天)'!J:J,'Sales receipt((當天)'!A:A,'Sales receipt((當天)'!A4,'Sales receipt((當天)'!B:B,'Sales receipt((當天)'!B4,'Sales receipt((當天)'!G:G,'Sales receipt((當天)'!G17) -> 0 | N49: =SUMIFS('Sales receipt((當天)'!K:K,'Sales receipt((當天)'!A:A,'Sales receipt((當天)'!A5,'Sales receipt((當天)'!B:B,'Sales receipt((當天)'!B4,'Sales receipt((當天)'!G:G,'Sales receipt((當天)'!G17) -> 0 | O49: =SUMIFS('Sales receipt((當天)'!J:J,'Sales receipt((當天)'!A:A,'Sales receipt((當天)'!A5,'Sales receipt((當天)'!B:B,'Sales receipt((當天)'!B4,'Sales receipt((當天)'!G:G,'Sales receipt((當天)'!G17) -> 0
A50: BLUE | B50: =SUMIFS('Sales receipt((當天)'!K:K,'Sales receipt((當天)'!A:A,'Sales receipt((當天)'!A2,'Sales receipt((當天)'!B:B,'Sales receipt((當天)'!B4,'Sales receipt((當天)'!G:G,'Sales receipt((當天)'!G3) -> 0 | C50: =SUMIFS('Sales receipt((當天)'!J:J,'Sales receipt((當天)'!A:A,'Sales receipt((當天)'!A2,'Sales receipt((當天)'!B:B,'Sales receipt((當天)'!B4,'Sales receipt((當天)'!G:G,'Sales receipt((當天)'!G3) -> 0 | D50: =SUMIFS('Sales receipt((當天)'!K:K,'Sales receipt((當天)'!A:A,'Sales receipt((當天)'!A3,'Sales receipt((當天)'!B:B,'Sales receipt((當天)'!B4,'Sales receipt((當天)'!G:G,'Sales receipt((當天)'!G3) -> 0 | E50: =SUMIFS('Sales receipt((當天)'!J:J,'Sales receipt((當天)'!A:A,'Sales receipt((當天)'!A3,'Sales receipt((當天)'!B:B,'Sales receipt((當天)'!B4,'Sales receipt((當天)'!G:G,'Sales receipt((當天)'!G3) -> 0 | F50: =SUMIFS('Sales receipt((當天)'!K:K,'Sales receipt((當天)'!A:A,'Sales receipt((當天)'!A7,'Sales receipt((當天)'!B:B,'Sales receipt((當天)'!B4,'Sales receipt((當天)'!G:G,'Sales receipt((當天)'!G3) -> 0 | G50: =SUMIFS('Sales receipt((當天)'!J:J,'Sales receipt((當天)'!A:A,'Sales receipt((當天)'!A7,'Sales receipt((當天)'!B:B,'Sales receipt((當天)'!B4,'Sales receipt((當天)'!G:G,'Sales receipt((當天)'!G3) -> 0 | H50: =SUMIFS('Sales receipt((當天)'!K:K,'Sales receipt((當天)'!A:A,'Sales receipt((當天)'!A6,'Sales receipt((當天)'!B:B,'Sales receipt((當天)'!B4,'Sales receipt((當天)'!G:G,'Sales receipt((當天)'!G3) -> 2331 | I50: =SUMIFS('Sales receipt((當天)'!J:J,'Sales receipt((當天)'!A:A,'Sales receipt((當天)'!A6,'Sales receipt((當天)'!B:B,'Sales receipt((當天)'!B4,'Sales receipt((當天)'!G:G,'Sales receipt((當天)'!G3) -> 1 | J50: =SUMIFS('Sales receipt((當天)'!K:K,'Sales receipt((當天)'!A:A,'Sales receipt((當天)'!A8,'Sales receipt((當天)'!B:B,'Sales receipt((當天)'!B4,'Sales receipt((當天)'!G:G,'Sales receipt((當天)'!G3) -> 0 | K50: =SUMIFS('Sales receipt((當天)'!J:J,'Sales receipt((當天)'!A:A,'Sales receipt((當天)'!A8,'Sales receipt((當天)'!B:B,'Sales receipt((當天)'!B4,'Sales receipt((當天)'!G:G,'Sales receipt((當天)'!G3) -> 0 | L50: =SUMIFS('Sales receipt((當天)'!K:K,'Sales receipt((當天)'!A:A,'Sales receipt((當天)'!A4,'Sales receipt((當天)'!B:B,'Sales receipt((當天)'!B4,'Sales receipt((當天)'!G:G,'Sales receipt((當天)'!G3) -> 0 | M50: =SUMIFS('Sales receipt((當天)'!J:J,'Sales receipt((當天)'!A:A,'Sales receipt((當天)'!A4,'Sales receipt((當天)'!B:B,'Sales receipt((當天)'!B4,'Sales receipt((當天)'!G:G,'Sales receipt((當天)'!G3) -> 0 | N50: =SUMIFS('Sales receipt((當天)'!K:K,'Sales receipt((當天)'!A:A,'Sales receipt((當天)'!A5,'Sales receipt((當天)'!B:B,'Sales receipt((當天)'!B4,'Sales receipt((當天)'!G:G,'Sales receipt((當天)'!G3) -> 0 | O50: =SUMIFS('Sales receipt((當天)'!J:J,'Sales receipt((當天)'!A:A,'Sales receipt((當天)'!A5,'Sales receipt((當天)'!B:B,'Sales receipt((當天)'!B4,'Sales receipt((當天)'!G:G,'Sales receipt((當天)'!G3) -> 0
A51: FITNESS | B51: =SUMIFS('Sales receipt((當天)'!K:K,'Sales receipt((當天)'!A:A,'Sales receipt((當天)'!A2,'Sales receipt((當天)'!B:B,'Sales receipt((當天)'!B4,'Sales receipt((當天)'!G:G,'Sales receipt((當天)'!G7) -> 0 | C51: =SUMIFS('Sales receipt((當天)'!J:J,'Sales receipt((當天)'!A:A,'Sales receipt((當天)'!A2,'Sales receipt((當天)'!B:B,'Sales receipt((當天)'!B4,'Sales receipt((當天)'!G:G,'Sales receipt((當天)'!G7) -> 0 | D51: =SUMIFS('Sales receipt((當天)'!K:K,'Sales receipt((當天)'!A:A,'Sales receipt((當天)'!A3,'Sales receipt((當天)'!B:B,'Sales receipt((當天)'!B4,'Sales receipt((當天)'!G:G,'Sales receipt((當天)'!G7) -> 721 | E51: =SUMIFS('Sales receipt((當天)'!J:J,'Sales receipt((當天)'!A:A,'Sales receipt((當天)'!A3,'Sales receipt((當天)'!B:B,'Sales receipt((當天)'!B4,'Sales receipt((當天)'!G:G,'Sales receipt((當天)'!G7) -> 1 | F51: =SUMIFS('Sales receipt((當天)'!K:K,'Sales receipt((當天)'!A:A,'Sales receipt((當天)'!A7,'Sales receipt((當天)'!B:B,'Sales receipt((當天)'!B4,'Sales receipt((當天)'!G:G,'Sales receipt((當天)'!G7) -> 0 | G51: =SUMIFS('Sales receipt((當天)'!J:J,'Sales receipt((當天)'!A:A,'Sales receipt((當天)'!A7,'Sales receipt((當天)'!B:B,'Sales receipt((當天)'!B4,'Sales receipt((當天)'!G:G,'Sales receipt((當天)'!G7) -> 0 | H51: =SUMIFS('Sales receipt((當天)'!K:K,'Sales receipt((當天)'!A:A,'Sales receipt((當天)'!A6,'Sales receipt((當天)'!B:B,'Sales receipt((當天)'!B4,'Sales receipt((當天)'!G:G,'Sales receipt((當天)'!G7) -> 828 | I51: =SUMIFS('Sales receipt((當天)'!J:J,'Sales receipt((當天)'!A:A,'Sales receipt((當天)'!A6,'Sales receipt((當天)'!B:B,'Sales receipt((當天)'!B4,'Sales receipt((當天)'!G:G,'Sales receipt((當天)'!G7) -> 1 | J51: =SUMIFS('Sales receipt((當天)'!K:K,'Sales receipt((當天)'!A:A,'Sales receipt((當天)'!A8,'Sales receipt((當天)'!B:B,'Sales receipt((當天)'!B4,'Sales receipt((當天)'!G:G,'Sales receipt((當天)'!G7) -> 0 | K51: =SUMIFS('Sales receipt((當天)'!J:J,'Sales receipt((當天)'!A:A,'Sales receipt((當天)'!A8,'Sales receipt((當天)'!B:B,'Sales receipt((當天)'!B4,'Sales receipt((當天)'!G:G,'Sales receipt((當天)'!G7) -> 0 | L51: =SUMIFS('Sales receipt((當天)'!K:K,'Sales receipt((當天)'!A:A,'Sales receipt((當天)'!A4,'Sales receipt((當天)'!B:B,'Sales receipt((當天)'!B4,'Sales receipt((當天)'!G:G,'Sales receipt((當天)'!G7) -> 0 | M51: =SUMIFS('Sales receipt((當天)'!J:J,'Sales receipt((當天)'!A:A,'Sales receipt((當天)'!A4,'Sales receipt((當天)'!B:B,'Sales receipt((當天)'!B4,'Sales receipt((當天)'!G:G,'Sales receipt((當天)'!G7) -> 0 | N51: =SUMIFS('Sales receipt((當天)'!K:K,'Sales receipt((當天)'!A:A,'Sales receipt((當天)'!A5,'Sales receipt((當天)'!B:B,'Sales receipt((當天)'!B4,'Sales receipt((當天)'!G:G,'Sales receipt((當天)'!G7) -> 0 | O51: =SUMIFS('Sales receipt((當天)'!J:J,'Sales receipt((當天)'!A:A,'Sales receipt((當天)'!A5,'Sales receipt((當天)'!B:B,'Sales receipt((當天)'!B4,'Sales receipt((當天)'!G:G,'Sales receipt((當天)'!G7) -> 0
A52: A.P. | B52: =SUMIFS('Sales receipt((當天)'!K:K,'Sales receipt((當天)'!A:A,'Sales receipt((當天)'!A2,'Sales receipt((當天)'!B:B,'Sales receipt((當天)'!B4,'Sales receipt((當天)'!G:G,'Sales receipt((當天)'!G2) -> 0 | C52: =SUMIFS('Sales receipt((當天)'!J:J,'Sales receipt((當天)'!A:A,'Sales receipt((當天)'!A2,'Sales receipt((當天)'!B:B,'Sales receipt((當天)'!B4,'Sales receipt((當天)'!G:G,'Sales receipt((當天)'!G2) -> 0 | D52: =SUMIFS('Sales receipt((當天)'!K:K,'Sales receipt((當天)'!A:A,'Sales receipt((當天)'!A3,'Sales receipt((當天)'!B:B,'Sales receipt((當天)'!B4,'Sales receipt((當天)'!G:G,'Sales receipt((當天)'!G2) -> 0 | E52: =SUMIFS('Sales receipt((當天)'!J:J,'Sales receipt((當天)'!A:A,'Sales receipt((當天)'!A3,'Sales receipt((當天)'!B:B,'Sales receipt((當天)'!B4,'Sales receipt((當天)'!G:G,'Sales receipt((當天)'!G2) -> 0 | F52: =SUMIFS('Sales receipt((當天)'!K:K,'Sales receipt((當天)'!A:A,'Sales receipt((當天)'!A7,'Sales receipt((當天)'!B:B,'Sales receipt((當天)'!B4,'Sales receipt((當天)'!G:G,'Sales receipt((當天)'!G2) -> 0 | G52: =SUMIFS('Sales receipt((當天)'!J:J,'Sales receipt((當天)'!A:A,'Sales receipt((當天)'!A7,'Sales receipt((當天)'!B:B,'Sales receipt((當天)'!B4,'Sales receipt((當天)'!G:G,'Sales receipt((當天)'!G2) -> 0 | H52: =SUMIFS('Sales receipt((當天)'!K:K,'Sales receipt((當天)'!A:A,'Sales receipt((當天)'!A6,'Sales receipt((當天)'!B:B,'Sales receipt((當天)'!B4,'Sales receipt((當天)'!G:G,'Sales receipt((當天)'!G2) -> 0 | I52: =SUMIFS('Sales receipt((當天)'!J:J,'Sales receipt((當天)'!A:A,'Sales receipt((當天)'!A6,'Sales receipt((當天)'!B:B,'Sales receipt((當天)'!B4,'Sales receipt((當天)'!G:G,'Sales receipt((當天)'!G2) -> 0 | J52: =SUMIFS('Sales receipt((當天)'!K:K,'Sales receipt((當天)'!A:A,'Sales receipt((當天)'!A8,'Sales receipt((當天)'!B:B,'Sales receipt((當天)'!B4,'Sales receipt((當天)'!G:G,'Sales receipt((當天)'!G2) -> 969 | K52: =SUMIFS('Sales receipt((當天)'!J:J,'Sales receipt((當天)'!A:A,'Sales receipt((當天)'!A8,'Sales receipt((當天)'!B:B,'Sales receipt((當天)'!B4,'Sales receipt((當天)'!G:G,'Sales receipt((當天)'!G2) -> 1 | L52: =SUMIFS('Sales receipt((當天)'!K:K,'Sales receipt((當天)'!A:A,'Sales receipt((當天)'!A4,'Sales receipt((當天)'!B:B,'Sales receipt((當天)'!B4,'Sales receipt((當天)'!G:G,'Sales receipt((當天)'!G2) -> 0 | M52: =SUMIFS('Sales receipt((當天)'!J:J,'Sales receipt((當天)'!A:A,'Sales receipt((當天)'!A4,'Sales receipt((當天)'!B:B,'Sales receipt((當天)'!B4,'Sales receipt((當天)'!G:G,'Sales receipt((當天)'!G2) -> 0 | N52: =SUMIFS('Sales receipt((當天)'!K:K,'Sales receipt((當天)'!A:A,'Sales receipt((當天)'!A5,'Sales receipt((當天)'!B:B,'Sales receipt((當天)'!B4,'Sales receipt((當天)'!G:G,'Sales receipt((當天)'!G2) -> 0 | O52: =SUMIFS('Sales receipt((當天)'!J:J,'Sales receipt((當天)'!A:A,'Sales receipt((當天)'!A5,'Sales receipt((當天)'!B:B,'Sales receipt((當天)'!B4,'Sales receipt((當天)'!G:G,'Sales receipt((當天)'!G2) -> 0
A53: GOLF | B53: =SUMIFS('Sales receipt((當天)'!K:K,'Sales receipt((當天)'!A:A,'Sales receipt((當天)'!A2,'Sales receipt((當天)'!B:B,'Sales receipt((當天)'!B4,'Sales receipt((當天)'!G:G,'Sales receipt((當天)'!G8) -> 0 | C53: =SUMIFS('Sales receipt((當天)'!J:J,'Sales receipt((當天)'!A:A,'Sales receipt((當天)'!A2,'Sales receipt((當天)'!B:B,'Sales receipt((當天)'!B4,'Sales receipt((當天)'!G:G,'Sales receipt((當天)'!G8) -> 0 | D53: =SUMIFS('Sales receipt((當天)'!K:K,'Sales receipt((當天)'!A:A,'Sales receipt((當天)'!A3,'Sales receipt((當天)'!B:B,'Sales receipt((當天)'!B4,'Sales receipt((當天)'!G:G,'Sales receipt((當天)'!G8) -> 1376 | E53: =SUMIFS('Sales receipt((當天)'!J:J,'Sales receipt((當天)'!A:A,'Sales receipt((當天)'!A3,'Sales receipt((當天)'!B:B,'Sales receipt((當天)'!B4,'Sales receipt((當天)'!G:G,'Sales receipt((當天)'!G8) -> 1 | F53: =SUMIFS('Sales receipt((當天)'!K:K,'Sales receipt((當天)'!A:A,'Sales receipt((當天)'!A7,'Sales receipt((當天)'!B:B,'Sales receipt((當天)'!B4,'Sales receipt((當天)'!G:G,'Sales receipt((當天)'!G8) -> 0 | G53: =SUMIFS('Sales receipt((當天)'!J:J,'Sales receipt((當天)'!A:A,'Sales receipt((當天)'!A7,'Sales receipt((當天)'!B:B,'Sales receipt((當天)'!B4,'Sales receipt((當天)'!G:G,'Sales receipt((當天)'!G8) -> 0 | H53: =SUMIFS('Sales receipt((當天)'!K:K,'Sales receipt((當天)'!A:A,'Sales receipt((當天)'!A6,'Sales receipt((當天)'!B:B,'Sales receipt((當天)'!B4,'Sales receipt((當天)'!G:G,'Sales receipt((當天)'!G8) -> 1360 | I53: =SUMIFS('Sales receipt((當天)'!J:J,'Sales receipt((當天)'!A:A,'Sales receipt((當天)'!A6,'Sales receipt((當天)'!B:B,'Sales receipt((當天)'!B4,'Sales receipt((當天)'!G:G,'Sales receipt((當天)'!G8) -> 1 | J53: =SUMIFS('Sales receipt((當天)'!K:K,'Sales receipt((當天)'!A:A,'Sales receipt((當天)'!A8,'Sales receipt((當天)'!B:B,'Sales receipt((當天)'!B4,'Sales receipt((當天)'!G:G,'Sales receipt((當天)'!G8) -> 8481 | K53: =SUMIFS('Sales receipt((當天)'!J:J,'Sales receipt((當天)'!A:A,'Sales receipt((當天)'!A8,'Sales receipt((當天)'!B:B,'Sales receipt((當天)'!B4,'Sales receipt((當天)'!G:G,'Sales receipt((當天)'!G8) -> 5 | L53: =SUMIFS('Sales receipt((當天)'!K:K,'Sales receipt((當天)'!A:A,'Sales receipt((當天)'!A4,'Sales receipt((當天)'!B:B,'Sales receipt((當天)'!B4,'Sales receipt((當天)'!G:G,'Sales receipt((當天)'!G8) -> 0 | M53: =SUMIFS('Sales receipt((當天)'!J:J,'Sales receipt((當天)'!A:A,'Sales receipt((當天)'!A4,'Sales receipt((當天)'!B:B,'Sales receipt((當天)'!B4,'Sales receipt((當天)'!G:G,'Sales receipt((當天)'!G8) -> 0 | N53: =SUMIFS('Sales receipt((當天)'!K:K,'Sales receipt((當天)'!A:A,'Sales receipt((當天)'!A5,'Sales receipt((當天)'!B:B,'Sales receipt((當天)'!B4,'Sales receipt((當天)'!G:G,'Sales receipt((當天)'!G8) -> 0 | O53: =SUMIFS('Sales receipt((當天)'!J:J,'Sales receipt((當天)'!A:A,'Sales receipt((當天)'!A5,'Sales receipt((當天)'!B:B,'Sales receipt((當天)'!B4,'Sales receipt((當天)'!G:G,'Sales receipt((當天)'!G8) -> 0
A54: EXPLORE | B54: =SUMIFS('Sales receipt((當天)'!K:K,'Sales receipt((當天)'!A:A,'Sales receipt((當天)'!A2,'Sales receipt((當天)'!B:B,'Sales receipt((當天)'!B4,'Sales receipt((當天)'!G:G,'Sales receipt((當天)'!G4) -> 0 | C54: =SUMIFS('Sales receipt((當天)'!J:J,'Sales receipt((當天)'!A:A,'Sales receipt((當天)'!A2,'Sales receipt((當天)'!B:B,'Sales receipt((當天)'!B4,'Sales receipt((當天)'!G:G,'Sales receipt((當天)'!G4) -> 0 | D54: =SUMIFS('Sales receipt((當天)'!K:K,'Sales receipt((當天)'!A:A,'Sales receipt((當天)'!A3,'Sales receipt((當天)'!B:B,'Sales receipt((當天)'!B4,'Sales receipt((當天)'!G:G,'Sales receipt((當天)'!G4) -> 3343 | E54: =SUMIFS('Sales receipt((當天)'!J:J,'Sales receipt((當天)'!A:A,'Sales receipt((當天)'!A3,'Sales receipt((當天)'!B:B,'Sales receipt((當天)'!B4,'Sales receipt((當天)'!G:G,'Sales receipt((當天)'!G4) -> 1 | F54: =SUMIFS('Sales receipt((當天)'!K:K,'Sales receipt((當天)'!A:A,'Sales receipt((當天)'!A7,'Sales receipt((當天)'!B:B,'Sales receipt((當天)'!B4,'Sales receipt((當天)'!G:G,'Sales receipt((當天)'!G4) -> 0 | G54: =SUMIFS('Sales receipt((當天)'!J:J,'Sales receipt((當天)'!A:A,'Sales receipt((當天)'!A7,'Sales receipt((當天)'!B:B,'Sales receipt((當天)'!B4,'Sales receipt((當天)'!G:G,'Sales receipt((當天)'!G4) -> 0 | H54: =SUMIFS('Sales receipt((當天)'!K:K,'Sales receipt((當天)'!A:A,'Sales receipt((當天)'!A6,'Sales receipt((當天)'!B:B,'Sales receipt((當天)'!B4,'Sales receipt((當天)'!G:G,'Sales receipt((當天)'!G4) -> 3304 | I54: =SUMIFS('Sales receipt((當天)'!J:J,'Sales receipt((當天)'!A:A,'Sales receipt((當天)'!A6,'Sales receipt((當天)'!B:B,'Sales receipt((當天)'!B4,'Sales receipt((當天)'!G:G,'Sales receipt((當天)'!G4) -> 1 | J54: =SUMIFS('Sales receipt((當天)'!K:K,'Sales receipt((當天)'!A:A,'Sales receipt((當天)'!A8,'Sales receipt((當天)'!B:B,'Sales receipt((當天)'!B4,'Sales receipt((當天)'!G:G,'Sales receipt((當天)'!G4) -> 0 | K54: =SUMIFS('Sales receipt((當天)'!J:J,'Sales receipt((當天)'!A:A,'Sales receipt((當天)'!A8,'Sales receipt((當天)'!B:B,'Sales receipt((當天)'!B4,'Sales receipt((當天)'!G:G,'Sales receipt((當天)'!G4) -> 0 | L54: =SUMIFS('Sales receipt((當天)'!K:K,'Sales receipt((當天)'!A:A,'Sales receipt((當天)'!A4,'Sales receipt((當天)'!B:B,'Sales receipt((當天)'!B4,'Sales receipt((當天)'!G:G,'Sales receipt((當天)'!G4) -> 0 | M54: =SUMIFS('Sales receipt((當天)'!J:J,'Sales receipt((當天)'!A:A,'Sales receipt((當天)'!A4,'Sales receipt((當天)'!B:B,'Sales receipt((當天)'!B4,'Sales receipt((當天)'!G:G,'Sales receipt((當天)'!G4) -> 0 | N54: =SUMIFS('Sales receipt((當天)'!K:K,'Sales receipt((當天)'!A:A,'Sales receipt((當天)'!A5,'Sales receipt((當天)'!B:B,'Sales receipt((當天)'!B4,'Sales receipt((當天)'!G:G,'Sales receipt((當天)'!G4) -> 0 | O54: =SUMIFS('Sales receipt((當天)'!J:J,'Sales receipt((當天)'!A:A,'Sales receipt((當天)'!A5,'Sales receipt((當天)'!B:B,'Sales receipt((當天)'!B4,'Sales receipt((當天)'!G:G,'Sales receipt((當天)'!G4) -> 0
A55: TENNIS | B55: =SUMIFS('Sales receipt((當天)'!K:K,'Sales receipt((當天)'!A:A,'Sales receipt((當天)'!A2,'Sales receipt((當天)'!B:B,'Sales receipt((當天)'!B4,'Sales receipt((當天)'!G:G,'Sales receipt((當天)'!G16) -> 0 | C55: =SUMIFS('Sales receipt((當天)'!J:J,'Sales receipt((當天)'!A:A,'Sales receipt((當天)'!A2,'Sales receipt((當天)'!B:B,'Sales receipt((當天)'!B4,'Sales receipt((當天)'!G:G,'Sales receipt((當天)'!G16) -> 0 | D55: =SUMIFS('Sales receipt((當天)'!K:K,'Sales receipt((當天)'!A:A,'Sales receipt((當天)'!A3,'Sales receipt((當天)'!B:B,'Sales receipt((當天)'!B4,'Sales receipt((當天)'!G:G,'Sales receipt((當天)'!G16) -> 0 | E55: =SUMIFS('Sales receipt((當天)'!J:J,'Sales receipt((當天)'!A:A,'Sales receipt((當天)'!A3,'Sales receipt((當天)'!B:B,'Sales receipt((當天)'!B4,'Sales receipt((當天)'!G:G,'Sales receipt((當天)'!G16) -> 0 | F55: =SUMIFS('Sales receipt((當天)'!K:K,'Sales receipt((當天)'!A:A,'Sales receipt((當天)'!A7,'Sales receipt((當天)'!B:B,'Sales receipt((當天)'!B4,'Sales receipt((當天)'!G:G,'Sales receipt((當天)'!G16) -> 0 | G55: =SUMIFS('Sales receipt((當天)'!J:J,'Sales receipt((當天)'!A:A,'Sales receipt((當天)'!A7,'Sales receipt((當天)'!B:B,'Sales receipt((當天)'!B4,'Sales receipt((當天)'!G:G,'Sales receipt((當天)'!G16) -> 0 | H55: =SUMIFS('Sales receipt((當天)'!K:K,'Sales receipt((當天)'!A:A,'Sales receipt((當天)'!A6,'Sales receipt((當天)'!B:B,'Sales receipt((當天)'!B4,'Sales receipt((當天)'!G:G,'Sales receipt((當天)'!G16) -> 0 | I55: =SUMIFS('Sales receipt((當天)'!J:J,'Sales receipt((當天)'!A:A,'Sales receipt((當天)'!A6,'Sales receipt((當天)'!B:B,'Sales receipt((當天)'!B4,'Sales receipt((當天)'!G:G,'Sales receipt((當天)'!G16) -> 0 | J55: =SUMIFS('Sales receipt((當天)'!K:K,'Sales receipt((當天)'!A:A,'Sales receipt((當天)'!A8,'Sales receipt((當天)'!B:B,'Sales receipt((當天)'!B4,'Sales receipt((當天)'!G:G,'Sales receipt((當天)'!G16) -> 0 | K55: =SUMIFS('Sales receipt((當天)'!J:J,'Sales receipt((當天)'!A:A,'Sales receipt((當天)'!A8,'Sales receipt((當天)'!B:B,'Sales receipt((當天)'!B4,'Sales receipt((當天)'!G:G,'Sales receipt((當天)'!G16) -> 0 | L55: =SUMIFS('Sales receipt((當天)'!K:K,'Sales receipt((當天)'!A:A,'Sales receipt((當天)'!A4,'Sales receipt((當天)'!B:B,'Sales receipt((當天)'!B4,'Sales receipt((當天)'!G:G,'Sales receipt((當天)'!G16) -> 0 | M55: =SUMIFS('Sales receipt((當天)'!J:J,'Sales receipt((當天)'!A:A,'Sales receipt((當天)'!A4,'Sales receipt((當天)'!B:B,'Sales receipt((當天)'!B4,'Sales receipt((當天)'!G:G,'Sales receipt((當天)'!G16) -> 0 | N55: =SUMIFS('Sales receipt((當天)'!K:K,'Sales receipt((當天)'!A:A,'Sales receipt((當天)'!A5,'Sales receipt((當天)'!B:B,'Sales receipt((當天)'!B4,'Sales receipt((當天)'!G:G,'Sales receipt((當天)'!G16) -> 0 | O55: =SUMIFS('Sales receipt((當天)'!J:J,'Sales receipt((當天)'!A:A,'Sales receipt((當天)'!A5,'Sales receipt((當天)'!B:B,'Sales receipt((當天)'!B4,'Sales receipt((當天)'!G:G,'Sales receipt((當天)'!G16) -> 0
A57: FOT | B57: =SUMIFS('Sales receipt((當天)'!K:K,'Sales receipt((當天)'!A:A,'Sales receipt((當天)'!A2,'Sales receipt((當天)'!B:B,'Sales receipt((當天)'!B6) -> 4080 | C57: =SUMIFS('Sales receipt((當天)'!J:J,'Sales receipt((當天)'!A:A,'Sales receipt((當天)'!A2,'Sales receipt((當天)'!B:B,'Sales receipt((當天)'!B6) -> 4 | D57: =SUMIFS('Sales receipt((當天)'!K:K,'Sales receipt((當天)'!A:A,'Sales receipt((當天)'!A3,'Sales receipt((當天)'!B:B,'Sales receipt((當天)'!B6) -> 5028 | E57: =SUMIFS('Sales receipt((當天)'!J:J,'Sales receipt((當天)'!A:A,'Sales receipt((當天)'!A3,'Sales receipt((當天)'!B:B,'Sales receipt((當天)'!B6) -> 6 | F57: =SUMIFS('Sales receipt((當天)'!K:K,'Sales receipt((當天)'!A:A,'Sales receipt((當天)'!A7,'Sales receipt((當天)'!B:B,'Sales receipt((當天)'!B6) -> 0 | G57: =SUMIFS('Sales receipt((當天)'!J:J,'Sales receipt((當天)'!A:A,'Sales receipt((當天)'!A7,'Sales receipt((當天)'!B:B,'Sales receipt((當天)'!B6) -> 0 | H57: =SUMIFS('Sales receipt((當天)'!K:K,'Sales receipt((當天)'!A:A,'Sales receipt((當天)'!A6,'Sales receipt((當天)'!B:B,'Sales receipt((當天)'!B6) -> 2621 | I57: =SUMIFS('Sales receipt((當天)'!J:J,'Sales receipt((當天)'!A:A,'Sales receipt((當天)'!A6,'Sales receipt((當天)'!B:B,'Sales receipt((當天)'!B6) -> 3 | J57: =SUMIFS('Sales receipt((當天)'!K:K,'Sales receipt((當天)'!A:A,'Sales receipt((當天)'!A8,'Sales receipt((當天)'!B:B,'Sales receipt((當天)'!B6) -> 7380 | K57: =SUMIFS('Sales receipt((當天)'!J:J,'Sales receipt((當天)'!A:A,'Sales receipt((當天)'!A8,'Sales receipt((當天)'!B:B,'Sales receipt((當天)'!B6) -> 9 | L57: =SUMIFS('Sales receipt((當天)'!K:K,'Sales receipt((當天)'!A:A,'Sales receipt((當天)'!A4,'Sales receipt((當天)'!B:B,'Sales receipt((當天)'!B6) -> 0 | M57: =SUMIFS('Sales receipt((當天)'!J:J,'Sales receipt((當天)'!A:A,'Sales receipt((當天)'!A4,'Sales receipt((當天)'!B:B,'Sales receipt((當天)'!B6) -> 0 | N57: =SUMIFS('Sales receipt((當天)'!K:K,'Sales receipt((當天)'!A:A,'Sales receipt((當天)'!A5,'Sales receipt((當天)'!B:B,'Sales receipt((當天)'!B6) -> 0 | O57: =SUMIFS('Sales receipt((當天)'!J:J,'Sales receipt((當天)'!A:A,'Sales receipt((當天)'!A5,'Sales receipt((當天)'!B:B,'Sales receipt((當天)'!B6) -> 0
A58: M | B58: =SUMIFS('Sales receipt((當天)'!K:K,'Sales receipt((當天)'!A:A,'Sales receipt((當天)'!A2,'Sales receipt((當天)'!B:B,'Sales receipt((當天)'!B6,'Sales receipt((當天)'!H:H,'Sales receipt((當天)'!H3) -> 880 | C58: =SUMIFS('Sales receipt((當天)'!J:J,'Sales receipt((當天)'!A:A,'Sales receipt((當天)'!A2,'Sales receipt((當天)'!B:B,'Sales receipt((當天)'!B6,'Sales receipt((當天)'!H:H,'Sales receipt((當天)'!H3) -> 1 | D58: =SUMIFS('Sales receipt((當天)'!K:K,'Sales receipt((當天)'!A:A,'Sales receipt((當天)'!A3,'Sales receipt((當天)'!B:B,'Sales receipt((當天)'!B6,'Sales receipt((當天)'!H:H,'Sales receipt((當天)'!H3) -> 4024 | E58: =SUMIFS('Sales receipt((當天)'!J:J,'Sales receipt((當天)'!A:A,'Sales receipt((當天)'!A3,'Sales receipt((當天)'!B:B,'Sales receipt((當天)'!B6,'Sales receipt((當天)'!H:H,'Sales receipt((當天)'!H3) -> 5 | F58: =SUMIFS('Sales receipt((當天)'!K:K,'Sales receipt((當天)'!A:A,'Sales receipt((當天)'!A7,'Sales receipt((當天)'!B:B,'Sales receipt((當天)'!B6,'Sales receipt((當天)'!H:H,'Sales receipt((當天)'!H3) -> 0 | G58: =SUMIFS('Sales receipt((當天)'!J:J,'Sales receipt((當天)'!A:A,'Sales receipt((當天)'!A7,'Sales receipt((當天)'!B:B,'Sales receipt((當天)'!B6,'Sales receipt((當天)'!H:H,'Sales receipt((當天)'!H3) -> 0 | H58: =SUMIFS('Sales receipt((當天)'!K:K,'Sales receipt((當天)'!A:A,'Sales receipt((當天)'!A6,'Sales receipt((當天)'!B:B,'Sales receipt((當天)'!B6,'Sales receipt((當天)'!H:H,'Sales receipt((當天)'!H3) -> 1828 | I58: =SUMIFS('Sales receipt((當天)'!J:J,'Sales receipt((當天)'!A:A,'Sales receipt((當天)'!A6,'Sales receipt((當天)'!B:B,'Sales receipt((當天)'!B6,'Sales receipt((當天)'!H:H,'Sales receipt((當天)'!H3) -> 2 | J58: =SUMIFS('Sales receipt((當天)'!K:K,'Sales receipt((當天)'!A:A,'Sales receipt((當天)'!A8,'Sales receipt((當天)'!B:B,'Sales receipt((當天)'!B6,'Sales receipt((當天)'!H:H,'Sales receipt((當天)'!H3) -> 4168 | K58: =SUMIFS('Sales receipt((當天)'!J:J,'Sales receipt((當天)'!A:A,'Sales receipt((當天)'!A8,'Sales receipt((當天)'!B:B,'Sales receipt((當天)'!B6,'Sales receipt((當天)'!H:H,'Sales receipt((當天)'!H3) -> 5 | L58: =SUMIFS('Sales receipt((當天)'!K:K,'Sales receipt((當天)'!A:A,'Sales receipt((當天)'!A4,'Sales receipt((當天)'!B:B,'Sales receipt((當天)'!B6,'Sales receipt((當天)'!H:H,'Sales receipt((當天)'!H3) -> 0 | M58: =SUMIFS('Sales receipt((當天)'!J:J,'Sales receipt((當天)'!A:A,'Sales receipt((當天)'!A4,'Sales receipt((當天)'!B:B,'Sales receipt((當天)'!B6,'Sales receipt((當天)'!H:H,'Sales receipt((當天)'!H3) -> 0 | N58: =SUMIFS('Sales receipt((當天)'!K:K,'Sales receipt((當天)'!A:A,'Sales receipt((當天)'!A5,'Sales receipt((當天)'!B:B,'Sales receipt((當天)'!B6,'Sales receipt((當天)'!H:H,'Sales receipt((當天)'!H3) -> 0 | O58: =SUMIFS('Sales receipt((當天)'!J:J,'Sales receipt((當天)'!A:A,'Sales receipt((當天)'!A5,'Sales receipt((當天)'!B:B,'Sales receipt((當天)'!B6,'Sales receipt((當天)'!H:H,'Sales receipt((當天)'!H3) -> 0
A59: F | B59: =SUMIFS('Sales receipt((當天)'!K:K,'Sales receipt((當天)'!A:A,'Sales receipt((當天)'!A2,'Sales receipt((當天)'!B:B,'Sales receipt((當天)'!B6,'Sales receipt((當天)'!H:H,'Sales receipt((當天)'!H2) -> 3200 | C59: =SUMIFS('Sales receipt((當天)'!J:J,'Sales receipt((當天)'!A:A,'Sales receipt((當天)'!A2,'Sales receipt((當天)'!B:B,'Sales receipt((當天)'!B6,'Sales receipt((當天)'!H:H,'Sales receipt((當天)'!H2) -> 3 | D59: =SUMIFS('Sales receipt((當天)'!K:K,'Sales receipt((當天)'!A:A,'Sales receipt((當天)'!A3,'Sales receipt((當天)'!B:B,'Sales receipt((當天)'!B6,'Sales receipt((當天)'!H:H,'Sales receipt((當天)'!H2) -> 1004 | E59: =SUMIFS('Sales receipt((當天)'!J:J,'Sales receipt((當天)'!A:A,'Sales receipt((當天)'!A3,'Sales receipt((當天)'!B:B,'Sales receipt((當天)'!B6,'Sales receipt((當天)'!H:H,'Sales receipt((當天)'!H2) -> 1 | F59: =SUMIFS('Sales receipt((當天)'!K:K,'Sales receipt((當天)'!A:A,'Sales receipt((當天)'!A7,'Sales receipt((當天)'!B:B,'Sales receipt((當天)'!B6,'Sales receipt((當天)'!H:H,'Sales receipt((當天)'!H2) -> 0 | G59: =SUMIFS('Sales receipt((當天)'!J:J,'Sales receipt((當天)'!A:A,'Sales receipt((當天)'!A7,'Sales receipt((當天)'!B:B,'Sales receipt((當天)'!B6,'Sales receipt((當天)'!H:H,'Sales receipt((當天)'!H2) -> 0 | H59: =SUMIFS('Sales receipt((當天)'!K:K,'Sales receipt((當天)'!A:A,'Sales receipt((當天)'!A6,'Sales receipt((當天)'!B:B,'Sales receipt((當天)'!B6,'Sales receipt((當天)'!H:H,'Sales receipt((當天)'!H2) -> 793 | I59: =SUMIFS('Sales receipt((當天)'!J:J,'Sales receipt((當天)'!A:A,'Sales receipt((當天)'!A6,'Sales receipt((當天)'!B:B,'Sales receipt((當天)'!B6,'Sales receipt((當天)'!H:H,'Sales receipt((當天)'!H2) -> 1 | J59: =SUMIFS('Sales receipt((當天)'!K:K,'Sales receipt((當天)'!A:A,'Sales receipt((當天)'!A8,'Sales receipt((當天)'!B:B,'Sales receipt((當天)'!B6,'Sales receipt((當天)'!H:H,'Sales receipt((當天)'!H2) -> 3212 | K59: =SUMIFS('Sales receipt((當天)'!J:J,'Sales receipt((當天)'!A:A,'Sales receipt((當天)'!A8,'Sales receipt((當天)'!B:B,'Sales receipt((當天)'!B6,'Sales receipt((當天)'!H:H,'Sales receipt((當天)'!H2) -> 4 | L59: =SUMIFS('Sales receipt((當天)'!K:K,'Sales receipt((當天)'!A:A,'Sales receipt((當天)'!A4,'Sales receipt((當天)'!B:B,'Sales receipt((當天)'!B6,'Sales receipt((當天)'!H:H,'Sales receipt((當天)'!H2) -> 0 | M59: =SUMIFS('Sales receipt((當天)'!J:J,'Sales receipt((當天)'!A:A,'Sales receipt((當天)'!A4,'Sales receipt((當天)'!B:B,'Sales receipt((當天)'!B6,'Sales receipt((當天)'!H:H,'Sales receipt((當天)'!H2) -> 0 | N59: =SUMIFS('Sales receipt((當天)'!K:K,'Sales receipt((當天)'!A:A,'Sales receipt((當天)'!A5,'Sales receipt((當天)'!B:B,'Sales receipt((當天)'!B6,'Sales receipt((當天)'!H:H,'Sales receipt((當天)'!H2) -> 0 | O59: =SUMIFS('Sales receipt((當天)'!J:J,'Sales receipt((當天)'!A:A,'Sales receipt((當天)'!A5,'Sales receipt((當天)'!B:B,'Sales receipt((當天)'!B6,'Sales receipt((當天)'!H:H,'Sales receipt((當天)'!H2) -> 0
A60: ACC | B60: =SUMIFS('Sales receipt((當天)'!K:K,'Sales receipt((當天)'!A:A,'Sales receipt((當天)'!A2,'Sales receipt((當天)'!B:B,'Sales receipt((當天)'!B5) -> 130 | C60: =SUMIFS('Sales receipt((當天)'!J:J,'Sales receipt((當天)'!A:A,'Sales receipt((當天)'!A2,'Sales receipt((當天)'!B:B,'Sales receipt((當天)'!B5) -> 2 | D60: =SUMIFS('Sales receipt((當天)'!K:K,'Sales receipt((當天)'!A:A,'Sales receipt((當天)'!A3,'Sales receipt((當天)'!B:B,'Sales receipt((當天)'!B5) -> 120 | E60: =SUMIFS('Sales receipt((當天)'!J:J,'Sales receipt((當天)'!A:A,'Sales receipt((當天)'!A3,'Sales receipt((當天)'!B:B,'Sales receipt((當天)'!B5) -> 2 | F60: =SUMIFS('Sales receipt((當天)'!K:K,'Sales receipt((當天)'!A:A,'Sales receipt((當天)'!A7,'Sales receipt((當天)'!B:B,'Sales receipt((當天)'!B5) -> 0 | G60: =SUMIFS('Sales receipt((當天)'!J:J,'Sales receipt((當天)'!A:A,'Sales receipt((當天)'!A7,'Sales receipt((當天)'!B:B,'Sales receipt((當天)'!B5) -> 0 | H60: =SUMIFS('Sales receipt((當天)'!K:K,'Sales receipt((當天)'!A:A,'Sales receipt((當天)'!A6,'Sales receipt((當天)'!B:B,'Sales receipt((當天)'!B5) -> 612 | I60: =SUMIFS('Sales receipt((當天)'!J:J,'Sales receipt((當天)'!A:A,'Sales receipt((當天)'!A6,'Sales receipt((當天)'!B:B,'Sales receipt((當天)'!B5) -> 1 | J60: =SUMIFS('Sales receipt((當天)'!K:K,'Sales receipt((當天)'!A:A,'Sales receipt((當天)'!A8,'Sales receipt((當天)'!B:B,'Sales receipt((當天)'!B5) -> 60 | K60: =SUMIFS('Sales receipt((當天)'!J:J,'Sales receipt((當天)'!A:A,'Sales receipt((當天)'!A8,'Sales receipt((當天)'!B:B,'Sales receipt((當天)'!B5) -> 1 | L60: =SUMIFS('Sales receipt((當天)'!K:K,'Sales receipt((當天)'!A:A,'Sales receipt((當天)'!A4,'Sales receipt((當天)'!B:B,'Sales receipt((當天)'!B5) -> 0 | M60: =SUMIFS('Sales receipt((當天)'!J:J,'Sales receipt((當天)'!A:A,'Sales receipt((當天)'!A4,'Sales receipt((當天)'!B:B,'Sales receipt((當天)'!B5) -> 0 | N60: =SUMIFS('Sales receipt((當天)'!K:K,'Sales receipt((當天)'!A:A,'Sales receipt((當天)'!A5,'Sales receipt((當天)'!B:B,'Sales receipt((當天)'!B5) -> 867 | O60: =SUMIFS('Sales receipt((當天)'!J:J,'Sales receipt((當天)'!A:A,'Sales receipt((當天)'!A5,'Sales receipt((當天)'!B:B,'Sales receipt((當天)'!B5) -> 2
B62: M0989 Susanna | D62: M2172 Janet | F62: M2801 Fanny | H62: M2798 Ryan | J62: M2902 Carmen | N62: M1436 Khaki
B63: Sales | C63: Qty | D63: Sales | E63: Qty | F63: Sales | G63: Qty | H63: Sales | I63: Qty | J63: Sales | K63: Qty | L63: Sales | M63: Qty | N63: Sales | O63: Qty
A64: 內衣類 | B64: =SUMIFS('Sales receipt((當天)'!K:K,'Sales receipt((當天)'!A:A,'Sales receipt((當天)'!A2,'Sales receipt((當天)'!B:B,'Sales receipt((當天)'!B4,'Sales receipt((當天)'!C:C,'Sales receipt((當天)'!C2) -> 0 | C64: =SUMIFS('Sales receipt((當天)'!J:J,'Sales receipt((當天)'!A:A,'Sales receipt((當天)'!A2,'Sales receipt((當天)'!B:B,'Sales receipt((當天)'!B4,'Sales receipt((當天)'!C:C,'Sales receipt((當天)'!C2) -> 0 | D64: =SUMIFS('Sales receipt((當天)'!K:K,'Sales receipt((當天)'!A:A,'Sales receipt((當天)'!A3,'Sales receipt((當天)'!B:B,'Sales receipt((當天)'!B4,'Sales receipt((當天)'!C:C,'Sales receipt((當天)'!C2) -> 0 | E64: =SUMIFS('Sales receipt((當天)'!J:J,'Sales receipt((當天)'!A:A,'Sales receipt((當天)'!A3,'Sales receipt((當天)'!B:B,'Sales receipt((當天)'!B4,'Sales receipt((當天)'!C:C,'Sales receipt((當天)'!C2) -> 0 | F64: =SUMIFS('Sales receipt((當天)'!K:K,'Sales receipt((當天)'!A:A,'Sales receipt((當天)'!A7,'Sales receipt((當天)'!B:B,'Sales receipt((當天)'!B4,'Sales receipt((當天)'!C:C,'Sales receipt((當天)'!C2) -> 0 | G64: =SUMIFS('Sales receipt((當天)'!J:J,'Sales receipt((當天)'!A:A,'Sales receipt((當天)'!A7,'Sales receipt((當天)'!B:B,'Sales receipt((當天)'!B4,'Sales receipt((當天)'!C:C,'Sales receipt((當天)'!C2) -> 0 | H64: =SUMIFS('Sales receipt((當天)'!K:K,'Sales receipt((當天)'!A:A,'Sales receipt((當天)'!A6,'Sales receipt((當天)'!B:B,'Sales receipt((當天)'!B4,'Sales receipt((當天)'!C:C,'Sales receipt((當天)'!C2) -> 0 | I64: =SUMIFS('Sales receipt((當天)'!J:J,'Sales receipt((當天)'!A:A,'Sales receipt((當天)'!A6,'Sales receipt((當天)'!B:B,'Sales receipt((當天)'!B4,'Sales receipt((當天)'!C:C,'Sales receipt((當天)'!C2) -> 0 | J64: =SUMIFS('Sales receipt((當天)'!K:K,'Sales receipt((當天)'!A:A,'Sales receipt((當天)'!A8,'Sales receipt((當天)'!B:B,'Sales receipt((當天)'!B4,'Sales receipt((當天)'!C:C,'Sales receipt((當天)'!C2) -> 0 | K64: =SUMIFS('Sales receipt((當天)'!J:J,'Sales receipt((當天)'!A:A,'Sales receipt((當天)'!A8,'Sales receipt((當天)'!B:B,'Sales receipt((當天)'!B4,'Sales receipt((當天)'!C:C,'Sales receipt((當天)'!C2) -> 0 | L64: =SUMIFS('Sales receipt((當天)'!K:K,'Sales receipt((當天)'!A:A,'Sales receipt((當天)'!A4,'Sales receipt((當天)'!B:B,'Sales receipt((當天)'!B4,'Sales receipt((當天)'!C:C,'Sales receipt((當天)'!C2) -> 0 | M64: =SUMIFS('Sales receipt((當天)'!J:J,'Sales receipt((當天)'!A:A,'Sales receipt((當天)'!A4,'Sales receipt((當天)'!B:B,'Sales receipt((當天)'!B4,'Sales receipt((當天)'!C:C,'Sales receipt((當天)'!C2) -> 0 | N64: =SUMIFS('Sales receipt((當天)'!K:K,'Sales receipt((當天)'!A:A,'Sales receipt((當天)'!A5,'Sales receipt((當天)'!B:B,'Sales receipt((當天)'!B4,'Sales receipt((當天)'!C:C,'Sales receipt((當天)'!C2) -> 0 | O64: =SUMIFS('Sales receipt((當天)'!J:J,'Sales receipt((當天)'!A:A,'Sales receipt((當天)'!A5,'Sales receipt((當天)'!B:B,'Sales receipt((當天)'!B4,'Sales receipt((當天)'!C:C,'Sales receipt((當天)'!C2) -> 0
A65: 內搭 | B65: =SUMIFS('Sales receipt((當天)'!K:K,'Sales receipt((當天)'!A:A,'Sales receipt((當天)'!A2,'Sales receipt((當天)'!B:B,'Sales receipt((當天)'!B4,'Sales receipt((當天)'!C:C,'Sales receipt((當天)'!C3) -> 0 | C65: =SUMIFS('Sales receipt((當天)'!J:J,'Sales receipt((當天)'!A:A,'Sales receipt((當天)'!A2,'Sales receipt((當天)'!B:B,'Sales receipt((當天)'!B4,'Sales receipt((當天)'!C:C,'Sales receipt((當天)'!C3) -> 0 | D65: =SUMIFS('Sales receipt((當天)'!K:K,'Sales receipt((當天)'!A:A,'Sales receipt((當天)'!A3,'Sales receipt((當天)'!B:B,'Sales receipt((當天)'!B4,'Sales receipt((當天)'!C:C,'Sales receipt((當天)'!C3) -> 3117 | E65: =SUMIFS('Sales receipt((當天)'!J:J,'Sales receipt((當天)'!A:A,'Sales receipt((當天)'!A3,'Sales receipt((當天)'!B:B,'Sales receipt((當天)'!B4,'Sales receipt((當天)'!C:C,'Sales receipt((當天)'!C3) -> 4 | F65: =SUMIFS('Sales receipt((當天)'!K:K,'Sales receipt((當天)'!A:A,'Sales receipt((當天)'!A7,'Sales receipt((當天)'!B:B,'Sales receipt((當天)'!B4,'Sales receipt((當天)'!C:C,'Sales receipt((當天)'!C3) -> 0 | G65: =SUMIFS('Sales receipt((當天)'!J:J,'Sales receipt((當天)'!A:A,'Sales receipt((當天)'!A7,'Sales receipt((當天)'!B:B,'Sales receipt((當天)'!B4,'Sales receipt((當天)'!C:C,'Sales receipt((當天)'!C3) -> 0 | H65: =SUMIFS('Sales receipt((當天)'!K:K,'Sales receipt((當天)'!A:A,'Sales receipt((當天)'!A6,'Sales receipt((當天)'!B:B,'Sales receipt((當天)'!B4,'Sales receipt((當天)'!C:C,'Sales receipt((當天)'!C3) -> 3835 | I65: =SUMIFS('Sales receipt((當天)'!J:J,'Sales receipt((當天)'!A:A,'Sales receipt((當天)'!A6,'Sales receipt((當天)'!B:B,'Sales receipt((當天)'!B4,'Sales receipt((當天)'!C:C,'Sales receipt((當天)'!C3) -> 4 | J65: =SUMIFS('Sales receipt((當天)'!K:K,'Sales receipt((當天)'!A:A,'Sales receipt((當天)'!A8,'Sales receipt((當天)'!B:B,'Sales receipt((當天)'!B4,'Sales receipt((當天)'!C:C,'Sales receipt((當天)'!C3) -> 0 | K65: =SUMIFS('Sales receipt((當天)'!J:J,'Sales receipt((當天)'!A:A,'Sales receipt((當天)'!A8,'Sales receipt((當天)'!B:B,'Sales receipt((當天)'!B4,'Sales receipt((當天)'!C:C,'Sales receipt((當天)'!C3) -> 0 | L65: =SUMIFS('Sales receipt((當天)'!K:K,'Sales receipt((當天)'!A:A,'Sales receipt((當天)'!A4,'Sales receipt((當天)'!B:B,'Sales receipt((當天)'!B4,'Sales receipt((當天)'!C:C,'Sales receipt((當天)'!C3) -> 0 | M65: =SUMIFS('Sales receipt((當天)'!J:J,'Sales receipt((當天)'!A:A,'Sales receipt((當天)'!A4,'Sales receipt((當天)'!B:B,'Sales receipt((當天)'!B4,'Sales receipt((當天)'!C:C,'Sales receipt((當天)'!C3) -> 0 | N65: =SUMIFS('Sales receipt((當天)'!K:K,'Sales receipt((當天)'!A:A,'Sales receipt((當天)'!A5,'Sales receipt((當天)'!B:B,'Sales receipt((當天)'!B4,'Sales receipt((當天)'!C:C,'Sales receipt((當天)'!C3) -> 880 | O65: =SUMIFS('Sales receipt((當天)'!J:J,'Sales receipt((當天)'!A:A,'Sales receipt((當天)'!A5,'Sales receipt((當天)'!B:B,'Sales receipt((當天)'!B4,'Sales receipt((當天)'!C:C,'Sales receipt((當天)'!C3) -> 1
A66: 編織衫 | B66: =SUMIFS('Sales receipt((當天)'!K:K,'Sales receipt((當天)'!A:A,'Sales receipt((當天)'!A2,'Sales receipt((當天)'!B:B,'Sales receipt((當天)'!B4,'Sales receipt((當天)'!C:C,'Sales receipt((當天)'!C13) -> 0 | C66: =SUMIFS('Sales receipt((當天)'!J:J,'Sales receipt((當天)'!A:A,'Sales receipt((當天)'!A2,'Sales receipt((當天)'!B:B,'Sales receipt((當天)'!B4,'Sales receipt((當天)'!C:C,'Sales receipt((當天)'!C13) -> 0 | D66: =SUMIFS('Sales receipt((當天)'!K:K,'Sales receipt((當天)'!A:A,'Sales receipt((當天)'!A3,'Sales receipt((當天)'!B:B,'Sales receipt((當天)'!B4,'Sales receipt((當天)'!C:C,'Sales receipt((當天)'!C13) -> 0 | E66: =SUMIFS('Sales receipt((當天)'!J:J,'Sales receipt((當天)'!A:A,'Sales receipt((當天)'!A3,'Sales receipt((當天)'!B:B,'Sales receipt((當天)'!B4,'Sales receipt((當天)'!C:C,'Sales receipt((當天)'!C13) -> 0 | F66: =SUMIFS('Sales receipt((當天)'!K:K,'Sales receipt((當天)'!A:A,'Sales receipt((當天)'!A7,'Sales receipt((當天)'!B:B,'Sales receipt((當天)'!B4,'Sales receipt((當天)'!C:C,'Sales receipt((當天)'!C13) -> 0 | G66: =SUMIFS('Sales receipt((當天)'!J:J,'Sales receipt((當天)'!A:A,'Sales receipt((當天)'!A7,'Sales receipt((當天)'!B:B,'Sales receipt((當天)'!B4,'Sales receipt((當天)'!C:C,'Sales receipt((當天)'!C13) -> 0 | H66: =SUMIFS('Sales receipt((當天)'!K:K,'Sales receipt((當天)'!A:A,'Sales receipt((當天)'!A6,'Sales receipt((當天)'!B:B,'Sales receipt((當天)'!B4,'Sales receipt((當天)'!C:C,'Sales receipt((當天)'!C13) -> 0 | I66: =SUMIFS('Sales receipt((當天)'!J:J,'Sales receipt((當天)'!A:A,'Sales receipt((當天)'!A6,'Sales receipt((當天)'!B:B,'Sales receipt((當天)'!B4,'Sales receipt((當天)'!C:C,'Sales receipt((當天)'!C13) -> 0 | J66: =SUMIFS('Sales receipt((當天)'!K:K,'Sales receipt((當天)'!A:A,'Sales receipt((當天)'!A8,'Sales receipt((當天)'!B:B,'Sales receipt((當天)'!B4,'Sales receipt((當天)'!C:C,'Sales receipt((當天)'!C13) -> 7560 | K66: =SUMIFS('Sales receipt((當天)'!J:J,'Sales receipt((當天)'!A:A,'Sales receipt((當天)'!A8,'Sales receipt((當天)'!B:B,'Sales receipt((當天)'!B4,'Sales receipt((當天)'!C:C,'Sales receipt((當天)'!C13) -> 5 | L66: =SUMIFS('Sales receipt((當天)'!K:K,'Sales receipt((當天)'!A:A,'Sales receipt((當天)'!A4,'Sales receipt((當天)'!B:B,'Sales receipt((當天)'!B4,'Sales receipt((當天)'!C:C,'Sales receipt((當天)'!C13) -> 0 | M66: =SUMIFS('Sales receipt((當天)'!J:J,'Sales receipt((當天)'!A:A,'Sales receipt((當天)'!A4,'Sales receipt((當天)'!B:B,'Sales receipt((當天)'!B4,'Sales receipt((當天)'!C:C,'Sales receipt((當天)'!C13) -> 0 | N66: =SUMIFS('Sales receipt((當天)'!K:K,'Sales receipt((當天)'!A:A,'Sales receipt((當天)'!A5,'Sales receipt((當天)'!B:B,'Sales receipt((當天)'!B4,'Sales receipt((當天)'!C:C,'Sales receipt((當天)'!C13) -> 0 | O66: =SUMIFS('Sales receipt((當天)'!J:J,'Sales receipt((當天)'!A:A,'Sales receipt((當天)'!A5,'Sales receipt((當天)'!B:B,'Sales receipt((當天)'!B4,'Sales receipt((當天)'!C:C,'Sales receipt((當天)'!C13) -> 0
A67: 襯衫 | B67: =SUMIFS('Sales receipt((當天)'!K:K,'Sales receipt((當天)'!A:A,'Sales receipt((當天)'!A2,'Sales receipt((當天)'!B:B,'Sales receipt((當天)'!B4,'Sales receipt((當天)'!C:C,'Sales receipt((當天)'!C14) -> 0 | C67: =SUMIFS('Sales receipt((當天)'!J:J,'Sales receipt((當天)'!A:A,'Sales receipt((當天)'!A2,'Sales receipt((當天)'!B:B,'Sales receipt((當天)'!B4,'Sales receipt((當天)'!C:C,'Sales receipt((當天)'!C14) -> 0 | D67: =SUMIFS('Sales receipt((當天)'!K:K,'Sales receipt((當天)'!A:A,'Sales receipt((當天)'!A3,'Sales receipt((當天)'!B:B,'Sales receipt((當天)'!B4,'Sales receipt((當天)'!C:C,'Sales receipt((當天)'!C14) -> 0 | E67: =SUMIFS('Sales receipt((當天)'!J:J,'Sales receipt((當天)'!A:A,'Sales receipt((當天)'!A3,'Sales receipt((當天)'!B:B,'Sales receipt((當天)'!B4,'Sales receipt((當天)'!C:C,'Sales receipt((當天)'!C14) -> 0 | F67: =SUMIFS('Sales receipt((當天)'!K:K,'Sales receipt((當天)'!A:A,'Sales receipt((當天)'!A7,'Sales receipt((當天)'!B:B,'Sales receipt((當天)'!B4,'Sales receipt((當天)'!C:C,'Sales receipt((當天)'!C14) -> 0 | G67: =SUMIFS('Sales receipt((當天)'!J:J,'Sales receipt((當天)'!A:A,'Sales receipt((當天)'!A7,'Sales receipt((當天)'!B:B,'Sales receipt((當天)'!B4,'Sales receipt((當天)'!C:C,'Sales receipt((當天)'!C14) -> 0 | H67: =SUMIFS('Sales receipt((當天)'!K:K,'Sales receipt((當天)'!A:A,'Sales receipt((當天)'!A6,'Sales receipt((當天)'!B:B,'Sales receipt((當天)'!B4,'Sales receipt((當天)'!C:C,'Sales receipt((當天)'!C14) -> 0 | I67: =SUMIFS('Sales receipt((當天)'!J:J,'Sales receipt((當天)'!A:A,'Sales receipt((當天)'!A6,'Sales receipt((當天)'!B:B,'Sales receipt((當天)'!B4,'Sales receipt((當天)'!C:C,'Sales receipt((當天)'!C14) -> 0 | J67: =SUMIFS('Sales receipt((當天)'!K:K,'Sales receipt((當天)'!A:A,'Sales receipt((當天)'!A8,'Sales receipt((當天)'!B:B,'Sales receipt((當天)'!B4,'Sales receipt((當天)'!C:C,'Sales receipt((當天)'!C14) -> 0 | K67: =SUMIFS('Sales receipt((當天)'!J:J,'Sales receipt((當天)'!A:A,'Sales receipt((當天)'!A8,'Sales receipt((當天)'!B:B,'Sales receipt((當天)'!B4,'Sales receipt((當天)'!C:C,'Sales receipt((當天)'!C14) -> 0 | L67: =SUMIFS('Sales receipt((當天)'!K:K,'Sales receipt((當天)'!A:A,'Sales receipt((當天)'!A4,'Sales receipt((當天)'!B:B,'Sales receipt((當天)'!B4,'Sales receipt((當天)'!C:C,'Sales receipt((當天)'!C14) -> 0 | M67: =SUMIFS('Sales receipt((當天)'!J:J,'Sales receipt((當天)'!A:A,'Sales receipt((當天)'!A4,'Sales receipt((當天)'!B:B,'Sales receipt((當天)'!B4,'Sales receipt((當天)'!C:C,'Sales receipt((當天)'!C14) -> 0 | N67: =SUMIFS('Sales receipt((當天)'!K:K,'Sales receipt((當天)'!A:A,'Sales receipt((當天)'!A5,'Sales receipt((當天)'!B:B,'Sales receipt((當天)'!B4,'Sales receipt((當天)'!C:C,'Sales receipt((當天)'!C14) -> 0 | O67: =SUMIFS('Sales receipt((當天)'!J:J,'Sales receipt((當天)'!A:A,'Sales receipt((當天)'!A5,'Sales receipt((當天)'!B:B,'Sales receipt((當天)'!B4,'Sales receipt((當天)'!C:C,'Sales receipt((當天)'!C14) -> 0
A68: 短T類 | B68: =SUMIFS('Sales receipt((當天)'!K:K,'Sales receipt((當天)'!A:A,'Sales receipt((當天)'!A2,'Sales receipt((當天)'!B:B,'Sales receipt((當天)'!B4,'Sales receipt((當天)'!C:C,'Sales receipt((當天)'!C10) -> 0 | C68: =SUMIFS('Sales receipt((當天)'!J:J,'Sales receipt((當天)'!A:A,'Sales receipt((當天)'!A2,'Sales receipt((當天)'!B:B,'Sales receipt((當天)'!B4,'Sales receipt((當天)'!C:C,'Sales receipt((當天)'!C10) -> 0 | D68: =SUMIFS('Sales receipt((當天)'!K:K,'Sales receipt((當天)'!A:A,'Sales receipt((當天)'!A3,'Sales receipt((當天)'!B:B,'Sales receipt((當天)'!B4,'Sales receipt((當天)'!C:C,'Sales receipt((當天)'!C10) -> 493 | E68: =SUMIFS('Sales receipt((當天)'!J:J,'Sales receipt((當天)'!A:A,'Sales receipt((當天)'!A3,'Sales receipt((當天)'!B:B,'Sales receipt((當天)'!B4,'Sales receipt((當天)'!C:C,'Sales receipt((當天)'!C10) -> 1 | F68: =SUMIFS('Sales receipt((當天)'!K:K,'Sales receipt((當天)'!A:A,'Sales receipt((當天)'!A7,'Sales receipt((當天)'!B:B,'Sales receipt((當天)'!B4,'Sales receipt((當天)'!C:C,'Sales receipt((當天)'!C10) -> 0 | G68: =SUMIFS('Sales receipt((當天)'!J:J,'Sales receipt((當天)'!A:A,'Sales receipt((當天)'!A7,'Sales receipt((當天)'!B:B,'Sales receipt((當天)'!B4,'Sales receipt((當天)'!C:C,'Sales receipt((當天)'!C10) -> 0 | H68: =SUMIFS('Sales receipt((當天)'!K:K,'Sales receipt((當天)'!A:A,'Sales receipt((當天)'!A6,'Sales receipt((當天)'!B:B,'Sales receipt((當天)'!B4,'Sales receipt((當天)'!C:C,'Sales receipt((當天)'!C10) -> 0 | I68: =SUMIFS('Sales receipt((當天)'!J:J,'Sales receipt((當天)'!A:A,'Sales receipt((當天)'!A6,'Sales receipt((當天)'!B:B,'Sales receipt((當天)'!B4,'Sales receipt((當天)'!C:C,'Sales receipt((當天)'!C10) -> 0 | J68: =SUMIFS('Sales receipt((當天)'!K:K,'Sales receipt((當天)'!A:A,'Sales receipt((當天)'!A8,'Sales receipt((當天)'!B:B,'Sales receipt((當天)'!B4,'Sales receipt((當天)'!C:C,'Sales receipt((當天)'!C10) -> 629 | K68: =SUMIFS('Sales receipt((當天)'!J:J,'Sales receipt((當天)'!A:A,'Sales receipt((當天)'!A8,'Sales receipt((當天)'!B:B,'Sales receipt((當天)'!B4,'Sales receipt((當天)'!C:C,'Sales receipt((當天)'!C10) -> 1 | L68: =SUMIFS('Sales receipt((當天)'!K:K,'Sales receipt((當天)'!A:A,'Sales receipt((當天)'!A4,'Sales receipt((當天)'!B:B,'Sales receipt((當天)'!B4,'Sales receipt((當天)'!C:C,'Sales receipt((當天)'!C10) -> 0 | M68: =SUMIFS('Sales receipt((當天)'!J:J,'Sales receipt((當天)'!A:A,'Sales receipt((當天)'!A4,'Sales receipt((當天)'!B:B,'Sales receipt((當天)'!B4,'Sales receipt((當天)'!C:C,'Sales receipt((當天)'!C10) -> 0 | N68: =SUMIFS('Sales receipt((當天)'!K:K,'Sales receipt((當天)'!A:A,'Sales receipt((當天)'!A5,'Sales receipt((當天)'!B:B,'Sales receipt((當天)'!B4,'Sales receipt((當天)'!C:C,'Sales receipt((當天)'!C10) -> 0 | O68: =SUMIFS('Sales receipt((當天)'!J:J,'Sales receipt((當天)'!A:A,'Sales receipt((當天)'!A5,'Sales receipt((當天)'!B:B,'Sales receipt((當天)'!B4,'Sales receipt((當天)'!C:C,'Sales receipt((當天)'!C10) -> 0
A69: 外套 | B69: =SUM(SUMIFS('Sales receipt((當天)'!K:K,'Sales receipt((當天)'!A:A,'Sales receipt((當天)'!A2,'Sales receipt((當天)'!B:B,'Sales receipt((當天)'!B4,'Sales receipt((當天)'!C:C,{"針織上衣","梭織上衣"})) -> 5263 | C69: =SUM(SUMIFS('Sales receipt((當天)'!J:J,'Sales receipt((當天)'!A:A,'Sales receipt((當天)'!A2,'Sales receipt((當天)'!B:B,'Sales receipt((當天)'!B4,'Sales receipt((當天)'!C:C,{"針織上衣","梭織上衣"})) -> 4 | D69: =SUM(SUMIFS('Sales receipt((當天)'!K:K,'Sales receipt((當天)'!A:A,'Sales receipt((當天)'!A3,'Sales receipt((當天)'!B:B,'Sales receipt((當天)'!B4,'Sales receipt((當天)'!C:C,{"針織上衣","梭織上衣"})) -> 1258 | E69: =SUM(SUMIFS('Sales receipt((當天)'!J:J,'Sales receipt((當天)'!A:A,'Sales receipt((當天)'!A3,'Sales receipt((當天)'!B:B,'Sales receipt((當天)'!B4,'Sales receipt((當天)'!C:C,{"針織上衣","梭織上衣"})) -> 1 | F69: =SUM(SUMIFS('Sales receipt((當天)'!K:K,'Sales receipt((當天)'!A:A,'Sales receipt((當天)'!A7,'Sales receipt((當天)'!B:B,'Sales receipt((當天)'!B4,'Sales receipt((當天)'!C:C,{"針織上衣","梭織上衣"})) -> 0 | G69: =SUM(SUMIFS('Sales receipt((當天)'!J:J,'Sales receipt((當天)'!A:A,'Sales receipt((當天)'!A7,'Sales receipt((當天)'!B:B,'Sales receipt((當天)'!B4,'Sales receipt((當天)'!C:C,{"針織上衣","梭織上衣"})) -> 0 | H69: =SUM(SUMIFS('Sales receipt((當天)'!K:K,'Sales receipt((當天)'!A:A,'Sales receipt((當天)'!A6,'Sales receipt((當天)'!B:B,'Sales receipt((當天)'!B4,'Sales receipt((當天)'!C:C,{"針織上衣","梭織上衣"})) -> 1680 | I69: =SUM(SUMIFS('Sales receipt((當天)'!J:J,'Sales receipt((當天)'!A:A,'Sales receipt((當天)'!A6,'Sales receipt((當天)'!B:B,'Sales receipt((當天)'!B4,'Sales receipt((當天)'!C:C,{"針織上衣","梭織上衣"})) -> 1 | J69: =SUM(SUMIFS('Sales receipt((當天)'!K:K,'Sales receipt((當天)'!A:A,'Sales receipt((當天)'!A8,'Sales receipt((當天)'!B:B,'Sales receipt((當天)'!B4,'Sales receipt((當天)'!C:C,{"針織上衣","梭織上衣"})) -> 6236 | K69: =SUM(SUMIFS('Sales receipt((當天)'!J:J,'Sales receipt((當天)'!A:A,'Sales receipt((當天)'!A8,'Sales receipt((當天)'!B:B,'Sales receipt((當天)'!B4,'Sales receipt((當天)'!C:C,{"針織上衣","梭織上衣"})) -> 5 | L69: =SUM(SUMIFS('Sales receipt((當天)'!K:K,'Sales receipt((當天)'!A:A,'Sales receipt((當天)'!A4,'Sales receipt((當天)'!B:B,'Sales receipt((當天)'!B4,'Sales receipt((當天)'!C:C,{"針織上衣","梭織上衣"})) -> 0 | M69: =SUM(SUMIFS('Sales receipt((當天)'!J:J,'Sales receipt((當天)'!A:A,'Sales receipt((當天)'!A4,'Sales receipt((當天)'!B:B,'Sales receipt((當天)'!B4,'Sales receipt((當天)'!C:C,{"針織上衣","梭織上衣"})) -> 0 | N69: =SUM(SUMIFS('Sales receipt((當天)'!K:K,'Sales receipt((當天)'!A:A,'Sales receipt((當天)'!A5,'Sales receipt((當天)'!B:B,'Sales receipt((當天)'!B4,'Sales receipt((當天)'!C:C,{"針織上衣","梭織上衣"})) -> 1258 | O69: =SUM(SUMIFS('Sales receipt((當天)'!J:J,'Sales receipt((當天)'!A:A,'Sales receipt((當天)'!A5,'Sales receipt((當天)'!B:B,'Sales receipt((當天)'!B4,'Sales receipt((當天)'!C:C,{"針織上衣","梭織上衣"})) -> 1
A70: 羽絨服 | B70: =SUM(SUMIFS('Sales receipt((當天)'!K:K,'Sales receipt((當天)'!A:A,'Sales receipt((當天)'!A2,'Sales receipt((當天)'!B:B,'Sales receipt((當天)'!B4,'Sales receipt((當天)'!C:C,{"滑雪服","羽絨服","棉服"})) -> 0 | C70: =SUM(SUMIFS('Sales receipt((當天)'!J:J,'Sales receipt((當天)'!A:A,'Sales receipt((當天)'!A2,'Sales receipt((當天)'!B:B,'Sales receipt((當天)'!B4,'Sales receipt((當天)'!C:C,{"滑雪服","羽絨服","棉服"})) -> 0 | D70: =SUM(SUMIFS('Sales receipt((當天)'!K:K,'Sales receipt((當天)'!A:A,'Sales receipt((當天)'!A3,'Sales receipt((當天)'!B:B,'Sales receipt((當天)'!B4,'Sales receipt((當天)'!C:C,{"滑雪服","羽絨服","棉服"})) -> 3343 | E70: =SUM(SUMIFS('Sales receipt((當天)'!J:J,'Sales receipt((當天)'!A:A,'Sales receipt((當天)'!A3,'Sales receipt((當天)'!B:B,'Sales receipt((當天)'!B4,'Sales receipt((當天)'!C:C,{"滑雪服","羽絨服","棉服"})) -> 1 | F70: =SUM(SUMIFS('Sales receipt((當天)'!K:K,'Sales receipt((當天)'!A:A,'Sales receipt((當天)'!A7,'Sales receipt((當天)'!B:B,'Sales receipt((當天)'!B4,'Sales receipt((當天)'!C:C,{"滑雪服","羽絨服","棉服"})) -> 0 | G70: =SUM(SUMIFS('Sales receipt((當天)'!J:J,'Sales receipt((當天)'!A:A,'Sales receipt((當天)'!A7,'Sales receipt((當天)'!B:B,'Sales receipt((當天)'!B4,'Sales receipt((當天)'!C:C,{"滑雪服","羽絨服","棉服"})) -> 0 | H70: =SUM(SUMIFS('Sales receipt((當天)'!K:K,'Sales receipt((當天)'!A:A,'Sales receipt((當天)'!A6,'Sales receipt((當天)'!B:B,'Sales receipt((當天)'!B4,'Sales receipt((當天)'!C:C,{"滑雪服","羽絨服","棉服"})) -> 5635 | I70: =SUM(SUMIFS('Sales receipt((當天)'!J:J,'Sales receipt((當天)'!A:A,'Sales receipt((當天)'!A6,'Sales receipt((當天)'!B:B,'Sales receipt((當天)'!B4,'Sales receipt((當天)'!C:C,{"滑雪服","羽絨服","棉服"})) -> 2 | J70: =SUM(SUMIFS('Sales receipt((當天)'!K:K,'Sales receipt((當天)'!A:A,'Sales receipt((當天)'!A8,'Sales receipt((當天)'!B:B,'Sales receipt((當天)'!B4,'Sales receipt((當天)'!C:C,{"滑雪服","羽絨服","棉服"})) -> 1884 | K70: =SUM(SUMIFS('Sales receipt((當天)'!J:J,'Sales receipt((當天)'!A:A,'Sales receipt((當天)'!A8,'Sales receipt((當天)'!B:B,'Sales receipt((當天)'!B4,'Sales receipt((當天)'!C:C,{"滑雪服","羽絨服","棉服"})) -> 1 | L70: =SUM(SUMIFS('Sales receipt((當天)'!K:K,'Sales receipt((當天)'!A:A,'Sales receipt((當天)'!A4,'Sales receipt((當天)'!B:B,'Sales receipt((當天)'!B4,'Sales receipt((當天)'!C:C,{"滑雪服","羽絨服","棉服"})) -> 0 | M70: =SUM(SUMIFS('Sales receipt((當天)'!J:J,'Sales receipt((當天)'!A:A,'Sales receipt((當天)'!A4,'Sales receipt((當天)'!B:B,'Sales receipt((當天)'!B4,'Sales receipt((當天)'!C:C,{"滑雪服","羽絨服","棉服"})) -> 0 | N70: =SUM(SUMIFS('Sales receipt((當天)'!K:K,'Sales receipt((當天)'!A:A,'Sales receipt((當天)'!A5,'Sales receipt((當天)'!B:B,'Sales receipt((當天)'!B4,'Sales receipt((當天)'!C:C,{"滑雪服","羽絨服","棉服"})) -> 0 | O70: =SUM(SUMIFS('Sales receipt((當天)'!J:J,'Sales receipt((當天)'!A:A,'Sales receipt((當天)'!A5,'Sales receipt((當天)'!B:B,'Sales receipt((當天)'!B4,'Sales receipt((當天)'!C:C,{"滑雪服","羽絨服","棉服"})) -> 0
A71: 上身 | B71: =SUM(B64:B70) -> 5263 | C71: 4 | D71: 8211 | E71: 7 | F71: 0 | G71: 0 | H71: 11150 | I71: 7 | J71: 16309 | K71: 12 | L71: 0 | M71: 0 | N71: 2138 | O71: 2
A72: 褲類 | B72: =SUM(SUMIFS('Sales receipt((當天)'!K:K,'Sales receipt((當天)'!A:A,'Sales receipt((當天)'!A2,'Sales receipt((當天)'!B:B,'Sales receipt((當天)'!B4,'Sales receipt((當天)'!C:C,{"針織褲","梭織褲"})) -> 880 | C72: =SUM(SUMIFS('Sales receipt((當天)'!J:J,'Sales receipt((當天)'!A:A,'Sales receipt((當天)'!A2,'Sales receipt((當天)'!B:B,'Sales receipt((當天)'!B4,'Sales receipt((當天)'!C:C,{"針織褲","梭織褲"})) -> 1 | D72: =SUM(SUMIFS('Sales receipt((當天)'!K:K,'Sales receipt((當天)'!A:A,'Sales receipt((當天)'!A3,'Sales receipt((當天)'!B:B,'Sales receipt((當天)'!B4,'Sales receipt((當天)'!C:C,{"針織褲","梭織褲"})) -> 1376 | E72: =SUM(SUMIFS('Sales receipt((當天)'!J:J,'Sales receipt((當天)'!A:A,'Sales receipt((當天)'!A3,'Sales receipt((當天)'!B:B,'Sales receipt((當天)'!B4,'Sales receipt((當天)'!C:C,{"針織褲","梭織褲"})) -> 1 | F72: =SUM(SUMIFS('Sales receipt((當天)'!K:K,'Sales receipt((當天)'!A:A,'Sales receipt((當天)'!A7,'Sales receipt((當天)'!B:B,'Sales receipt((當天)'!B4,'Sales receipt((當天)'!C:C,{"針織褲","梭織褲"})) -> 0 | G72: =SUM(SUMIFS('Sales receipt((當天)'!J:J,'Sales receipt((當天)'!A:A,'Sales receipt((當天)'!A7,'Sales receipt((當天)'!B:B,'Sales receipt((當天)'!B4,'Sales receipt((當天)'!C:C,{"針織褲","梭織褲"})) -> 0 | H72: =SUM(SUMIFS('Sales receipt((當天)'!K:K,'Sales receipt((當天)'!A:A,'Sales receipt((當天)'!A6,'Sales receipt((當天)'!B:B,'Sales receipt((當天)'!B4,'Sales receipt((當天)'!C:C,{"針織褲","梭織褲"})) -> 3930 | I72: =SUM(SUMIFS('Sales receipt((當天)'!J:J,'Sales receipt((當天)'!A:A,'Sales receipt((當天)'!A6,'Sales receipt((當天)'!B:B,'Sales receipt((當天)'!B4,'Sales receipt((當天)'!C:C,{"針織褲","梭織褲"})) -> 5 | J72: =SUM(SUMIFS('Sales receipt((當天)'!K:K,'Sales receipt((當天)'!A:A,'Sales receipt((當天)'!A8,'Sales receipt((當天)'!B:B,'Sales receipt((當天)'!B4,'Sales receipt((當天)'!C:C,{"針織褲","梭織褲"})) -> 1708 | K72: =SUM(SUMIFS('Sales receipt((當天)'!J:J,'Sales receipt((當天)'!A:A,'Sales receipt((當天)'!A8,'Sales receipt((當天)'!B:B,'Sales receipt((當天)'!B4,'Sales receipt((當天)'!C:C,{"針織褲","梭織褲"})) -> 2 | L72: =SUM(SUMIFS('Sales receipt((當天)'!K:K,'Sales receipt((當天)'!A:A,'Sales receipt((當天)'!A4,'Sales receipt((當天)'!B:B,'Sales receipt((當天)'!B4,'Sales receipt((當天)'!C:C,{"針織褲","梭織褲"})) -> 0 | M72: =SUM(SUMIFS('Sales receipt((當天)'!J:J,'Sales receipt((當天)'!A:A,'Sales receipt((當天)'!A4,'Sales receipt((當天)'!B:B,'Sales receipt((當天)'!B4,'Sales receipt((當天)'!C:C,{"針織褲","梭織褲"})) -> 0 | N72: =SUM(SUMIFS('Sales receipt((當天)'!K:K,'Sales receipt((當天)'!A:A,'Sales receipt((當天)'!A5,'Sales receipt((當天)'!B:B,'Sales receipt((當天)'!B4,'Sales receipt((當天)'!C:C,{"針織褲","梭織褲"})) -> 0 | O72: =SUM(SUMIFS('Sales receipt((當天)'!J:J,'Sales receipt((當天)'!A:A,'Sales receipt((當天)'!A5,'Sales receipt((當天)'!B:B,'Sales receipt((當天)'!B4,'Sales receipt((當天)'!C:C,{"針織褲","梭織褲"})) -> 0
A73: 裙類 | B73: =SUMIFS('Sales receipt((當天)'!K:K,'Sales receipt((當天)'!A:A,'Sales receipt((當天)'!A2,'Sales receipt((當天)'!B:B,'Sales receipt((當天)'!B4,'Sales receipt((當天)'!C:C,'Sales receipt((當天)'!C12) -> 0 | C73: =SUMIFS('Sales receipt((當天)'!J:J,'Sales receipt((當天)'!A:A,'Sales receipt((當天)'!A2,'Sales receipt((當天)'!B:B,'Sales receipt((當天)'!B4,'Sales receipt((當天)'!C:C,'Sales receipt((當天)'!C12) -> 0 | D73: =SUMIFS('Sales receipt((當天)'!K:K,'Sales receipt((當天)'!A:A,'Sales receipt((當天)'!A3,'Sales receipt((當天)'!B:B,'Sales receipt((當天)'!B4,'Sales receipt((當天)'!C:C,'Sales receipt((當天)'!C12) -> 0 | E73: =SUMIFS('Sales receipt((當天)'!J:J,'Sales receipt((當天)'!A:A,'Sales receipt((當天)'!A3,'Sales receipt((當天)'!B:B,'Sales receipt((當天)'!B4,'Sales receipt((當天)'!C:C,'Sales receipt((當天)'!C12) -> 0 | F73: =SUMIFS('Sales receipt((當天)'!K:K,'Sales receipt((當天)'!A:A,'Sales receipt((當天)'!A7,'Sales receipt((當天)'!B:B,'Sales receipt((當天)'!B4,'Sales receipt((當天)'!C:C,'Sales receipt((當天)'!C12) -> 0 | G73: =SUMIFS('Sales receipt((當天)'!J:J,'Sales receipt((當天)'!A:A,'Sales receipt((當天)'!A7,'Sales receipt((當天)'!B:B,'Sales receipt((當天)'!B4,'Sales receipt((當天)'!C:C,'Sales receipt((當天)'!C12) -> 0 | H73: =SUMIFS('Sales receipt((當天)'!K:K,'Sales receipt((當天)'!A:A,'Sales receipt((當天)'!A6,'Sales receipt((當天)'!B:B,'Sales receipt((當天)'!B4,'Sales receipt((當天)'!C:C,'Sales receipt((當天)'!C12) -> 0 | I73: =SUMIFS('Sales receipt((當天)'!J:J,'Sales receipt((當天)'!A:A,'Sales receipt((當天)'!A6,'Sales receipt((當天)'!B:B,'Sales receipt((當天)'!B4,'Sales receipt((當天)'!C:C,'Sales receipt((當天)'!C12) -> 0 | J73: =SUMIFS('Sales receipt((當天)'!K:K,'Sales receipt((當天)'!A:A,'Sales receipt((當天)'!A8,'Sales receipt((當天)'!B:B,'Sales receipt((當天)'!B4,'Sales receipt((當天)'!C:C,'Sales receipt((當天)'!C12) -> 0 | K73: =SUMIFS('Sales receipt((當天)'!J:J,'Sales receipt((當天)'!A:A,'Sales receipt((當天)'!A8,'Sales receipt((當天)'!B:B,'Sales receipt((當天)'!B4,'Sales receipt((當天)'!C:C,'Sales receipt((當天)'!C12) -> 0 | L73: =SUMIFS('Sales receipt((當天)'!K:K,'Sales receipt((當天)'!A:A,'Sales receipt((當天)'!A4,'Sales receipt((當天)'!B:B,'Sales receipt((當天)'!B4,'Sales receipt((當天)'!C:C,'Sales receipt((當天)'!C12) -> 0 | M73: =SUMIFS('Sales receipt((當天)'!J:J,'Sales receipt((當天)'!A:A,'Sales receipt((當天)'!A4,'Sales receipt((當天)'!B:B,'Sales receipt((當天)'!B4,'Sales receipt((當天)'!C:C,'Sales receipt((當天)'!C12) -> 0 | N73: =SUMIFS('Sales receipt((當天)'!K:K,'Sales receipt((當天)'!A:A,'Sales receipt((當天)'!A5,'Sales receipt((當天)'!B:B,'Sales receipt((當天)'!B4,'Sales receipt((當天)'!C:C,'Sales receipt((當天)'!C12) -> 0 | O73: =SUMIFS('Sales receipt((當天)'!J:J,'Sales receipt((當天)'!A:A,'Sales receipt((當天)'!A5,'Sales receipt((當天)'!B:B,'Sales receipt((當天)'!B4,'Sales receipt((當天)'!C:C,'Sales receipt((當天)'!C12) -> 0
A74: 下身 | B74: =SUM(B72:B73) -> 880 | C74: 1 | D74: 1376 | E74: 1 | F74: 0 | G74: 0 | H74: 3930 | I74: 5 | J74: 1708 | K74: 2 | L74: 0 | M74: 0 | N74: 0 | O74: 0
A75: 鞋 | B75: =SUMIFS('Sales receipt((當天)'!K:K,'Sales receipt((當天)'!A:A,'Sales receipt((當天)'!A2,'Sales receipt((當天)'!B:B,'Sales receipt((當天)'!B6) -> 4080 | C75: =SUMIFS('Sales receipt((當天)'!J:J,'Sales receipt((當天)'!A:A,'Sales receipt((當天)'!A2,'Sales receipt((當天)'!B:B,'Sales receipt((當天)'!B6) -> 4 | D75: =SUMIFS('Sales receipt((當天)'!K:K,'Sales receipt((當天)'!A:A,'Sales receipt((當天)'!A3,'Sales receipt((當天)'!B:B,'Sales receipt((當天)'!B6) -> 5028 | E75: =SUMIFS('Sales receipt((當天)'!J:J,'Sales receipt((當天)'!A:A,'Sales receipt((當天)'!A3,'Sales receipt((當天)'!B:B,'Sales receipt((當天)'!B6) -> 6 | F75: =SUMIFS('Sales receipt((當天)'!K:K,'Sales receipt((當天)'!A:A,'Sales receipt((當天)'!A7,'Sales receipt((當天)'!B:B,'Sales receipt((當天)'!B6) -> 0 | G75: =SUMIFS('Sales receipt((當天)'!J:J,'Sales receipt((當天)'!A:A,'Sales receipt((當天)'!A7,'Sales receipt((當天)'!B:B,'Sales receipt((當天)'!B6) -> 0 | H75: =SUMIFS('Sales receipt((當天)'!K:K,'Sales receipt((當天)'!A:A,'Sales receipt((當天)'!A6,'Sales receipt((當天)'!B:B,'Sales receipt((當天)'!B6) -> 2621 | I75: =SUMIFS('Sales receipt((當天)'!J:J,'Sales receipt((當天)'!A:A,'Sales receipt((當天)'!A6,'Sales receipt((當天)'!B:B,'Sales receipt((當天)'!B6) -> 3 | J75: =SUMIFS('Sales receipt((當天)'!K:K,'Sales receipt((當天)'!A:A,'Sales receipt((當天)'!A8,'Sales receipt((當天)'!B:B,'Sales receipt((當天)'!B6) -> 7380 | K75: =SUMIFS('Sales receipt((當天)'!J:J,'Sales receipt((當天)'!A:A,'Sales receipt((當天)'!A8,'Sales receipt((當天)'!B:B,'Sales receipt((當天)'!B6) -> 9 | L75: =SUMIFS('Sales receipt((當天)'!K:K,'Sales receipt((當天)'!A:A,'Sales receipt((當天)'!A4,'Sales receipt((當天)'!B:B,'Sales receipt((當天)'!B6) -> 0 | M75: =SUMIFS('Sales receipt((當天)'!J:J,'Sales receipt((當天)'!A:A,'Sales receipt((當天)'!A4,'Sales receipt((當天)'!B:B,'Sales receipt((當天)'!B6) -> 0 | N75: =SUMIFS('Sales receipt((當天)'!K:K,'Sales receipt((當天)'!A:A,'Sales receipt((當天)'!A5,'Sales receipt((當天)'!B:B,'Sales receipt((當天)'!B6) -> 0 | O75: =SUMIFS('Sales receipt((當天)'!J:J,'Sales receipt((當天)'!A:A,'Sales receipt((當天)'!A5,'Sales receipt((當天)'!B:B,'Sales receipt((當天)'!B6) -> 0
A76: 配件 | B76: =SUMIFS('Sales receipt((當天)'!K:K,'Sales receipt((當天)'!A:A,'Sales receipt((當天)'!A2,'Sales receipt((當天)'!B:B,'Sales receipt((當天)'!B5) -> 130 | C76: =SUMIFS('Sales receipt((當天)'!J:J,'Sales receipt((當天)'!A:A,'Sales receipt((當天)'!A2,'Sales receipt((當天)'!B:B,'Sales receipt((當天)'!B5) -> 2 | D76: =SUMIFS('Sales receipt((當天)'!K:K,'Sales receipt((當天)'!A:A,'Sales receipt((當天)'!A3,'Sales receipt((當天)'!B:B,'Sales receipt((當天)'!B5) -> 120 | E76: =SUMIFS('Sales receipt((當天)'!J:J,'Sales receipt((當天)'!A:A,'Sales receipt((當天)'!A3,'Sales receipt((當天)'!B:B,'Sales receipt((當天)'!B5) -> 2 | F76: =SUMIFS('Sales receipt((當天)'!K:K,'Sales receipt((當天)'!A:A,'Sales receipt((當天)'!A7,'Sales receipt((當天)'!B:B,'Sales receipt((當天)'!B5) -> 0 | G76: =SUMIFS('Sales receipt((當天)'!J:J,'Sales receipt((當天)'!A:A,'Sales receipt((當天)'!A7,'Sales receipt((當天)'!B:B,'Sales receipt((當天)'!B5) -> 0 | H76: =SUMIFS('Sales receipt((當天)'!K:K,'Sales receipt((當天)'!A:A,'Sales receipt((當天)'!A6,'Sales receipt((當天)'!B:B,'Sales receipt((當天)'!B5) -> 612 | I76: =SUMIFS('Sales receipt((當天)'!J:J,'Sales receipt((當天)'!A:A,'Sales receipt((當天)'!A6,'Sales receipt((當天)'!B:B,'Sales receipt((當天)'!B5) -> 1 | J76: =SUMIFS('Sales receipt((當天)'!K:K,'Sales receipt((當天)'!A:A,'Sales receipt((當天)'!A8,'Sales receipt((當天)'!B:B,'Sales receipt((當天)'!B5) -> 60 | K76: =SUMIFS('Sales receipt((當天)'!J:J,'Sales receipt((當天)'!A:A,'Sales receipt((當天)'!A8,'Sales receipt((當天)'!B:B,'Sales receipt((當天)'!B5) -> 1 | L76: =SUMIFS('Sales receipt((當天)'!K:K,'Sales receipt((當天)'!A:A,'Sales receipt((當天)'!A4,'Sales receipt((當天)'!B:B,'Sales receipt((當天)'!B5) -> 0 | M76: =SUMIFS('Sales receipt((當天)'!J:J,'Sales receipt((當天)'!A:A,'Sales receipt((當天)'!A4,'Sales receipt((當天)'!B:B,'Sales receipt((當天)'!B5) -> 0 | N76: =SUMIFS('Sales receipt((當天)'!K:K,'Sales receipt((當天)'!A:A,'Sales receipt((當天)'!A5,'Sales receipt((當天)'!B:B,'Sales receipt((當天)'!B5) -> 867 | O76: =SUMIFS('Sales receipt((當天)'!J:J,'Sales receipt((當天)'!A:A,'Sales receipt((當天)'!A5,'Sales receipt((當天)'!B:B,'Sales receipt((當天)'!B5) -> 2
A77: 店鋪事項

Sheet 個人KPI
A1: 9月28-05號 個人品類銷售
A2: 個人數KPI | I2: 個人數KPI
A3: Susanna | B3: TW 5日 | C3: MTD | D3: ATV | E3: UPT | F3: NO | G3: QTY | I3: LW | J3: MTD | K3: ATV | L3: UPT | M3: NO | N3: QTY
C4: 98541 | D4: 2615 | E4: 3.6 | F4: 38 | G4: 139 | J4: 53284 | K4: 1969 | L4: 3.0 | M4: 22 | N4: 68
B5: VSLW | C5: =C4-J4 -> 45257 | D5: =D4-K4 -> 646 | E5: =E4-L4 -> 0.6 | F5: =F4-M4 -> 16 | G5: =G4-N4 -> 71
B7: 中類 | C7: 件數 | D7: 金額 | E7: VSLW尚欠 | I7: 中類 | J7: 件數 | K7: 金額
B8: 內衣類 | C8: =SUMIFS('個人KPISales receipt(MTD）'!J:J,'個人KPISales receipt(MTD）'!A:A,'個人KPISales receipt(MTD）'!A2,'個人KPISales receipt(MTD）'!B:B,'個人KPISales receipt(MTD）'!B4,'個人KPISales receipt(MTD）'!C:C,'個人KPISales receipt(MTD）'!C2) -> 0 | D8: =SUMIFS('個人KPISales receipt(MTD）'!K:K,'個人KPISales receipt(MTD）'!A:A,'個人KPISales receipt(MTD）'!A2,'個人KPISales receipt(MTD）'!B:B,'個人KPISales receipt(MTD）'!B4,'個人KPISales receipt(MTD）'!C:C,'個人KPISales receipt(MTD）'!C2) -> 0 | E8: =C8-J8 -> -13 | I8: 內衣類 | J8: 13 | K8: 10329
B9: 針織上衣 | C9: =SUMIFS('個人KPISales receipt(MTD）'!J:J,'個人KPISales receipt(MTD）'!A:A,'個人KPISales receipt(MTD）'!A2,'個人KPISales receipt(MTD）'!C:C,'個人KPISales receipt(MTD）'!C5) -> 11 | D9: =SUMIFS('個人KPISales receipt(MTD）'!K:K,'個人KPISales receipt(MTD）'!A:A,'個人KPISales receipt(MTD）'!A2,'個人KPISales receipt(MTD）'!B:B,'個人KPISales receipt(MTD）'!B4,'個人KPISales receipt(MTD）'!C:C,'個人KPISales receipt(MTD）'!C5) -> 14396 | E9: 5 | I9: 針織上衣 | J9: 6 | K9: 7342
B10: 針織褲 | C10: =SUMIFS('個人KPISales receipt(MTD）'!J:J,'個人KPISales receipt(MTD）'!A:A,'個人KPISales receipt(MTD）'!A2,'個人KPISales receipt(MTD）'!B:B,'個人KPISales receipt(MTD）'!B4,'個人KPISales receipt(MTD）'!C:C,'個人KPISales receipt(MTD）'!C6) -> 10 | D10: =SUMIFS('個人KPISales receipt(MTD）'!K:K,'個人KPISales receipt(MTD）'!A:A,'個人KPISales receipt(MTD）'!A2,'個人KPISales receipt(MTD）'!B:B,'個人KPISales receipt(MTD）'!B4,'個人KPISales receipt(MTD）'!C:C,'個人KPISales receipt(MTD）'!C6) -> 8518 | E10: 5 | I10: 針織褲 | J10: 5 | K10: 3879
B11: 梭織上衣 | C11: =SUMIFS('個人KPISales receipt(MTD）'!J:J,'個人KPISales receipt(MTD）'!A:A,'個人KPISales receipt(MTD）'!A2,'個人KPISales receipt(MTD）'!B:B,'個人KPISales receipt(MTD）'!B4,'個人KPISales receipt(MTD）'!C:C,'個人KPISales receipt(MTD）'!C7) -> 7 | D11: =SUMIFS('個人KPISales receipt(MTD）'!K:K,'個人KPISales receipt(MTD）'!A:A,'個人KPISales receipt(MTD）'!A2,'個人KPISales receipt(MTD）'!C:C,'個人KPISales receipt(MTD）'!C7) -> 12351 | E11: 3 | I11: 梭織上衣 | J11: 4 | K11: 6672
B12: 梭織褲 | C12: =SUMIFS('個人KPISales receipt(MTD）'!J:J,'個人KPISales receipt(MTD）'!A:A,'個人KPISales receipt(MTD）'!A2,'個人KPISales receipt(MTD）'!B:B,'個人KPISales receipt(MTD）'!B4,'個人KPISales receipt(MTD）'!C:C,'個人KPISales receipt(MTD）'!C8) -> 3 | D12: =SUMIFS('個人KPISales receipt(MTD）'!K:K,'個人KPISales receipt(MTD）'!A:A,'個人KPISales receipt(MTD）'!A2,'個人KPISales receipt(MTD）'!B:B,'個人KPISales receipt(MTD）'!B4,'個人KPISales receipt(MTD）'!C:C,'個人KPISales receipt(MTD）'!C8) -> 3507 | E12: 3 | I12: 梭織褲
B13: 短T類 | C13: =SUMIFS('個人KPISales receipt(MTD）'!J:J,'個人KPISales receipt(MTD）'!A:A,'個人KPISales receipt(MTD）'!A2,'個人KPISales receipt(MTD）'!B:B,'個人KPISales receipt(MTD）'!B4,'個人KPISales receipt(MTD）'!C:C,'個人KPISales receipt(MTD）'!C10) -> 3 | D13: =SUMIFS('個人KPISales receipt(MTD）'!K:K,'個人KPISales receipt(MTD）'!A:A,'個人KPISales receipt(MTD）'!A2,'個人KPISales receipt(MTD）'!B:B,'個人KPISales receipt(MTD）'!B4,'個人KPISales receipt(MTD）'!C:C,'個人KPISales receipt(MTD）'!C10) -> 2382 | E13: -8 | I13: 短T類 | J13: 11 | K13: 6685
B14: 裙裝 | C14: =SUMIFS('個人KPISales receipt(MTD）'!J:J,'個人KPISales receipt(MTD）'!A:A,'個人KPISales receipt(MTD）'!A2,'個人KPISales receipt(MTD）'!C:C,'個人KPISales receipt(MTD）'!C12) -> 1 | D14: =SUMIFS('個人KPISales receipt(MTD）'!K:K,'個人KPISales receipt(MTD）'!A:A,'個人KPISales receipt(MTD）'!A2,'個人KPISales receipt(MTD）'!B:B,'個人KPISales receipt(MTD）'!B4,'個人KPISales receipt(MTD）'!C:C,'個人KPISales receipt(MTD）'!C12) -> 1428 | E14: 0 | I14: 裙裝 | J14: 1 | K14: 1207
B15: 編織衫 | C15: =SUMIFS('個人KPISales receipt(MTD）'!J:J,'個人KPISales receipt(MTD）'!A:A,'個人KPISales receipt(MTD）'!A2,'個人KPISales receipt(MTD）'!B:B,'個人KPISales receipt(MTD）'!B4,'個人KPISales receipt(MTD）'!C:C,'個人KPISales receipt(MTD）'!C13) -> 8 | D15: =SUMIFS('個人KPISales receipt(MTD）'!K:K,'個人KPISales receipt(MTD）'!A:A,'個人KPISales receipt(MTD）'!A2,'個人KPISales receipt(MTD）'!B:B,'個人KPISales receipt(MTD）'!B4,'個人KPISales receipt(MTD）'!C:C,'個人KPISales receipt(MTD）'!C13) -> 10304 | E15: 0 | I15: 編織衫 | J15: 8 | K15: 9439
B16: 襯衫 | C16: =SUMIFS('個人KPISales receipt(MTD）'!J:J,'個人KPISales receipt(MTD）'!A:A,'個人KPISales receipt(MTD）'!A2,'個人KPISales receipt(MTD）'!B:B,'個人KPISales receipt(MTD）'!B4,'個人KPISales receipt(MTD）'!C:C,'個人KPISales receipt(MTD）'!C14) -> 0 | D16: =SUMIFS('個人KPISales receipt(MTD）'!K:K,'個人KPISales receipt(MTD）'!A:A,'個人KPISales receipt(MTD）'!A2,'個人KPISales receipt(MTD）'!B:B,'個人KPISales receipt(MTD）'!B4,'個人KPISales receipt(MTD）'!C:C,'個人KPISales receipt(MTD）'!C14) -> 0 | E16: 0 | I16: 襯衫 | J16: 0 | K16: 0
B17: 棉服 | C17: =SUMIFS('個人KPISales receipt(MTD）'!J:J,'個人KPISales receipt(MTD）'!A:A,'個人KPISales receipt(MTD）'!A2,'個人KPISales receipt(MTD）'!B:B,'個人KPISales receipt(MTD）'!B4,'個人KPISales receipt(MTD）'!C:C,'個人KPISales receipt(MTD）'!C9) -> 2 | D17: =SUMIFS('個人KPISales receipt(MTD）'!K:K,'個人KPISales receipt(MTD）'!A:A,'個人KPISales receipt(MTD）'!A2,'個人KPISales receipt(MTD）'!B:B,'個人KPISales receipt(MTD）'!B4,'個人KPISales receipt(MTD）'!C:C,'個人KPISales receipt(MTD）'!C9) -> 4652 | E17: 2 | I17: 棉服 | J17: 0 | K17: 0
B18: 羽絨服 | C18: =SUMIFS('個人KPISales receipt(MTD）'!J:J,'個人KPISales receipt(MTD）'!A:A,'個人KPISales receipt(MTD）'!A2,'個人KPISales receipt(MTD）'!B:B,'個人KPISales receipt(MTD）'!B4,'個人KPISales receipt(MTD）'!C:C,'個人KPISales receipt(MTD）'!C4) -> 6 | D18: =SUMIFS('個人KPISales receipt(MTD）'!K:K,'個人KPISales receipt(MTD）'!A:A,'個人KPISales receipt(MTD）'!A2,'個人KPISales receipt(MTD）'!B:B,'個人KPISales receipt(MTD）'!B4,'個人KPISales receipt(MTD）'!C:C,'個人KPISales receipt(MTD）'!C4) -> 12123 | I18: 羽絨服 | J18: 3 | K18: 4387
B19: 鞋 | C19: =SUMIFS('個人KPISales receipt(MTD）'!J:J,'個人KPISales receipt(MTD）'!A:A,'個人KPISales receipt(MTD）'!A2,'個人KPISales receipt(MTD）'!B:B,'個人KPISales receipt(MTD）'!B6) -> 16 | D19: =SUMIFS('個人KPISales receipt(MTD）'!K:K,'個人KPISales receipt(MTD）'!A:A,'個人KPISales receipt(MTD）'!A2,'個人KPISales receipt(MTD）'!B:B,'個人KPISales receipt(MTD）'!B6) -> 15578 | E19: 13 | I19: 鞋 | J19: 3 | K19: 3102
A21: JANET | B21: TW 6日 | C21: MTD | D21: ATV | E21: UPT | F21: NO | G21: QTY | I21: LW | J21: MTD | K21: ATV | L21: UPT | M21: NO | N21: QTY
C22: 120332 | D22: 2507 | E22: 3.5 | F22: 48 | G22: 168 | J22: 40799 | K22: 2668 | L22: 3.6 | M22: 16 | N22: 58
B23: VSLW | C23: =C22-J22 -> 79533 | D23: =D22-K22 -> -161 | E23: =E22-L22 -> -0.1 | F23: =F22-M22 -> 32 | G23: =G22-N22 -> 110
B25: 中類 | C25: 件數 | D25: 金額 | E25: VSLW尚欠 | I25: 中類 | J25: 件數 | K25: 金額
B26: 內衣類 | C26: =SUMIFS('個人KPISales receipt(MTD）'!J:J,'個人KPISales receipt(MTD）'!A:A,'個人KPISales receipt(MTD）'!A3,'個人KPISales receipt(MTD）'!B:B,'個人KPISales receipt(MTD）'!B4,'個人KPISales receipt(MTD）'!C:C,'個人KPISales receipt(MTD）'!C2) -> 0 | D26: =SUMIFS('個人KPISales receipt(MTD）'!K:K,'個人KPISales receipt(MTD）'!A:A,'個人KPISales receipt(MTD）'!A3,'個人KPISales receipt(MTD）'!B:B,'個人KPISales receipt(MTD）'!B4,'個人KPISales receipt(MTD）'!C:C,'個人KPISales receipt(MTD）'!C2) -> 0 | E26: =C26-J26 -> -6 | I26: 內衣類 | J26: 6 | K26: 5089
B27: 針織上衣 | C27: =SUMIFS('個人KPISales receipt(MTD）'!J:J,'個人KPISales receipt(MTD）'!A:A,'個人KPISales receipt(MTD）'!A3,'個人KPISales receipt(MTD）'!C:C,'個人KPISales receipt(MTD）'!C5) -> 18 | D27: =SUMIFS('個人KPISales receipt(MTD）'!K:K,'個人KPISales receipt(MTD）'!A:A,'個人KPISales receipt(MTD）'!A3,'個人KPISales receipt(MTD）'!B:B,'個人KPISales receipt(MTD）'!B4,'個人KPISales receipt(MTD）'!C:C,'個人KPISales receipt(MTD）'!C5) -> 24826 | E27: 17 | I27: 針織上衣 | J27: 1 | K27: 1245
B28: 針織褲 | C28: =SUMIFS('個人KPISales receipt(MTD）'!J:J,'個人KPISales receipt(MTD）'!A:A,'個人KPISales receipt(MTD）'!A3,'個人KPISales receipt(MTD）'!B:B,'個人KPISales receipt(MTD）'!B4,'個人KPISales receipt(MTD）'!C:C,'個人KPISales receipt(MTD）'!C6) -> 19 | D28: =SUMIFS('個人KPISales receipt(MTD）'!K:K,'個人KPISales receipt(MTD）'!A:A,'個人KPISales receipt(MTD）'!A3,'個人KPISales receipt(MTD）'!B:B,'個人KPISales receipt(MTD）'!B4,'個人KPISales receipt(MTD）'!C:C,'個人KPISales receipt(MTD）'!C6) -> 14921 | E28: 14 | I28: 針織褲 | J28: 5 | K28: 3975
B29: 梭織上衣 | C29: =SUMIFS('個人KPISales receipt(MTD）'!J:J,'個人KPISales receipt(MTD）'!A:A,'個人KPISales receipt(MTD）'!A3,'個人KPISales receipt(MTD）'!B:B,'個人KPISales receipt(MTD）'!B4,'個人KPISales receipt(MTD）'!C:C,'個人KPISales receipt(MTD）'!C7) -> 6 | D29: =SUMIFS('個人KPISales receipt(MTD）'!K:K,'個人KPISales receipt(MTD）'!A:A,'個人KPISales receipt(MTD）'!A3,'個人KPISales receipt(MTD）'!C:C,'個人KPISales receipt(MTD）'!C7) -> 9983 | E29: 0 | I29: 梭織上衣 | J29: 6 | K29: 11567
B30: 梭織褲 | C30: =SUMIFS('個人KPISales receipt(MTD）'!J:J,'個人KPISales receipt(MTD）'!A:A,'個人KPISales receipt(MTD）'!A3,'個人KPISales receipt(MTD）'!B:B,'個人KPISales receipt(MTD）'!B4,'個人KPISales receipt(MTD）'!C:C,'個人KPISales receipt(MTD）'!C8) -> 3 | D30: =SUMIFS('個人KPISales receipt(MTD）'!K:K,'個人KPISales receipt(MTD）'!A:A,'個人KPISales receipt(MTD）'!A3,'個人KPISales receipt(MTD）'!B:B,'個人KPISales receipt(MTD）'!B4,'個人KPISales receipt(MTD）'!C:C,'個人KPISales receipt(MTD）'!C8) -> 2484 | E30: 0 | I30: 梭織褲 | J30: 3 | K30: 3016
B31: 短T類 | C31: =SUMIFS('個人KPISales receipt(MTD）'!J:J,'個人KPISales receipt(MTD）'!A:A,'個人KPISales receipt(MTD）'!A3,'個人KPISales receipt(MTD）'!B:B,'個人KPISales receipt(MTD）'!B4,'個人KPISales receipt(MTD）'!C:C,'個人KPISales receipt(MTD）'!C10) -> 8 | D31: =SUMIFS('個人KPISales receipt(MTD）'!K:K,'個人KPISales receipt(MTD）'!A:A,'個人KPISales receipt(MTD）'!A3,'個人KPISales receipt(MTD）'!B:B,'個人KPISales receipt(MTD）'!B4,'個人KPISales receipt(MTD）'!C:C,'個人KPISales receipt(MTD）'!C10) -> 6445 | E31: 7 | I31: 短T類 | J31: 1 | K31: 780
B32: 裙裝 | C32: =SUMIFS('個人KPISales receipt(MTD）'!J:J,'個人KPISales receipt(MTD）'!A:A,'個人KPISales receipt(MTD）'!A3,'個人KPISales receipt(MTD）'!C:C,'個人KPISales receipt(MTD）'!C12) -> 0 | D32: =SUMIFS('個人KPISales receipt(MTD）'!K:K,'個人KPISales receipt(MTD）'!A:A,'個人KPISales receipt(MTD）'!A3,'個人KPISales receipt(MTD）'!B:B,'個人KPISales receipt(MTD）'!B4,'個人KPISales receipt(MTD）'!C:C,'個人KPISales receipt(MTD）'!C12) -> 0 | E32: -1 | I32: 裙裝 | J32: 1 | K32: 1350
B33: 編織衫 | C33: =SUMIFS('個人KPISales receipt(MTD）'!J:J,'個人KPISales receipt(MTD）'!A:A,'個人KPISales receipt(MTD）'!A3,'個人KPISales receipt(MTD）'!B:B,'個人KPISales receipt(MTD）'!B4,'個人KPISales receipt(MTD）'!C:C,'個人KPISales receipt(MTD）'!C13) -> 3 | D33: =SUMIFS('個人KPISales receipt(MTD）'!K:K,'個人KPISales receipt(MTD）'!A:A,'個人KPISales receipt(MTD）'!A3,'個人KPISales receipt(MTD）'!B:B,'個人KPISales receipt(MTD）'!B4,'個人KPISales receipt(MTD）'!C:C,'個人KPISales receipt(MTD）'!C13) -> 2758 | E33: 0 | I33: 編織衫 | J33: 3 | K33: 2607
B34: 襯衫 | C34: =SUMIFS('個人KPISales receipt(MTD）'!J:J,'個人KPISales receipt(MTD）'!A:A,'個人KPISales receipt(MTD）'!A3,'個人KPISales receipt(MTD）'!B:B,'個人KPISales receipt(MTD）'!B4,'個人KPISales receipt(MTD）'!C:C,'個人KPISales receipt(MTD）'!C14) -> 0 | D34: =SUMIFS('個人KPISales receipt(MTD）'!K:K,'個人KPISales receipt(MTD）'!A:A,'個人KPISales receipt(MTD）'!A3,'個人KPISales receipt(MTD）'!B:B,'個人KPISales receipt(MTD）'!B4,'個人KPISales receipt(MTD）'!C:C,'個人KPISales receipt(MTD）'!C14) -> 0 | E34: 0 | I34: 襯衫 | J34: 0 | K34: 0
B35: 棉服 | C35: =SUMIFS('個人KPISales receipt(MTD）'!J:J,'個人KPISales receipt(MTD）'!A:A,'個人KPISales receipt(MTD）'!A3,'個人KPISales receipt(MTD）'!B:B,'個人KPISales receipt(MTD）'!B4,'個人KPISales receipt(MTD）'!C:C,'個人KPISales receipt(MTD）'!C9) -> 1 | D35: =SUMIFS('個人KPISales receipt(MTD）'!K:K,'個人KPISales receipt(MTD）'!A:A,'個人KPISales receipt(MTD）'!A3,'個人KPISales receipt(MTD）'!B:B,'個人KPISales receipt(MTD）'!B4,'個人KPISales receipt(MTD）'!C:C,'個人KPISales receipt(MTD）'!C9) -> 2140 | E35: 1 | I35: 棉服
B36: 羽絨服 | C36: =SUMIFS('個人KPISales receipt(MTD）'!J:J,'個人KPISales receipt(MTD）'!A:A,'個人KPISales receipt(MTD）'!A3,'個人KPISales receipt(MTD）'!B:B,'個人KPISales receipt(MTD）'!B4,'個人KPISales receipt(MTD）'!C:C,'個人KPISales receipt(MTD）'!C4) -> 8 | D36: =SUMIFS('個人KPISales receipt(MTD）'!K:K,'個人KPISales receipt(MTD）'!A:A,'個人KPISales receipt(MTD）'!A3,'個人KPISales receipt(MTD）'!B:B,'個人KPISales receipt(MTD）'!B4,'個人KPISales receipt(MTD）'!C:C,'個人KPISales receipt(MTD）'!C4) -> 14768 | I36: 羽絨服 | J36: 3 | K36: 5395
B37: 鞋 | C37: =SUMIFS('個人KPISales receipt(MTD）'!J:J,'個人KPISales receipt(MTD）'!A:A,'個人KPISales receipt(MTD）'!A3,'個人KPISales receipt(MTD）'!B:B,'個人KPISales receipt(MTD）'!B6) -> 28 | D37: =SUMIFS('個人KPISales receipt(MTD）'!K:K,'個人KPISales receipt(MTD）'!A:A,'個人KPISales receipt(MTD）'!A3,'個人KPISales receipt(MTD）'!B:B,'個人KPISales receipt(MTD）'!B6) -> 25733 | E37: 25 | I37: 鞋 | J37: 3 | K37: 2586
A40: khaki | B40: TW 5日 | C40: MTD | D40: ATV | E40: UPT | F40: NO | G40: QTY | I40: LW | J40: MTD | K40: ATV | L40: UPT | M40: NO | N40: QTY
C41: 89399 | D41: 2299 | E41: 3.4 | F41: 40 | G41: 139 | J41: 36421 | K41: 2577 | L41: 4.8 | M41: 14 | N41: 68
B42: VSLW | C42: =C41-J41 -> 52978 | D42: =D41-K41 -> -278 | E42: =E41-L41 -> -1.4 | F42: =F41-M41 -> 26 | G42: =G41-N41 -> 71
B44: 中類 | C44: 件數 | D44: 金額 | E44: VSLW尚欠 | I44: 中類 | J44: 件數 | K44: 金額
B45: 內衣類 | C45: =SUMIFS('個人KPISales receipt(MTD）'!J:J,'個人KPISales receipt(MTD）'!A:A,'個人KPISales receipt(MTD）'!A5,'個人KPISales receipt(MTD）'!B:B,'個人KPISales receipt(MTD）'!B4,'個人KPISales receipt(MTD）'!C:C,'個人KPISales receipt(MTD）'!C2) -> 0 | D45: =SUMIFS('個人KPISales receipt(MTD）'!K:K,'個人KPISales receipt(MTD）'!A:A,'個人KPISales receipt(MTD）'!A5,'個人KPISales receipt(MTD）'!B:B,'個人KPISales receipt(MTD）'!B4,'個人KPISales receipt(MTD）'!C:C,'個人KPISales receipt(MTD）'!C2) -> 0 | E45: =C45-J45 -> -6 | I45: 內衣類 | J45: 6 | K45: 5701
B46: 針織上衣 | C46: =SUMIFS('個人KPISales receipt(MTD）'!J:J,'個人KPISales receipt(MTD）'!A:A,'個人KPISales receipt(MTD）'!A5,'個人KPISales receipt(MTD）'!C:C,'個人KPISales receipt(MTD）'!C5) -> 9 | D46: =SUMIFS('個人KPISales receipt(MTD）'!K:K,'個人KPISales receipt(MTD）'!A:A,'個人KPISales receipt(MTD）'!A5,'個人KPISales receipt(MTD）'!B:B,'個人KPISales receipt(MTD）'!B4,'個人KPISales receipt(MTD）'!C:C,'個人KPISales receipt(MTD）'!C5) -> 11748 | E46: 7 | I46: 針織上衣 | J46: 2 | K46: 2289
B47: 針織褲 | C47: =SUMIFS('個人KPISales receipt(MTD）'!J:J,'個人KPISales receipt(MTD）'!A:A,'個人KPISales receipt(MTD）'!A5,'個人KPISales receipt(MTD）'!B:B,'個人KPISales receipt(MTD）'!B4,'個人KPISales receipt(MTD）'!C:C,'個人KPISales receipt(MTD）'!C6) -> 13 | D47: =SUMIFS('個人KPISales receipt(MTD）'!K:K,'個人KPISales receipt(MTD）'!A:A,'個人KPISales receipt(MTD）'!A5,'個人KPISales receipt(MTD）'!B:B,'個人KPISales receipt(MTD）'!B4,'個人KPISales receipt(MTD）'!C:C,'個人KPISales receipt(MTD）'!C6) -> 10993 | E47: 3 | I47: 針織褲 | J47: 10 | K47: 7556
B48: 梭織上衣 | C48: =SUMIFS('個人KPISales receipt(MTD）'!J:J,'個人KPISales receipt(MTD）'!A:A,'個人KPISales receipt(MTD）'!A5,'個人KPISales receipt(MTD）'!B:B,'個人KPISales receipt(MTD）'!B4,'個人KPISales receipt(MTD）'!C:C,'個人KPISales receipt(MTD）'!C7) -> 6 | D48: =SUMIFS('個人KPISales receipt(MTD）'!K:K,'個人KPISales receipt(MTD）'!A:A,'個人KPISales receipt(MTD）'!A5,'個人KPISales receipt(MTD）'!C:C,'個人KPISales receipt(MTD）'!C7) -> 10613 | E48: 2 | I48: 梭織上衣 | J48: 4 | K48: 7731
B49: 梭織褲 | C49: =SUMIFS('個人KPISales receipt(MTD）'!J:J,'個人KPISales receipt(MTD）'!A:A,'個人KPISales receipt(MTD）'!A5,'個人KPISales receipt(MTD）'!B:B,'個人KPISales receipt(MTD）'!B4,'個人KPISales receipt(MTD）'!C:C,'個人KPISales receipt(MTD）'!C8) -> 0 | D49: =SUMIFS('個人KPISales receipt(MTD）'!K:K,'個人KPISales receipt(MTD）'!A:A,'個人KPISales receipt(MTD）'!A5,'個人KPISales receipt(MTD）'!B:B,'個人KPISales receipt(MTD）'!B4,'個人KPISales receipt(MTD）'!C:C,'個人KPISales receipt(MTD）'!C8) -> 0 | E49: 0 | I49: 梭織褲
B50: 短T類 | C50: =SUMIFS('個人KPISales receipt(MTD）'!J:J,'個人KPISales receipt(MTD）'!A:A,'個人KPISales receipt(MTD）'!A5,'個人KPISales receipt(MTD）'!B:B,'個人KPISales receipt(MTD）'!B4,'個人KPISales receipt(MTD）'!C:C,'個人KPISales receipt(MTD）'!C10) -> 7 | D50: =SUMIFS('個人KPISales receipt(MTD）'!K:K,'個人KPISales receipt(MTD）'!A:A,'個人KPISales receipt(MTD）'!A5,'個人KPISales receipt(MTD）'!B:B,'個人KPISales receipt(MTD）'!B4,'個人KPISales receipt(MTD）'!C:C,'個人KPISales receipt(MTD）'!C10) -> 4895 | E50: 4 | I50: 短T類 | J50: 3 | K50: 1972
B51: 裙裝 | C51: =SUMIFS('個人KPISales receipt(MTD）'!J:J,'個人KPISales receipt(MTD）'!A:A,'個人KPISales receipt(MTD）'!A5,'個人KPISales receipt(MTD）'!C:C,'個人KPISales receipt(MTD）'!C12) -> 0 | D51: =SUMIFS('個人KPISales receipt(MTD）'!K:K,'個人KPISales receipt(MTD）'!A:A,'個人KPISales receipt(MTD）'!A5,'個人KPISales receipt(MTD）'!B:B,'個人KPISales receipt(MTD）'!B4,'個人KPISales receipt(MTD）'!C:C,'個人KPISales receipt(MTD）'!C12) -> 0 | E51: 0 | I51: 裙裝 | J51: 0 | K51: 0
B52: 編織衫 | C52: =SUMIFS('個人KPISales receipt(MTD）'!J:J,'個人KPISales receipt(MTD）'!A:A,'個人KPISales receipt(MTD）'!A5,'個人KPISales receipt(MTD）'!B:B,'個人KPISales receipt(MTD）'!B4,'個人KPISales receipt(MTD）'!C:C,'個人KPISales receipt(MTD）'!C13) -> 2 | D52: =SUMIFS('個人KPISales receipt(MTD）'!K:K,'個人KPISales receipt(MTD）'!A:A,'個人KPISales receipt(MTD）'!A5,'個人KPISales receipt(MTD）'!B:B,'個人KPISales receipt(MTD）'!B4,'個人KPISales receipt(MTD）'!C:C,'個人KPISales receipt(MTD）'!C13) -> 2183 | E52: 1 | I52: 編織衫 | J52: 1 | K52: 818
B53: 襯衫 | C53: =SUMIFS('個人KPISales receipt(MTD）'!J:J,'個人KPISales receipt(MTD）'!A:A,'個人KPISales receipt(MTD）'!A5,'個人KPISales receipt(MTD）'!B:B,'個人KPISales receipt(MTD）'!B4,'個人KPISales receipt(MTD）'!C:C,'個人KPISales receipt(MTD）'!C14) -> 0 | D53: =SUMIFS('個人KPISales receipt(MTD）'!K:K,'個人KPISales receipt(MTD）'!A:A,'個人KPISales receipt(MTD）'!A5,'個人KPISales receipt(MTD）'!B:B,'個人KPISales receipt(MTD）'!B4,'個人KPISales receipt(MTD）'!C:C,'個人KPISales receipt(MTD）'!C14) -> 0 | E53: 0 | I53: 襯衫 | J53: 0 | K53: 0
B54: 棉服 | C54: =SUMIFS('個人KPISales receipt(MTD）'!J:J,'個人KPISales receipt(MTD）'!A:A,'個人KPISales receipt(MTD）'!A5,'個人KPISales receipt(MTD）'!B:B,'個人KPISales receipt(MTD）'!B4,'個人KPISales receipt(MTD）'!C:C,'個人KPISales receipt(MTD）'!C9) -> 0 | D54: =SUMIFS('個人KPISales receipt(MTD）'!K:K,'個人KPISales receipt(MTD）'!A:A,'個人KPISales receipt(MTD）'!A5,'個人KPISales receipt(MTD）'!B:B,'個人KPISales receipt(MTD）'!B4,'個人KPISales receipt(MTD）'!C:C,'個人KPISales receipt(MTD）'!C9) -> 0 | E54: 0 | I54: 棉服 | J54: 0 | K54: 0
B55: 羽絨服 | C55: =SUMIFS('個人KPISales receipt(MTD）'!J:J,'個人KPISales receipt(MTD）'!A:A,'個人KPISales receipt(MTD）'!A5,'個人KPISales receipt(MTD）'!B:B,'個人KPISales receipt(MTD）'!B4,'個人KPISales receipt(MTD）'!C:C,'個人KPISales receipt(MTD）'!C4) -> 8 | D55: =SUMIFS('個人KPISales receipt(MTD）'!K:K,'個人KPISales receipt(MTD）'!A:A,'個人KPISales receipt(MTD）'!A5,'個人KPISales receipt(MTD）'!B:B,'個人KPISales receipt(MTD）'!B4,'個人KPISales receipt(MTD）'!C:C,'個人KPISales receipt(MTD）'!C4) -> 17213 | I55: 羽絨服 | J55: 2 | K55: 3236
B56: 鞋 | C56: =SUMIFS('個人KPISales receipt(MTD）'!J:J,'個人KPISales receipt(MTD）'!A:A,'個人KPISales receipt(MTD）'!A5,'個人KPISales receipt(MTD）'!B:B,'個人KPISales receipt(MTD）'!B6) -> 25 | D56: =SUMIFS('個人KPISales receipt(MTD）'!K:K,'個人KPISales receipt(MTD）'!A:A,'個人KPISales receipt(MTD）'!A5,'個人KPISales receipt(MTD）'!B:B,'個人KPISales receipt(MTD）'!B6) -> 23388 | E56: 20 | I56: 鞋 | J56: 5 | K56: 5926
A59: RYAN | B59: TW 5日 | C59: MTD | D59: ATV | E59: UPT | F59: NO | G59: QTY | I59: LW | J59: MTD | K59: ATV | L59: UPT | M59: NO | N59: QTY
C60: 106568 | D60: 2286 | E60: 3.6 | F60: 46 | G60: 167 | J60: 44416 | K60: 2494 | L60: 4.2 | M60: 18 | N60: 76
B61: VSLW | C61: =C60-J60 -> 62152 | D61: =D60-K60 -> -208 | E61: =E60-L60 -> -0.6 | F61: =F60-M60 -> 28 | G61: =G60-N60 -> 91
B63: 中類 | C63: 件數 | D63: 金額 | E63: VSLW尚欠 | I63: 中類 | J63: 件數 | K63: 金額
B64: 內衣類 | C64: =SUMIFS('個人KPISales receipt(MTD）'!J:J,'個人KPISales receipt(MTD）'!A:A,'個人KPISales receipt(MTD）'!A6,'個人KPISales receipt(MTD）'!B:B,'個人KPISales receipt(MTD）'!B4,'個人KPISales receipt(MTD）'!C:C,'個人KPISales receipt(MTD）'!C2) -> 0 | D64: =SUMIFS('個人KPISales receipt(MTD）'!K:K,'個人KPISales receipt(MTD）'!A:A,'個人KPISales receipt(MTD）'!A6,'個人KPISales receipt(MTD）'!B:B,'個人KPISales receipt(MTD）'!B4,'個人KPISales receipt(MTD）'!C:C,'個人KPISales receipt(MTD）'!C2) -> 0 | E64: =C64-J64 -> -7 | I64: 內衣類 | J64: 7 | K64: 5960
B65: 針織上衣 | C65: =SUMIFS('個人KPISales receipt(MTD）'!J:J,'個人KPISales receipt(MTD）'!A:A,'個人KPISales receipt(MTD）'!A6,'個人KPISales receipt(MTD）'!C:C,'個人KPISales receipt(MTD）'!C5) -> 12 | D65: =SUMIFS('個人KPISales receipt(MTD）'!K:K,'個人KPISales receipt(MTD）'!A:A,'個人KPISales receipt(MTD）'!A6,'個人KPISales receipt(MTD）'!B:B,'個人KPISales receipt(MTD）'!B4,'個人KPISales receipt(MTD）'!C:C,'個人KPISales receipt(MTD）'!C5) -> 16249 | E65: 9 | I65: 針織上衣 | J65: 3 | K65: 3708
B66: 針織褲 | C66: =SUMIFS('個人KPISales receipt(MTD）'!J:J,'個人KPISales receipt(MTD）'!A:A,'個人KPISales receipt(MTD）'!A6,'個人KPISales receipt(MTD）'!B:B,'個人KPISales receipt(MTD）'!B4,'個人KPISales receipt(MTD）'!C:C,'個人KPISales receipt(MTD）'!C6) -> 17 | D66: =SUMIFS('個人KPISales receipt(MTD）'!K:K,'個人KPISales receipt(MTD）'!A:A,'個人KPISales receipt(MTD）'!A6,'個人KPISales receipt(MTD）'!B:B,'個人KPISales receipt(MTD）'!B4,'個人KPISales receipt(MTD）'!C:C,'個人KPISales receipt(MTD）'!C6) -> 14031 | E66: 12 | I66: 針織褲 | J66: 5 | K66: 3691
B67: 梭織上衣 | C67: =SUMIFS('個人KPISales receipt(MTD）'!J:J,'個人KPISales receipt(MTD）'!A:A,'個人KPISales receipt(MTD）'!A6,'個人KPISales receipt(MTD）'!B:B,'個人KPISales receipt(MTD）'!B4,'個人KPISales receipt(MTD）'!C:C,'個人KPISales receipt(MTD）'!C7) -> 11 | D67: =SUMIFS('個人KPISales receipt(MTD）'!K:K,'個人KPISales receipt(MTD）'!A:A,'個人KPISales receipt(MTD）'!A6,'個人KPISales receipt(MTD）'!C:C,'個人KPISales receipt(MTD）'!C7) -> 18509 | E67: 6 | I67: 梭織上衣 | J67: 5 | K67: 8214
B68: 梭織褲 | C68: =SUMIFS('個人KPISales receipt(MTD）'!J:J,'個人KPISales receipt(MTD）'!A:A,'個人KPISales receipt(MTD）'!A6,'個人KPISales receipt(MTD）'!B:B,'個人KPISales receipt(MTD）'!B4,'個人KPISales receipt(MTD）'!C:C,'個人KPISales receipt(MTD）'!C8) -> 3 | D68: =SUMIFS('個人KPISales receipt(MTD）'!K:K,'個人KPISales receipt(MTD）'!A:A,'個人KPISales receipt(MTD）'!A6,'個人KPISales receipt(MTD）'!B:B,'個人KPISales receipt(MTD）'!B4,'個人KPISales receipt(MTD）'!C:C,'個人KPISales receipt(MTD）'!C8) -> 2394 | E68: 1 | I68: 梭織褲 | J68: 2 | K68: 2772
B69: 短T類 | C69: =SUMIFS('個人KPISales receipt(MTD）'!J:J,'個人KPISales receipt(MTD）'!A:A,'個人KPISales receipt(MTD）'!A6,'個人KPISales receipt(MTD）'!B:B,'個人KPISales receipt(MTD）'!B4,'個人KPISales receipt(MTD）'!C:C,'個人KPISales receipt(MTD）'!C10) -> 2 | D69: =SUMIFS('個人KPISales receipt(MTD）'!K:K,'個人KPISales receipt(MTD）'!A:A,'個人KPISales receipt(MTD）'!A6,'個人KPISales receipt(MTD）'!B:B,'個人KPISales receipt(MTD）'!B4,'個人KPISales receipt(MTD）'!C:C,'個人KPISales receipt(MTD）'!C10) -> 1546 | E69: 0 | I69: 短T類 | J69: 2 | K69: 1555
B70: 裙裝 | C70: =SUMIFS('個人KPISales receipt(MTD）'!J:J,'個人KPISales receipt(MTD）'!A:A,'個人KPISales receipt(MTD）'!A6,'個人KPISales receipt(MTD）'!C:C,'個人KPISales receipt(MTD）'!C12) -> 1 | D70: =SUMIFS('個人KPISales receipt(MTD）'!K:K,'個人KPISales receipt(MTD）'!A:A,'個人KPISales receipt(MTD）'!A6,'個人KPISales receipt(MTD）'!B:B,'個人KPISales receipt(MTD）'!B4,'個人KPISales receipt(MTD）'!C:C,'個人KPISales receipt(MTD）'!C12) -> 1346 | E70: 0 | I70: 裙裝 | J70: 1 | K70: 1346
B71: 編織衫 | C71: =SUMIFS('個人KPISales receipt(MTD）'!J:J,'個人KPISales receipt(MTD）'!A:A,'個人KPISales receipt(MTD）'!A6,'個人KPISales receipt(MTD）'!B:B,'個人KPISales receipt(MTD）'!B4,'個人KPISales receipt(MTD）'!C:C,'個人KPISales receipt(MTD）'!C13) -> 2 | D71: =SUMIFS('個人KPISales receipt(MTD）'!K:K,'個人KPISales receipt(MTD）'!A:A,'個人KPISales receipt(MTD）'!A6,'個人KPISales receipt(MTD）'!B:B,'個人KPISales receipt(MTD）'!B4,'個人KPISales receipt(MTD）'!C:C,'個人KPISales receipt(MTD）'!C13) -> 1836 | E71: 1 | I71: 編織衫 | J71: 1 | K71: 992
B72: 襯衫 | C72: =SUMIFS('個人KPISales receipt(MTD）'!J:J,'個人KPISales receipt(MTD）'!A:A,'個人KPISales receipt(MTD）'!A6,'個人KPISales receipt(MTD）'!B:B,'個人KPISales receipt(MTD）'!B4,'個人KPISales receipt(MTD）'!C:C,'個人KPISales receipt(MTD）'!C14) -> 0 | D72: =SUMIFS('個人KPISales receipt(MTD）'!K:K,'個人KPISales receipt(MTD）'!A:A,'個人KPISales receipt(MTD）'!A6,'個人KPISales receipt(MTD）'!B:B,'個人KPISales receipt(MTD）'!B4,'個人KPISales receipt(MTD）'!C:C,'個人KPISales receipt(MTD）'!C14) -> 0 | E72: 0 | I72: 襯衫 | J72: 0 | K72: 0
B73: 棉服 | C73: =SUMIFS('個人KPISales receipt(MTD）'!J:J,'個人KPISales receipt(MTD）'!A:A,'個人KPISales receipt(MTD）'!A6,'個人KPISales receipt(MTD）'!B:B,'個人KPISales receipt(MTD）'!B4,'個人KPISales receipt(MTD）'!C:C,'個人KPISales receipt(MTD）'!C9) -> 3 | D73: =SUMIFS('個人KPISales receipt(MTD）'!K:K,'個人KPISales receipt(MTD）'!A:A,'個人KPISales receipt(MTD）'!A6,'個人KPISales receipt(MTD）'!B:B,'個人KPISales receipt(MTD）'!B4,'個人KPISales receipt(MTD）'!C:C,'個人KPISales receipt(MTD）'!C9) -> 5312 | E73: 0 | I73: 棉服 | J73: 3 | K73: 5940
B74: 羽絨服 | C74: =SUMIFS('個人KPISales receipt(MTD）'!J:J,'個人KPISales receipt(MTD）'!A:A,'個人KPISales receipt(MTD）'!A6,'個人KPISales receipt(MTD）'!B:B,'個人KPISales receipt(MTD）'!B4,'個人KPISales receipt(MTD）'!C:C,'個人KPISales receipt(MTD）'!C4) -> 1 | D74: =SUMIFS('個人KPISales receipt(MTD）'!K:K,'個人KPISales receipt(MTD）'!A:A,'個人KPISales receipt(MTD）'!A6,'個人KPISales receipt(MTD）'!B:B,'個人KPISales receipt(MTD）'!B4,'個人KPISales receipt(MTD）'!C:C,'個人KPISales receipt(MTD）'!C4) -> 2873 | I74: 羽絨服
B75: 鞋 | C75: =SUMIFS('個人KPISales receipt(MTD）'!J:J,'個人KPISales receipt(MTD）'!A:A,'個人KPISales receipt(MTD）'!A6,'個人KPISales receipt(MTD）'!B:B,'個人KPISales receipt(MTD）'!B6) -> 31 | D75: =SUMIFS('個人KPISales receipt(MTD）'!K:K,'個人KPISales receipt(MTD）'!A:A,'個人KPISales receipt(MTD）'!A6,'個人KPISales receipt(MTD）'!B:B,'個人KPISales receipt(MTD）'!B6) -> 27017 | E75: 1 | I75: 鞋 | J75: 30 | K75: 26137
A78: FANNY | B78: TW 5日 | C78: MTD | D78: ATV | E78: UPT | F78: NO | G78: QTY | I78: LW | J78: MTD | K78: ATV | L78: UPT | M78: NO | N78: QTY
C79: 112271 | D79: 3231 | E79: 5.0 | F79: 35 | G79: 177 | J79: 56940 | K79: 2204 | L79: 3.5 | M79: 26 | N79: 91
B80: VSLW | C80: =C79-J79 -> 55331 | D80: =D79-K79 -> 1027 | E80: =E79-L79 -> 1.5 | F80: =F79-M79 -> 9 | G80: =G79-N79 -> 86
B82: 中類 | C82: 件數 | D82: 金額 | E82: VSLW尚欠 | I82: 中類 | J82: 件數 | K82: 金額
B83: 內衣類 | C83: =SUMIFS('個人KPISales receipt(MTD）'!J:J,'個人KPISales receipt(MTD）'!A:A,'個人KPISales receipt(MTD）'!A7,'個人KPISales receipt(MTD）'!B:B,'個人KPISales receipt(MTD）'!B4,'個人KPISales receipt(MTD）'!C:C,'個人KPISales receipt(MTD）'!C2) -> 0 | D83: =SUMIFS('個人KPISales receipt(MTD）'!K:K,'個人KPISales receipt(MTD）'!A:A,'個人KPISales receipt(MTD）'!A7,'個人KPISales receipt(MTD）'!B:B,'個人KPISales receipt(MTD）'!B4,'個人KPISales receipt(MTD）'!C:C,'個人KPISales receipt(MTD）'!C2) -> 0 | E83: =C83-J83 -> -8 | I83: 內衣類 | J83: 8 | K83: 6279
B84: 針織上衣 | C84: =SUMIFS('個人KPISales receipt(MTD）'!J:J,'個人KPISales receipt(MTD）'!A:A,'個人KPISales receipt(MTD）'!A7,'個人KPISales receipt(MTD）'!C:C,'個人KPISales receipt(MTD）'!C5) -> 7 | D84: =SUMIFS('個人KPISales receipt(MTD）'!K:K,'個人KPISales receipt(MTD）'!A:A,'個人KPISales receipt(MTD）'!A7,'個人KPISales receipt(MTD）'!B:B,'個人KPISales receipt(MTD）'!B4,'個人KPISales receipt(MTD）'!C:C,'個人KPISales receipt(MTD）'!C5) -> 8996 | E84: 2 | I84: 針織上衣 | J84: 5 | K84: 6104
B85: 針織褲 | C85: =SUMIFS('個人KPISales receipt(MTD）'!J:J,'個人KPISales receipt(MTD）'!A:A,'個人KPISales receipt(MTD）'!A7,'個人KPISales receipt(MTD）'!B:B,'個人KPISales receipt(MTD）'!B4,'個人KPISales receipt(MTD）'!C:C,'個人KPISales receipt(MTD）'!C6) -> 14 | D85: =SUMIFS('個人KPISales receipt(MTD）'!K:K,'個人KPISales receipt(MTD）'!A:A,'個人KPISales receipt(MTD）'!A7,'個人KPISales receipt(MTD）'!B:B,'個人KPISales receipt(MTD）'!B4,'個人KPISales receipt(MTD）'!C:C,'個人KPISales receipt(MTD）'!C6) -> 11131 | E85: 1 | I85: 針織褲 | J85: 13 | K85: 6104
B86: 梭織上衣 | C86: =SUMIFS('個人KPISales receipt(MTD）'!J:J,'個人KPISales receipt(MTD）'!A:A,'個人KPISales receipt(MTD）'!A7,'個人KPISales receipt(MTD）'!B:B,'個人KPISales receipt(MTD）'!B4,'個人KPISales receipt(MTD）'!C:C,'個人KPISales receipt(MTD）'!C7) -> 17 | D86: =SUMIFS('個人KPISales receipt(MTD）'!K:K,'個人KPISales receipt(MTD）'!A:A,'個人KPISales receipt(MTD）'!A7,'個人KPISales receipt(MTD）'!C:C,'個人KPISales receipt(MTD）'!C7) -> 30138 | E86: 12 | I86: 梭織上衣 | J86: 5 | K86: 9821
B87: 梭織褲 | C87: =SUMIFS('個人KPISales receipt(MTD）'!J:J,'個人KPISales receipt(MTD）'!A:A,'個人KPISales receipt(MTD）'!A7,'個人KPISales receipt(MTD）'!B:B,'個人KPISales receipt(MTD）'!B4,'個人KPISales receipt(MTD）'!C:C,'個人KPISales receipt(MTD）'!C8) -> 4 | D87: =SUMIFS('個人KPISales receipt(MTD）'!K:K,'個人KPISales receipt(MTD）'!A:A,'個人KPISales receipt(MTD）'!A7,'個人KPISales receipt(MTD）'!B:B,'個人KPISales receipt(MTD）'!B4,'個人KPISales receipt(MTD）'!C:C,'個人KPISales receipt(MTD）'!C8) -> 4038 | E87: 2 | I87: 梭織褲 | J87: 2 | K87: 3038
B88: 短T類 | C88: =SUMIFS('個人KPISales receipt(MTD）'!J:J,'個人KPISales receipt(MTD）'!A:A,'個人KPISales receipt(MTD）'!A7,'個人KPISales receipt(MTD）'!B:B,'個人KPISales receipt(MTD）'!B4,'個人KPISales receipt(MTD）'!C:C,'個人KPISales receipt(MTD）'!C10) -> 9 | D88: =SUMIFS('個人KPISales receipt(MTD）'!K:K,'個人KPISales receipt(MTD）'!A:A,'個人KPISales receipt(MTD）'!A7,'個人KPISales receipt(MTD）'!B:B,'個人KPISales receipt(MTD）'!B4,'個人KPISales receipt(MTD）'!C:C,'個人KPISales receipt(MTD）'!C10) -> 7221 | E88: 3 | I88: 短T類 | J88: 6 | K88: 4237
B89: 裙裝 | C89: =SUMIFS('個人KPISales receipt(MTD）'!J:J,'個人KPISales receipt(MTD）'!A:A,'個人KPISales receipt(MTD）'!A7,'個人KPISales receipt(MTD）'!C:C,'個人KPISales receipt(MTD）'!C12) -> 0 | D89: =SUMIFS('個人KPISales receipt(MTD）'!K:K,'個人KPISales receipt(MTD）'!A:A,'個人KPISales receipt(MTD）'!A7,'個人KPISales receipt(MTD）'!B:B,'個人KPISales receipt(MTD）'!B4,'個人KPISales receipt(MTD）'!C:C,'個人KPISales receipt(MTD）'!C12) -> 0 | E89: 0 | I89: 裙裝
B90: 編織衫 | C90: =SUMIFS('個人KPISales receipt(MTD）'!J:J,'個人KPISales receipt(MTD）'!A:A,'個人KPISales receipt(MTD）'!A7,'個人KPISales receipt(MTD）'!B:B,'個人KPISales receipt(MTD）'!B4,'個人KPISales receipt(MTD）'!C:C,'個人KPISales receipt(MTD）'!C13) -> 1 | D90: =SUMIFS('個人KPISales receipt(MTD）'!K:K,'個人KPISales receipt(MTD）'!A:A,'個人KPISales receipt(MTD）'!A7,'個人KPISales receipt(MTD）'!B:B,'個人KPISales receipt(MTD）'!B4,'個人KPISales receipt(MTD）'!C:C,'個人KPISales receipt(MTD）'!C13) -> 862 | E90: -4 | I90: 編織衫 | J90: 5 | K90: 6284
B91: 襯衫 | C91: =SUMIFS('個人KPISales receipt(MTD）'!J:J,'個人KPISales receipt(MTD）'!A:A,'個人KPISales receipt(MTD）'!A7,'個人KPISales receipt(MTD）'!B:B,'個人KPISales receipt(MTD）'!B4,'個人KPISales receipt(MTD）'!C:C,'個人KPISales receipt(MTD）'!C14) -> 0 | D91: =SUMIFS('個人KPISales receipt(MTD）'!K:K,'個人KPISales receipt(MTD）'!A:A,'個人KPISales receipt(MTD）'!A7,'個人KPISales receipt(MTD）'!B:B,'個人KPISales receipt(MTD）'!B4,'個人KPISales receipt(MTD）'!C:C,'個人KPISales receipt(MTD）'!C14) -> 0 | E91: 0 | I91: 襯衫 | J91: 0 | K91: 0
B92: 棉服 | C92: =SUMIFS('個人KPISales receipt(MTD）'!J:J,'個人KPISales receipt(MTD）'!A:A,'個人KPISales receipt(MTD）'!A7,'個人KPISales receipt(MTD）'!B:B,'個人KPISales receipt(MTD）'!B4,'個人KPISales receipt(MTD）'!C:C,'個人KPISales receipt(MTD）'!C9) -> 1 | D92: =SUMIFS('個人KPISales receipt(MTD）'!K:K,'個人KPISales receipt(MTD）'!A:A,'個人KPISales receipt(MTD）'!A7,'個人KPISales receipt(MTD）'!B:B,'個人KPISales receipt(MTD）'!B4,'個人KPISales receipt(MTD）'!C:C,'個人KPISales receipt(MTD）'!C9) -> 1715 | E92: 1 | I92: 棉服
B93: 羽絨服 | C93: =SUMIFS('個人KPISales receipt(MTD）'!J:J,'個人KPISales receipt(MTD）'!A:A,'個人KPISales receipt(MTD）'!A7,'個人KPISales receipt(MTD）'!B:B,'個人KPISales receipt(MTD）'!B4,'個人KPISales receipt(MTD）'!C:C,'個人KPISales receipt(MTD）'!C4) -> 7 | D93: =SUMIFS('個人KPISales receipt(MTD）'!K:K,'個人KPISales receipt(MTD）'!A:A,'個人KPISales receipt(MTD）'!A7,'個人KPISales receipt(MTD）'!B:B,'個人KPISales receipt(MTD）'!B4,'個人KPISales receipt(MTD）'!C:C,'個人KPISales receipt(MTD）'!C4) -> 13957 | I93: 羽絨服 | J93: 4 | K93: 5322
B94: 鞋 | C94: =SUMIFS('個人KPISales receipt(MTD）'!J:J,'個人KPISales receipt(MTD）'!A:A,'個人KPISales receipt(MTD）'!A7,'個人KPISales receipt(MTD）'!B:B,'個人KPISales receipt(MTD）'!B6) -> 17 | D94: =SUMIFS('個人KPISales receipt(MTD）'!K:K,'個人KPISales receipt(MTD）'!A:A,'個人KPISales receipt(MTD）'!A7,'個人KPISales receipt(MTD）'!B:B,'個人KPISales receipt(MTD）'!B6) -> 14850 | E94: 12 | I94: 鞋 | J94: 5 | K94: 4618
A97: CARMEN | B97: TW 5日 | C97: MTD | D97: ATV | E97: UPT | F97: NO | G97: QTY | I97: LW | J97: MTD | K97: ATV | L97: UPT | M97: NO | N97: QTY
C98: 85470 | D98: 2664 | E98: 3.5 | F98: 31 | G98: 111 | J98: 52177 | K98: 3981 | L98: 4.0 | M98: 15 | N98: 88
B99: VSLW | C99: =C98-J98 -> 33293 | D99: =D98-K98 -> -1317 | E99: =E98-L98 -> -0.5 | F99: =F98-M98 -> 16 | G99: =G98-N98 -> 23
C100: 56244 | D100: 2017 | E100: 3.4 | F100: 28 | G100: 97
B101: 中類 | C101: 件數 | D101: 金額 | E101: VSLW尚欠 | I101: 中類 | J101: 件數 | K101: 金額
B102: 內衣類 | C102: =SUMIFS('個人KPISales receipt(MTD）'!J:J,'個人KPISales receipt(MTD）'!A:A,'個人KPISales receipt(MTD）'!A8,'個人KPISales receipt(MTD）'!B:B,'個人KPISales receipt(MTD）'!B4,'個人KPISales receipt(MTD）'!C:C,'個人KPISales receipt(MTD）'!C2) -> 0 | D102: =SUMIFS('個人KPISales receipt(MTD）'!K:K,'個人KPISales receipt(MTD）'!A:A,'個人KPISales receipt(MTD）'!A8,'個人KPISales receipt(MTD）'!B:B,'個人KPISales receipt(MTD）'!B4,'個人KPISales receipt(MTD）'!C:C,'個人KPISales receipt(MTD）'!C2) -> 0 | E102: =C102-J102 -> -6 | I102: 內衣類 | J102: 6 | K102: 3885
B103: 針織上衣 | C103: =SUMIFS('個人KPISales receipt(MTD）'!J:J,'個人KPISales receipt(MTD）'!A:A,'個人KPISales receipt(MTD）'!A8,'個人KPISales receipt(MTD）'!C:C,'個人KPISales receipt(MTD）'!C5) -> 11 | D103: =SUMIFS('個人KPISales receipt(MTD）'!K:K,'個人KPISales receipt(MTD）'!A:A,'個人KPISales receipt(MTD）'!A8,'個人KPISales receipt(MTD）'!B:B,'個人KPISales receipt(MTD）'!B4,'個人KPISales receipt(MTD）'!C:C,'個人KPISales receipt(MTD）'!C5) -> 13835 | E103: 8 | I103: 針織上衣 | J103: 3 | K103: 3717
B104: 針織褲 | C104: =SUMIFS('個人KPISales receipt(MTD）'!J:J,'個人KPISales receipt(MTD）'!A:A,'個人KPISales receipt(MTD）'!A8,'個人KPISales receipt(MTD）'!B:B,'個人KPISales receipt(MTD）'!B4,'個人KPISales receipt(MTD）'!C:C,'個人KPISales receipt(MTD）'!C6) -> 9 | D104: =SUMIFS('個人KPISales receipt(MTD）'!K:K,'個人KPISales receipt(MTD）'!A:A,'個人KPISales receipt(MTD）'!A8,'個人KPISales receipt(MTD）'!B:B,'個人KPISales receipt(MTD）'!B4,'個人KPISales receipt(MTD）'!C:C,'個人KPISales receipt(MTD）'!C6) -> 7296 | E104: 1 | I104: 針織褲 | J104: 8 | K104: 5768
B105: 梭織上衣 | C105: =SUMIFS('個人KPISales receipt(MTD）'!J:J,'個人KPISales receipt(MTD）'!A:A,'個人KPISales receipt(MTD）'!A8,'個人KPISales receipt(MTD）'!B:B,'個人KPISales receipt(MTD）'!B4,'個人KPISales receipt(MTD）'!C:C,'個人KPISales receipt(MTD）'!C7) -> 6 | D105: =SUMIFS('個人KPISales receipt(MTD）'!K:K,'個人KPISales receipt(MTD）'!A:A,'個人KPISales receipt(MTD）'!A8,'個人KPISales receipt(MTD）'!C:C,'個人KPISales receipt(MTD）'!C7) -> 10405 | E105: 0 | I105: 梭織上衣 | J105: 6 | K105: 10386
B106: 梭織褲 | C106: =SUMIFS('個人KPISales receipt(MTD）'!J:J,'個人KPISales receipt(MTD）'!A:A,'個人KPISales receipt(MTD）'!A8,'個人KPISales receipt(MTD）'!B:B,'個人KPISales receipt(MTD）'!B4,'個人KPISales receipt(MTD）'!C:C,'個人KPISales receipt(MTD）'!C8) -> 3 | D106: =SUMIFS('個人KPISales receipt(MTD）'!K:K,'個人KPISales receipt(MTD）'!A:A,'個人KPISales receipt(MTD）'!A8,'個人KPISales receipt(MTD）'!B:B,'個人KPISales receipt(MTD）'!B4,'個人KPISales receipt(MTD）'!C:C,'個人KPISales receipt(MTD）'!C8) -> 3169 | E106: 2 | I106: 梭織褲 | J106: 1 | K106: 969
B107: 短T類 | C107: =SUMIFS('個人KPISales receipt(MTD）'!J:J,'個人KPISales receipt(MTD）'!A:A,'個人KPISales receipt(MTD）'!A8,'個人KPISales receipt(MTD）'!B:B,'個人KPISales receipt(MTD）'!B4,'個人KPISales receipt(MTD）'!C:C,'個人KPISales receipt(MTD）'!C10) -> 4 | D107: =SUMIFS('個人KPISales receipt(MTD）'!K:K,'個人KPISales receipt(MTD）'!A:A,'個人KPISales receipt(MTD）'!A8,'個人KPISales receipt(MTD）'!B:B,'個人KPISales receipt(MTD）'!B4,'個人KPISales receipt(MTD）'!C:C,'個人KPISales receipt(MTD）'!C10) -> 2262 | E107: -4 | I107: 短T類 | J107: 8 | K107: 4699
B108: 裙裝 | C108: =SUMIFS('個人KPISales receipt(MTD）'!J:J,'個人KPISales receipt(MTD）'!A:A,'個人KPISales receipt(MTD）'!A8,'個人KPISales receipt(MTD）'!C:C,'個人KPISales receipt(MTD）'!C12) -> 0 | D108: =SUMIFS('個人KPISales receipt(MTD）'!K:K,'個人KPISales receipt(MTD）'!A:A,'個人KPISales receipt(MTD）'!A8,'個人KPISales receipt(MTD）'!B:B,'個人KPISales receipt(MTD）'!B4,'個人KPISales receipt(MTD）'!C:C,'個人KPISales receipt(MTD）'!C12) -> 0 | E108: 0 | I108: 裙裝
B109: 編織衫 | C109: =SUMIFS('個人KPISales receipt(MTD）'!J:J,'個人KPISales receipt(MTD）'!A:A,'個人KPISales receipt(MTD）'!A8,'個人KPISales receipt(MTD）'!B:B,'個人KPISales receipt(MTD）'!B4,'個人KPISales receipt(MTD）'!C:C,'個人KPISales receipt(MTD）'!C13) -> 3 | D109: =SUMIFS('個人KPISales receipt(MTD）'!K:K,'個人KPISales receipt(MTD）'!A:A,'個人KPISales receipt(MTD）'!A8,'個人KPISales receipt(MTD）'!B:B,'個人KPISales receipt(MTD）'!B4,'個人KPISales receipt(MTD）'!C:C,'個人KPISales receipt(MTD）'!C13) -> 3438 | E109: -3 | I109: 編織衫 | J109: 6 | K109: 6045
B110: 襯衫 | C110: =SUMIFS('個人KPISales receipt(MTD）'!J:J,'個人KPISales receipt(MTD）'!A:A,'個人KPISales receipt(MTD）'!A8,'個人KPISales receipt(MTD）'!B:B,'個人KPISales receipt(MTD）'!B4,'個人KPISales receipt(MTD）'!C:C,'個人KPISales receipt(MTD）'!C14) -> 0 | D110: =SUMIFS('個人KPISales receipt(MTD）'!K:K,'個人KPISales receipt(MTD）'!A:A,'個人KPISales receipt(MTD）'!A8,'個人KPISales receipt(MTD）'!B:B,'個人KPISales receipt(MTD）'!B4,'個人KPISales receipt(MTD）'!C:C,'個人KPISales receipt(MTD）'!C14) -> 0 | E110: 0 | I110: 襯衫 | J110: 0 | K110: 0
B111: 棉服 | C111: =SUMIFS('個人KPISales receipt(MTD）'!J:J,'個人KPISales receipt(MTD）'!A:A,'個人KPISales receipt(MTD）'!A8,'個人KPISales receipt(MTD）'!B:B,'個人KPISales receipt(MTD）'!B4,'個人KPISales receipt(MTD）'!C:C,'個人KPISales receipt(MTD）'!C9) -> 1 | D111: =SUMIFS('個人KPISales receipt(MTD）'!K:K,'個人KPISales receipt(MTD）'!A:A,'個人KPISales receipt(MTD）'!A8,'個人KPISales receipt(MTD）'!B:B,'個人KPISales receipt(MTD）'!B4,'個人KPISales receipt(MTD）'!C:C,'個人KPISales receipt(MTD）'!C9) -> 1797 | E111: 1 | I111: 棉服 | J111: 0 | K111: 0
B112: 羽絨服 | C112: =SUMIFS('個人KPISales receipt(MTD）'!J:J,'個人KPISales receipt(MTD）'!A:A,'個人KPISales receipt(MTD）'!A8,'個人KPISales receipt(MTD）'!B:B,'個人KPISales receipt(MTD）'!B4,'個人KPISales receipt(MTD）'!C:C,'個人KPISales receipt(MTD）'!C4) -> 5 | D112: =SUMIFS('個人KPISales receipt(MTD）'!K:K,'個人KPISales receipt(MTD）'!A:A,'個人KPISales receipt(MTD）'!A8,'個人KPISales receipt(MTD）'!B:B,'個人KPISales receipt(MTD）'!B4,'個人KPISales receipt(MTD）'!C:C,'個人KPISales receipt(MTD）'!C4) -> 10960 | I112: 羽絨服 | J112: 5 | K112: 10524
B113: 鞋 | C113: =SUMIFS('個人KPISales receipt(MTD）'!J:J,'個人KPISales receipt(MTD）'!A:A,'個人KPISales receipt(MTD）'!A8,'個人KPISales receipt(MTD）'!B:B,'個人KPISales receipt(MTD）'!B6) -> 16 | D113: =SUMIFS('個人KPISales receipt(MTD）'!K:K,'個人KPISales receipt(MTD）'!A:A,'個人KPISales receipt(MTD）'!A8,'個人KPISales receipt(MTD）'!B:B,'個人KPISales receipt(MTD）'!B6) -> 14198 | E113: 13 | I113: 鞋 | J113: 3 | K113: 1168

Sheet Sales receipt((當天)
A1: 營業員 | B1: 大類 | C1: 中類 | D1: 商品名稱 | E1: 季節 | F1: 系列 | G1: 子系列 | H1: 性別 | I1: 上市日期 | J1: 銷售數量 | K1: 結算金額 | L1: 銷售日期 | M1: 注冊時間 | N1: 回流判斷
A2: M0989 Susanna | B2: 广宣用品 | C2: 內衣類 | D2: DOWN JKT | E2: 冬季 | F2: ATHLETICS | G2: A.P. | H2: FEMALE | N2: 回流
A3: M2172 Janet | B3: 其它 | C3: 內搭 | D3: PAD JKT | E3: 春季 | F3: FASHION | G3: BLUE | H3: MALE | N3: 新注册
A4: M2518 Silver | B4: 服装 | C4: 羽絨服 | D4: PAD VEST | E4: 秋季 | F4: LIFESTYLE | G4: EXPLORE | H4: UNISEX | N4: (空白)
A5: M1436 Khaki | B5: 配件 | C5: 針織上衣 | D5: SKIRT | E5: 夏季 | F5: (空白) | G5: FILA MILANO | H5: (空白)
A6: M2798 Ryan | B6: 鞋类 | C6: 針織褲 | D6: SWEAT | E6: 常青 | G6: FILA ORIGINALE
A7: M2801 Fanny | B7: (空白) | C7: 梭織上衣 | D7: WOVEN JKT | E7: (空白) | G7: FITNESS
A8: M2902 Carmen | C8: 梭織褲 | D8: WOVEN PANTS | G8: GOLF
C9: 棉服 | D9: 上衣两件套 | G9: HERITAGE
C10: 短T類 | D10: 中长款羽绒服 | G10: ICONA
C11: 滑雪服 | D11: 长款羽绒服 | G11: MODERN HERITAGE
C12: 裙裝 | D12: 休闲西装 | G12: MODERNO
C13: 編織衫 | D13: 冲锋衣 | G13: ORIGINALE
C14: 襯衫 | D14: 冲锋衣两件套 | G14: SKI
D15: 羽绒马甲 | G15: SPORT PERFORMANCE
D16: 羽绒服 | G16: TENNIS
D17: 羽绒服两件套 | G17: WHITE
D18: 男装上衣 | G18: (空白)
D19: 针织马甲
D20: 针织打底裤
D21: 针织长袖POLO衫
D22: 针织长袖上衣
D23: 针织长袖外套
D24: 针织长袖衫
D25: 针织长裤
D26: 针织连帽上衣
D27: 针织连帽外套
D28: 针织背心
D29: 针织套头衫
D30: 针织短袖POLO衫
D31: 针织短袖连帽上衣
D32: 针织短袖衫
D33: 针织裙
D34: 呢子外套
D35: 连衣裙
D36: 轻薄羽绒服
D37: 梭织九分裤
D38: 梭织马甲
D39: 梭织五分裤
D40: 梭织外套
D41: 梭织长袖衬衫
D42: 梭织长裤
D43: 梭织裙
D44: 棉马甲
D45: 棉服
D46: 短裙（含短裤）
D47: 编织外套
D48: 编织连衣裙
D49: 编织衫
D50: 编织衫两件套
D51: 滑雪服
A96: 請把要分析的小票複製在以下
A97: M2172 Janet | B97: 鞋类 | C97: 運動鞋 | D97: 摩登运动鞋 | E97: 秋季 | F97: FASHION | G97: MODERNO | H97: MALE | I97: 2025-08-05 | J97: 1 | K97: 862 | L97: 2025-10-08 | M97: 斐樂大貨
A98: M2902 Carmen | B98: 鞋类 | C98: 運動鞋 | D98: 摩登运动鞋 | E98: 秋季 | F98: FASHION | G98: MODERNO | H98: MALE | I98: 2025-08-05 | J98: 1 | K98: 863 | L98: 2025-10-08 | M98: 斐樂大貨
A99: M2798 Ryan | B99: 鞋类 | C99: 運動鞋 | D99: 复古运动鞋 | E99: 秋季 | F99: FASHION | G99: ORIGINALE | H99: MALE | I99: 2025-08-05 | J99: 1 | K99: 712 | L99: 2025-10-08 | M99: 斐樂大貨 | N99: 回流
A100: M0989 Susanna | B100: 鞋类 | C100: 運動鞋 | D100: 复古运动鞋 | E100: 秋季 | F100: FASHION | G100: ORIGINALE | H100: MALE | I100: 2025-08-05 | J100: 1 | K100: 880 | L100: 2025-10-08 | M100: 斐樂大貨
A101: M2902 Carmen | B101: 鞋类 | C101: 運動鞋 | D101: 摩登运动鞋 | E101: 冬季 | F101: FASHION | G101: MODERNO | H101: MALE | I101: 2025-09-04 | J101: 1 | K101: 980 | L101: 2025-10-08 | M101: 斐樂大貨
A102: M2172 Janet | B102: 鞋类 | C102: 運動鞋 | D102: 复古运动鞋 | E102: 冬季 | F102: FASHION | G102: ORIGINALE | H102: MALE | I102: 2025-09-04 | J102: 1 | K102: 833 | L102: 2025-10-08 | M102: 斐樂大貨
A103: M2172 Janet | B103: 鞋类 | C103: 運動鞋 | D103: 复古运动鞋 | E103: 冬季 | F103: FASHION | G103: ORIGINALE | H103: MALE | I103: 2025-09-04 | J103: 1 | K103: 833 | L103: 2025-10-08 | M103: 斐樂大貨
A104: M0989 Susanna | B104: 鞋类 | C104: 運動鞋 | D104: 摩登运动鞋 | E104: 秋季 | F104: FASHION | G104: MODERNO | H104: FEMALE | I104: 2025-07-03 | J104: 1 | K104: 980 | L104: 2025-10-08 | M104: 斐樂大貨
A105: M2902 Carmen | B105: 鞋类 | C105: 運動鞋 | D105: 摩登运动鞋 | E105: 冬季 | F105: FASHION | G105: MODERNO | H105: FEMALE | I105: 2025-09-04 | J105: 1 | K105: 803 | L105: 2025-10-08 | M105: 斐樂大貨 | N105: 回流
A106: M2902 Carmen | B106: 鞋类 | C106: 運動鞋 | D106: 摩登运动鞋 | E106: 冬季 | F106: FASHION | G106: MODERNO | H106: FEMALE | I106: 2025-09-04 | J106: 1 | K106: 803 | L106: 2025-10-08 | M106: 斐樂大貨 | N106: 回流
A107: M2798 Ryan | B107: 鞋类 | C107: 運動鞋 | D107: 复古运动鞋 | E107: 冬季 | F107: FASHION | G107: ORIGINALE | H107: FEMALE | I107: 2025-09-04 | J107: 1 | K107: 793 | L107: 2025-10-08 | M107: 斐樂大貨 | N107: 回流
A108: M2902 Carmen | B108: 鞋类 | C108: 跑步鞋 | D108: 路跑鞋 | E108: 冬季 | F108: ATHLETICS | G108: SPORT PERFORMANCE | H108: MALE | I108: 2025-09-04 | J108: 1 | K108: 803 | L108: 2025-10-08 | M108: 斐樂大貨 | N108: 回流
A109: M2798 Ryan | B109: 鞋类 | C109: 跑步鞋 | D109: 路跑鞋 | E109: 冬季 | F109: ATHLETICS | G109: SPORT PERFORMANCE | H109: MALE | I109: 2025-09-04 | J109: 1 | K109: 1116 | L109: 2025-10-08 | M109: 斐樂大貨 | N109: 回流
A110: M2172 Janet | B110: 鞋类 | C110: 跑步鞋 | D110: 户外鞋 | E110: 秋季 | F110: ATHLETICS | G110: SPORT PERFORMANCE | H110: FEMALE | I110: 2025-06-03 | J110: 1 | K110: 1004 | L110: 2025-10-08 | M110: 斐樂大貨
A111: M2902 Carmen | B111: 鞋类 | C111: 跑步鞋 | D111: 路跑鞋 | E111: 冬季 | F111: ATHLETICS | G111: SPORT PERFORMANCE | H111: FEMALE | I111: 2025-09-04 | J111: 1 | K111: 803 | L111: 2025-10-08 | M111: 斐樂大貨 | N111: 回流
A112: M2902 Carmen | B112: 鞋类 | C112: 跑步鞋 | D112: 路跑鞋 | E112: 冬季 | F112: ATHLETICS | G112: SPORT PERFORMANCE | H112: FEMALE | I112: 2025-09-04 | J112: 1 | K112: 803 | L112: 2025-10-08 | M112: 斐樂大貨 | N112: 回流
A113: M0989 Susanna | B113: 鞋类 | C113: 跑步鞋 | D113: 户外鞋 | E113: 冬季 | F113: ATHLETICS | G113: SPORT PERFORMANCE | H113: FEMALE | I113: 2025-09-04 | J113: 1 | K113: 1340 | L113: 2025-10-08 | M113: 斐樂大貨
A114: M2172 Janet | B114: 鞋类 | C114: 網球鞋 | D114: 网球生活鞋 | E114: 冬季 | F114: ATHLETICS | G114: SPORT PERFORMANCE | H114: MALE | I114: 2025-09-04 | J114: 1 | K114: 748 | L114: 2025-10-08 | M114: 斐樂大貨 | N114: 回流
A115: M2902 Carmen | B115: 鞋类 | C115: 網球鞋 | D115: 网球生活鞋 | E115: 冬季 | F115: ATHLETICS | G115: SPORT PERFORMANCE | H115: MALE | I115: 2025-09-04 | J115: 1 | K115: 774 | L115: 2025-10-08 | M115: 斐樂大貨
A116: M2172 Janet | B116: 鞋类 | C116: 網球鞋 | D116: 网球生活鞋 | E116: 冬季 | F116: ATHLETICS | G116: SPORT PERFORMANCE | H116: MALE | I116: 2025-09-04 | J116: 1 | K116: 748 | L116: 2025-10-08 | M116: 斐樂大貨 | N116: 回流
A117: M2902 Carmen | B117: 鞋类 | C117: 網球鞋 | D117: 网球生活鞋 | E117: 冬季 | F117: ATHLETICS | G117: SPORT PERFORMANCE | H117: MALE | I117: 2025-09-04 | J117: 1 | K117: 748 | L117: 2025-10-08 | M117: 斐樂大貨
A118: M0989 Susanna | B118: 鞋类 | C118: 網球鞋 | D118: 网球生活鞋 | E118: 冬季 | F118: ATHLETICS | G118: SPORT PERFORMANCE | H118: FEMALE | I118: 2025-09-04 | J118: 1 | K118: 880 | L118: 2025-10-08 | M118: 斐樂大貨
A119: M2902 Carmen | B119: 服装 | C119: 編織衫 | D119: 编织外套 | E119: 冬季 | F119: ATHLETICS | G119: GOLF | H119: 女 | I119: 2025-09-04 | J119: 1 | K119: 1940 | L119: 2025-10-08 | M119: 斐樂大貨
A120: M2902 Carmen | B120: 服装 | C120: 編織衫 | D120: 编织外套 | E120: 冬季 | F120: ATHLETICS | G120: GOLF | H120: 女 | I120: 2025-09-04 | J120: 2 | K120: 3177 | L120: 2025-10-08 | M120: 斐樂大貨 | N120: 回流
A121: M2902 Carmen | B121: 服装 | C121: 編織衫 | D121: 编织衫 | E121: 冬季 | F121: ATHLETICS | G121: GOLF | H121: FEMALE | I121: 2025-09-04 | J121: 1 | K121: 1480 | L121: 2025-10-08 | M121: 斐樂大貨
A122: M2902 Carmen | B122: 服装 | C122: 編織衫 | D122: 编织衫 | E122: 秋季 | F122: LIFESTYLE | G122: WHITE | H122: FEMALE | I122: 2025-08-05 | J122: 1 | K122: 963 | L122: 2025-10-08 | M122: 斐樂大貨 | N122: 回流
A123: M2172 Janet | B123: 服装 | C123: 短T類 | D123: 针织短袖衫 | E123: 冬季 | F123: LIFESTYLE | G123: HERITAGE | H123: MALE | I123: 2025-09-04 | J123: 1 | K123: 493 | L123: 2025-10-08 | M123: 斐樂大貨
A124: M2902 Carmen | B124: 服装 | C124: 短T類 | D124: 针织短袖POLO衫 | E124: 冬季 | F124: LIFESTYLE | G124: HERITAGE | H124: MALE | I124: 2025-09-04 | J124: 1 | K124: 629 | L124: 2025-10-08 | M124: 斐樂大貨
A125: M2902 Carmen | B125: 服装 | C125: 棉服 | D125: 棉马甲 | E125: 冬季 | F125: ATHLETICS | G125: GOLF | H125: 男 | I125: 2025-09-23 | J125: 1 | K125: 1884 | L125: 2025-10-08 | M125: 斐樂大貨
A126: M2798 Ryan | B126: 服装 | C126: 棉服 | D126: 棉服 | E126: 冬季 | F126: LIFESTYLE | G126: BLUE | H126: MALE | I126: 2025-10-09 | J126: 1 | K126: 2331 | L126: 2025-10-08 | M126: 斐樂大貨 | N126: 回流
A127: M2172 Janet | B127: 服装 | C127: 內搭 | D127: 针织长袖上衣 | E127: 冬季 | F127: ATHLETICS | G127: FITNESS | H127: MALE | I127: 2025-09-04 | J127: 1 | K127: 721 | L127: 2025-10-08 | M127: 斐樂大貨 | N127: 回流
A128: M2798 Ryan | B128: 服装 | C128: 內搭 | D128: 针织长袖POLO衫 | E128: 冬季 | F128: ATHLETICS | G128: GOLF | H128: MALE | I128: 2025-09-04 | J128: 1 | K128: 1360 | L128: 2025-10-08 | M128: 斐樂大貨 | N128: 回流
A129: M2798 Ryan | B129: 服装 | C129: 內搭 | D129: 针织套头衫 | E129: 冬季 | F129: ATHLETICS | H129: MALE | I129: 2025-09-23 | J129: 1 | K129: 1047 | L129: 2025-10-08 | M129: 斐樂大貨 | N129: 回流
A130: M2172 Janet | B130: 服装 | C130: 內搭 | D130: 针织套头衫 | E130: 冬季 | F130: ATHLETICS | H130: FEMALE | I130: 2025-09-23 | J130: 1 | K130: 1240 | L130: 2025-10-08 | M130: 斐樂大貨
A131: M2798 Ryan | B131: 服装 | C131: 內搭 | D131: 针织套头衫 | E131: 冬季 | F131: LIFESTYLE | G131: HERITAGE | H131: MALE | I131: 2025-09-04 | J131: 1 | K131: 714 | L131: 2025-10-08 | M131: 斐樂大貨
A132: M2172 Janet | B132: 服装 | C132: 內搭 | D132: 针织长袖衫 | E132: 冬季 | F132: LIFESTYLE | G132: FILA ORIGINALE | H132: MALE | I132: 2025-09-23 | J132: 1 | K132: 578 | L132: 2025-10-08 | M132: 斐樂大貨 | N132: 回流
A133: M2172 Janet | B133: 服装 | C133: 內搭 | D133: 针织长袖衫 | E133: 冬季 | F133: LIFESTYLE | G133: FILA ORIGINALE | H133: MALE | I133: 2025-09-23 | J133: 1 | K133: 578 | L133: 2025-10-08 | M133: 斐樂大貨 | N133: 回流
A134: M2798 Ryan | B134: 服装 | C134: 內搭 | D134: 针织连帽上衣 | E134: 冬季 | F134: LIFESTYLE | G134: FILA ORIGINALE | H134: FEMALE | I134: 2025-09-23 | J134: 1 | K134: 714 | L134: 2025-10-08 | M134: 斐樂大貨
A135: M1436 Khaki | B135: 服装 | C135: 內搭 | D135: 针织连帽上衣 | E135: 冬季 | F135: INLINE | G135: URBAN TECH | H135: MALE | I135: 2025-09-23 | J135: 1 | K135: 880 | L135: 2025-10-08 | M135: 斐樂潮牌
A136: M2902 Carmen | B136: 服装 | C136: 梭織褲 | D136: 梭织长裤 | E136: 秋季 | F136: ATHLETICS | G136: A.P. | H136: MALE | I136: 2025-06-03 | J136: 1 | K136: 969 | L136: 2025-10-08 | M136: 斐樂大貨
A137: M2172 Janet | B137: 服装 | C137: 梭織褲 | D137: 梭织长裤 | E137: 冬季 | F137: ATHLETICS | G137: GOLF | H137: MALE | I137: 2025-09-04 | J137: 1 | K137: 1376 | L137: 2025-10-08 | M137: 斐樂大貨 | N137: 回流
A138: M0989 Susanna | B138: 服装 | C138: 梭織上衣 | D138: 梭织外套 | E138: 冬季 | F138: LIFESTYLE | G138: WHITE | H138: MALE | I138: 2025-09-23 | J138: 1 | K138: 1479 | L138: 2025-10-08 | M138: 斐樂大貨
A139: M0989 Susanna | B139: 服装 | C139: 梭織上衣 | D139: 梭织外套 | E139: 冬季 | F139: LIFESTYLE | G139: HERITAGE | H139: MALE | I139: 2025-09-04 | J139: 1 | K139: 1479 | L139: 2025-10-08 | M139: 斐樂大貨
A140: M2902 Carmen | B140: 服装 | C140: 梭織上衣 | D140: 梭织外套 | E140: 冬季 | F140: LIFESTYLE | G140: FILA ORIGINALE | H140: MALE | I140: 2025-09-23 | J140: 1 | K140: 1638 | L140: 2025-10-08 | M140: 斐樂大貨 | N140: 回流
A141: M2798 Ryan | B141: 服装 | C141: 梭織上衣 | D141: 梭织外套 | E141: 冬季 | F141: LIFESTYLE | G141: WHITE | H141: FEMALE | I141: 2025-09-23 | J141: 1 | K141: 1680 | L141: 2025-10-08 | M141: 斐樂大貨
A142: M2172 Janet | B142: 服装 | C142: 羽絨服 | D142: 冲锋衣两件套 | E142: 冬季 | F142: ATHLETICS | G142: EXPLORE | H142: MALE | I142: 2025-10-09 | J142: 1 | K142: 3343 | L142: 2025-10-08 | M142: 斐樂大貨 | N142: 回流
A143: M2798 Ryan | B143: 服装 | C143: 羽絨服 | D143: 冲锋衣两件套 | E143: 冬季 | F143: ATHLETICS | G143: EXPLORE | H143: MALE | I143: 2025-10-09 | J143: 1 | K143: 3304 | L143: 2025-10-08 | M143: 斐樂大貨 | N143: 回流
A144: M2798 Ryan | B144: 服装 | C144: 針織褲 | D144: 针织长裤 | E144: 冬季 | F144: ATHLETICS | G144: FITNESS | H144: FEMALE | I144: 2025-09-04 | J144: 1 | K144: 828 | L144: 2025-10-08 | M144: 斐樂大貨 | N144: 回流
A145: M0989 Susanna | B145: 服装 | C145: 針織褲 | D145: 针织长裤 | E145: 冬季 | F145: LIFESTYLE | G145: WHITE | H145: MALE | I145: 2025-09-23 | J145: 1 | K145: 880 | L145: 2025-10-08 | M145: 斐樂大貨
A146: M2798 Ryan | B146: 服装 | C146: 針織褲 | D146: 针织长裤 | E146: 冬季 | F146: LIFESTYLE | G146: HERITAGE | H146: MALE | I146: 2025-09-04 | J146: 1 | K146: 714 | L146: 2025-10-08 | M146: 斐樂大貨
A147: M2902 Carmen | B147: 服装 | C147: 針織褲 | D147: 针织长裤 | E147: 冬季 | F147: LIFESTYLE | G147: HERITAGE | H147: MALE | I147: 2025-09-04 | J147: 1 | K147: 739 | L147: 2025-10-08 | M147: 斐樂大貨
A148: M2798 Ryan | B148: 服装 | C148: 針織褲 | D148: 针织长裤 | E148: 冬季 | F148: LIFESTYLE | G148: WHITE | H148: FEMALE | I148: 2025-09-23 | J148: 1 | K148: 794 | L148: 2025-10-08 | M148: 斐樂大貨 | N148: 回流
A149: M2798 Ryan | B149: 服装 | C149: 針織褲 | D149: 针织长裤 | E149: 冬季 | F149: LIFESTYLE | G149: HERITAGE | H149: FEMALE | I149: 2025-09-04 | J149: 1 | K149: 880 | L149: 2025-10-08 | M149: 斐樂大貨
A150: M2798 Ryan | B150: 服装 | C150: 針織褲 | D150: 针织长裤 | E150: 冬季 | F150: LIFESTYLE | G150: FILA ORIGINALE | H150: FEMALE | I150: 2025-09-23 | J150: 1 | K150: 714 | L150: 2025-10-08 | M150: 斐樂大貨
A151: M2172 Janet | B151: 服装 | C151: 針織上衣 | D151: 针织长袖外套 | E151: 冬季 | F151: LIFESTYLE | G151: FILA ORIGINALE | H151: MALE | I151: 2025-09-23 | J151: 1 | K151: 1258 | L151: 2025-10-08 | M151: 斐樂大貨 | N151: 回流
A152: M2902 Carmen | B152: 服装 | C152: 針織上衣 | D152: 针织长袖外套 | E152: 秋季 | F152: LIFESTYLE | G152: FILA ORIGINALE | H152: FEMALE | I152: 2025-08-19 | J152: 1 | K152: 934 | L152: 2025-10-08 | M152: 斐樂大貨 | N152: 回流
A153: M0989 Susanna | B153: 服装 | C153: 針織上衣 | D153: 针织长袖外套 | E153: 秋季 | F153: LIFESTYLE | G153: FILA ORIGINALE | H153: FEMALE | I153: 2025-08-19 | J153: 1 | K153: 1003 | L153: 2025-10-08 | M153: 斐樂大貨
A154: M2902 Carmen | B154: 服装 | C154: 針織上衣 | D154: 针织长袖外套 | E154: 秋季 | F154: LIFESTYLE | G154: FILA ORIGINALE | H154: FEMALE | I154: 2025-08-19 | J154: 1 | K154: 934 | L154: 2025-10-08 | M154: 斐樂大貨 | N154: 回流
A155: M2902 Carmen | B155: 服装 | C155: 針織上衣 | D155: 针织连帽外套 | E155: 冬季 | F155: LIFESTYLE | G155: WHITE | H155: FEMALE | I155: 2025-09-23 | J155: 1 | K155: 1250 | L155: 2025-10-08 | M155: 斐樂大貨 | N155: 回流
A156: M1436 Khaki | B156: 服装 | C156: 針織上衣 | D156: 针织长袖外套 | E156: 冬季 | F156: LIFESTYLE | G156: HERITAGE | H156: FEMALE | I156: 2025-09-04 | J156: 1 | K156: 1258 | L156: 2025-10-08 | M156: 斐樂大貨
A157: M0989 Susanna | B157: 服装 | C157: 針織上衣 | D157: 针织长袖外套 | E157: 冬季 | F157: LIFESTYLE | G157: HERITAGE | H157: FEMALE | I157: 2025-09-04 | J157: 1 | K157: 1302 | L157: 2025-10-08 | M157: 斐樂大貨
A158: M2902 Carmen | B158: 服装 | C158: 針織上衣 | D158: 针织长袖外套 | E158: 冬季 | F158: LIFESTYLE | G158: FILA ORIGINALE | H158: FEMALE | I158: 2025-09-23 | J158: 1 | K158: 1480 | L158: 2025-10-08 | M158: 斐樂大貨
A159: M1436 Khaki | B159: 配件 | C159: 包類 | D159: 挎包 | E159: 冬季 | F159: LIFESTYLE | G159: HERITAGE | H159: MALE | I159: 2025-09-04 | J159: 1 | K159: 578 | L159: 2025-10-08 | M159: 斐樂大貨
A160: M2798 Ryan | B160: 配件 | C160: 包類 | D160: 挎包 | E160: 冬季 | F160: LIFESTYLE | G160: HERITAGE | H160: MALE | I160: 2025-09-04 | J160: 1 | K160: 612 | L160: 2025-10-08 | M160: 斐樂大貨 | N160: 回流
A161: M1436 Khaki | B161: 配件 | C161: 帽類 | D161: 棒球帽 | E161: 冬季 | F161: INLINE | G161: FILA FUSION LIFE | H161: UNISEX | I161: 2025-09-04 | J161: 1 | K161: 289 | L161: 2025-10-08 | M161: 斐樂潮牌
A162: M2172 Janet | B162: 配件 | C162: 襪類 | D162: 浅口袜 | E162: 夏季 | F162: LIFESTYLE | G162: WHITE | H162: MALE | I162: 2025-03-06 | J162: 2 | K162: 120 | L162: 2025-10-08 | M162: 斐樂大貨 | N162: 回流
A163: M2902 Carmen | B163: 配件 | C163: 襪類 | D163: 浅口袜 | E163: 夏季 | F163: LIFESTYLE | G163: WHITE | H163: MALE | I163: 2025-03-06 | J163: 1 | K163: 60 | L163: 2025-10-08 | M163: 斐樂大貨
A164: M0989 Susanna | B164: 配件 | C164: 襪類 | D164: 浅口袜 | E164: 夏季 | F164: LIFESTYLE | G164: WHITE | H164: MALE | I164: 2025-03-06 | J164: 1 | K164: 60 | L164: 2025-10-08 | M164: 斐樂大貨
A165: M0989 Susanna | B165: 配件 | C165: 襪類 | D165: 中腰袜 | E165: 冬季 | F165: LIFESTYLE | G165: FILA ORIGINALE | H165: MALE | I165: 2025-09-04 | J165: 1 | K165: 70 | L165: 2025-10-08 | M165: 斐樂大貨
A166: M2798 Ryan | B166: 广宣用品 | C166: 促销品 | D166: FILA宽拉杆拉杆箱（白色） | E166: 常青 | H166: 不分 | I166: 2025-06-12 | J166: 1 | K166: 0 | L166: 2025-10-08 | M166: 斐樂大貨 | N166: 回流
A167: M2902 Carmen | B167: 广宣用品 | C167: 促销品 | D167: FILA宽拉杆拉杆箱（白色） | E167: 常青 | H167: 不分 | I167: 2025-06-12 | J167: 2 | K167: 0 | L167: 2025-10-08 | M167: 斐樂大貨 | N167: 回流
A168: M0989 Susanna | B168: 其它 | C168: 其它 | D168: PLASTIC BAG | E168: 春季 | H168: UNISEX | J168: 1 | K168: 1 | L168: 2025-10-08 | M168: 通用
A169: M2798 Ryan | B169: 其它 | C169: 其它 | D169: PLASTIC BAG | E169: 春季 | H169: UNISEX | J169: 1 | K169: 1 | L169: 2025-10-08 | M169: 通用
A170: M2798 Ryan | B170: 其它 | C170: 其它 | D170: PLASTIC BAG | E170: 春季 | H170: UNISEX | J170: 1 | K170: 1 | L170: 2025-10-08 | M170: 通用 | N170: 回流
A171: M2902 Carmen | B171: 其它 | C171: 其它 | D171: PLASTIC BAG | E171: 春季 | H171: UNISEX | J171: 2 | K171: 2 | L171: 2025-10-08 | M171: 通用
A172: M0989 Susanna | B172: 其它 | C172: 其它 | D172: PLASTIC BAG | E172: 春季 | H172: UNISEX | J172: 1 | K172: 1 | L172: 2025-10-08 | M172: 通用
A173: M2172 Janet | B173: 其它 | C173: 其它 | D173: PLASTIC BAG | E173: 春季 | H173: UNISEX | J173: 2 | K173: 2 | L173: 2025-10-08 | M173: 通用
A174: M2172 Janet | B174: 其它 | C174: 其它 | D174: PLASTIC BAG | E174: 春季 | H174: UNISEX | J174: 1 | K174: 1 | L174: 2025-10-08 | M174: 通用 | N174: 回流
A175: M0989 Susanna | B175: 其它 | C175: 其它 | D175: PLASTIC BAG | E175: 春季 | H175: UNISEX | J175: 3 | K175: 3 | L175: 2025-10-08 | M175: 通用
A176: M2172 Janet | B176: 其它 | C176: 其它 | D176: PLASTIC BAG | E176: 春季 | H176: UNISEX | J176: 1 | K176: 1 | L176: 2025-10-08 | M176: 通用
A177: M2172 Janet | B177: 其它 | C177: 其它 | D177: PLASTIC BAG | E177: 春季 | H177: UNISEX | J177: 1 | K177: 1 | L177: 2025-10-08 | M177: 通用 | N177: 回流
A178: M2902 Carmen | B178: 其它 | C178: 其它 | D178: PLASTIC BAG | E178: 春季 | H178: UNISEX | J178: 2 | K178: 2 | L178: 2025-10-08 | M178: 通用

Sheet 個人KPISales receipt(MTD）
A1: 營業員 | B1: 大類 | C1: 中類 | D1: 商品名稱 | E1: 季節 | F1: 系列 | G1: 子系列 | H1: 性別 | I1: 上市日期 | J1: 銷售數量 | K1: 結算金額 | L1: 銷售日期 | M1: 注冊時間 | N1: 回流判斷
A2: M0989 Susanna | B2: 广宣用品 | C2: 內衣類 | D2: DOWN JKT | E2: 冬季 | F2: ATHLETICS | G2: A.P. | H2: FEMALE | N2: 回流
A3: M2172 Janet | B3: 其它 | C3: 內搭 | D3: PAD JKT | E3: 春季 | F3: FASHION | G3: BLUE | H3: MALE | N3: 新注册
B4: 服装 | C4: 羽絨服 | D4: PAD VEST | E4: 秋季 | F4: LIFESTYLE | G4: EXPLORE | H4: UNISEX | N4: (空白)
A5: M1436 Khaki | B5: 配件 | C5: 針織上衣 | D5: SKIRT | E5: 夏季 | F5: (空白) | G5: FILA MILANO | H5: (空白)
A6: M2798 Ryan | B6: 鞋类 | C6: 針織褲 | D6: SWEAT | E6: 常青 | G6: FILA ORIGINALE
A7: M2801 Fanny | B7: (空白) | C7: 梭織上衣 | D7: WOVEN JKT | E7: (空白) | G7: FITNESS
A8: M2902 Carmen | C8: 梭織褲 | D8: WOVEN PANTS | G8: GOLF
C9: 棉服 | D9: 上衣两件套 | G9: HERITAGE
C10: 短T類 | D10: 中长款羽绒服 | G10: ICONA
C11: 滑雪服 | D11: 长款羽绒服 | G11: MODERN HERITAGE
C12: 裙裝 | D12: 休闲西装 | G12: MODERNO
C13: 編織衫 | D13: 冲锋衣 | G13: ORIGINALE
C14: 襯衫 | D14: 冲锋衣两件套 | G14: SKI
D15: 羽绒马甲 | G15: SPORT PERFORMANCE
D16: 羽绒服 | G16: TENNIS
D17: 羽绒服两件套 | G17: WHITE
D18: 男装上衣 | G18: (空白)
D19: 针织马甲
D20: 针织打底裤
D21: 针织长袖POLO衫
D22: 针织长袖上衣
D23: 针织长袖外套
D24: 针织长袖衫
D25: 针织长裤
D26: 针织连帽上衣
D27: 针织连帽外套
D28: 针织背心
D29: 针织套头衫
D30: 针织短袖POLO衫
D31: 针织短袖连帽上衣
D32: 针织短袖衫
D33: 针织裙
D34: 呢子外套
D35: 连衣裙
D36: 轻薄羽绒服
D37: 梭织九分裤
D38: 梭织马甲
D39: 梭织五分裤
D40: 梭织外套
D41: 梭织长袖衬衫
D42: 梭织长裤
D43: 梭织裙
D44: 棉马甲
D45: 棉服
D46: 短裙（含短裤）
D47: 编织外套
D48: 编织连衣裙
D49: 编织衫
D50: 编织衫两件套
D51: 滑雪服
A96: 請把要分析的小票複製在以下
A97: 營業員 | B97: 大類 | C97: 中類 | D97: 商品名稱 | E97: 季節 | F97: 系列 | G97: 子系列 | H97: 性別 | I97: 上市日期 | J97: 銷售數量 | K97: 結算金額 | L97: 銷售日期 | M97: 品牌 | N97: 回流判斷
A98: M2798 Ryan | B98: 鞋类 | C98: 運動鞋 | D98: 摩登运动鞋 | E98: 秋季 | F98: FASHION | G98: MODERNO | H98: MALE | I98: 2025-08-05 | J98: 1 | K98: 980 | L98: 2025-09-29 | M98: 斐樂大貨
A99: M1436 Khaki | B99: 鞋类 | C99: 運動鞋 | D99: 复古运动鞋 | E99: 秋季 | F99: FASHION | G99: ORIGINALE | H99: MALE | I99: 2025-08-05 | J99: 1 | K99: 748 | L99: 2025-09-29 | M99: 斐樂大貨
A100: M1436 Khaki | B100: 鞋类 | C100: 運動鞋 | D100: 复古运动鞋 | E100: 冬季 | F100: FASHION | G100: ORIGINALE | H100: FEMALE | I100: 2025-09-04 | J100: 1 | K100: 880 | L100: 2025-09-29 | M100: 斐樂大貨
A101: M0989 Susanna | B101: 鞋类 | C101: 跑步鞋 | D101: 户外鞋 | E101: 秋季 | F101: ATHLETICS | G101: SPORT PERFORMANCE | H101: MALE | I101: 2025-06-03 | J101: 1 | K101: 1147 | L101: 2025-09-29 | M101: 斐樂大貨 | N101: 回流
A102: M2172 Janet | B102: 鞋类 | C102: 跑步鞋 | D102: 路跑鞋 | E102: 冬季 | F102: ATHLETICS | G102: SPORT PERFORMANCE | H102: MALE | I102: 2025-09-04 | J102: 1 | K102: 833 | L102: 2025-09-29 | M102: 斐樂大貨 | N102: 回流
A103: M2172 Janet | B103: 鞋类 | C103: 跑步鞋 | D103: 路跑鞋 | E103: 冬季 | F103: ATHLETICS | G103: SPORT PERFORMANCE | H103: MALE | I103: 2025-09-04 | J103: 1 | K103: 833 | L103: 2025-09-29 | M103: 斐樂大貨 | N103: 回流
A104: M2172 Janet | B104: 鞋类 | C104: 跑步鞋 | D104: 路跑鞋 | E104: 冬季 | F104: ATHLETICS | G104: SPORT PERFORMANCE | H104: MALE | I104: 2025-09-04 | J104: 1 | K104: 1012 | L104: 2025-09-29 | M104: 斐樂大貨 | N104: 回流
A105: M0989 Susanna | B105: 鞋类 | C105: 跑步鞋 | D105: 路跑鞋 | E105: 冬季 | F105: ATHLETICS | G105: SPORT PERFORMANCE | H105: FEMALE | I105: 2025-09-04 | J105: 1 | K105: 833 | L105: 2025-09-29 | M105: 斐樂大貨
A106: M0989 Susanna | B106: 鞋类 | C106: 網球鞋 | D106: 网球生活鞋 | E106: 冬季 | F106: ATHLETICS | G106: SPORT PERFORMANCE | H106: FEMALE | I106: 2025-09-04 | J106: 1 | K106: 748 | L106: 2025-09-29 | M106: 斐樂大貨
A107: M0989 Susanna | B107: 服装 | C107: 編織衫 | D107: 编织衫 | E107: 冬季 | F107: ATHLETICS | G107: GOLF | H107: 男 | I107: 2025-09-04 | J107: 1 | K107: 1258 | L107: 2025-09-29 | M107: 斐樂大貨
A108: M2172 Janet | B108: 服装 | C108: 短T類 | D108: 针织短袖POLO衫 | E108: 秋季 | F108: ATHLETICS | G108: GOLF | H108: MALE | I108: 2025-07-22 | J108: 1 | K108: 1428 | L108: 2025-09-29 | M108: 斐樂大貨
A109: M1436 Khaki | B109: 服装 | C109: 短T類 | D109: 针织短袖POLO衫 | E109: 秋季 | F109: LIFESTYLE | G109: BLUE | H109: MALE | I109: 2025-06-19 | J109: 1 | K109: 1026 | L109: 2025-09-29 | M109: 斐樂大貨 | N109: 回流
A110: M2798 Ryan | B110: 服装 | C110: 短T類 | D110: 针织短袖POLO衫 | E110: 冬季 | F110: LIFESTYLE | G110: HERITAGE | H110: MALE | I110: 2025-09-04 | J110: 1 | K110: 740 | L110: 2025-09-29 | M110: 斐樂大貨
A111: M2798 Ryan | B111: 服装 | C111: 內搭 | D111: 针织长袖上衣 | E111: 冬季 | F111: ATHLETICS | G111: FITNESS | H111: MALE | I111: 2025-09-04 | J111: 1 | K111: 663 | L111: 2025-09-29 | M111: 斐樂大貨 | N111: 回流
A112: M2172 Janet | B112: 服装 | C112: 內搭 | D112: 针织长袖上衣 | E112: 冬季 | F112: ATHLETICS | G112: FITNESS | H112: MALE | I112: 2025-09-04 | J112: 1 | K112: 663 | L112: 2025-09-29 | M112: 斐樂大貨 | N112: 回流
A113: M0989 Susanna | B113: 服装 | C113: 內搭 | D113: 针织长袖上衣 | E113: 冬季 | F113: ATHLETICS | G113: FITNESS | H113: MALE | I113: 2025-09-04 | J113: 1 | K113: 753 | L113: 2025-09-29 | M113: 斐樂大貨 | N113: 回流
A114: M1436 Khaki | B114: 服装 | C114: 內搭 | D114: 针织长袖POLO衫 | E114: 冬季 | F114: ATHLETICS | G114: GOLF | H114: 男 | I114: 2025-09-04 | J114: 1 | K114: 1428 | L114: 2025-09-29 | M114: 斐樂大貨 | N114: 回流
A115: M1436 Khaki | B115: 服装 | C115: 內搭 | D115: 针织长袖上衣 | E115: 冬季 | F115: ATHLETICS | G115: GOLF | H115: 男 | I115: 2025-09-04 | J115: 1 | K115: 1258 | L115: 2025-09-29 | M115: 斐樂大貨
A116: M2172 Janet | B116: 服装 | C116: 梭織上衣 | D116: 梭织外套 | E116: 冬季 | F116: LIFESTYLE | G116: HERITAGE | H116: MALE | I116: 2025-09-04 | J116: 1 | K116: 1584 | L116: 2025-09-29 | M116: 斐樂大貨 | N116: 回流
A117: M2798 Ryan | B117: 服装 | C117: 羽絨服 | D117: 羽绒服两件套 | E117: 冬季 | F117: LIFESTYLE | G117: WHITE | H117: MALE | I117: 2025-11-20 | J117: 1 | K117: 2873 | L117: 2025-09-29 | M117: 斐樂大貨 | N117: 回流
A118: M0989 Susanna | B118: 服装 | C118: 羽絨服 | D118: 羽绒服 | E118: 冬季 | F118: LIFESTYLE | G118: FILA ORIGINALE | H118: MALE | I118: 2025-11-06 | J118: 1 | K118: 1926 | L118: 2025-09-29 | M118: 斐樂大貨 | N118: 回流
A119: M0989 Susanna | B119: 服装 | C119: 羽絨服 | D119: 羽绒服 | E119: 冬季 | F119: LIFESTYLE | G119: FILA ORIGINALE | H119: MALE | I119: 2025-11-06 | J119: 1 | K119: 1831 | L119: 2025-09-29 | M119: 斐樂大貨 | N119: 回流
A120: M2172 Janet | B120: 服装 | C120: 針織褲 | D120: 针织长裤 | E120: 冬季 | F120: ATHLETICS | G120: FITNESS | H120: MALE | I120: 2025-09-04 | J120: 1 | K120: 748 | L120: 2025-09-29 | M120: 斐樂大貨
A121: M1436 Khaki | B121: 服装 | C121: 針織褲 | D121: 针织长裤 | E121: 冬季 | F121: ATHLETICS | G121: FITNESS | H121: MALE | I121: 2025-09-04 | J121: 1 | K121: 748 | L121: 2025-09-29 | M121: 斐樂大貨 | N121: 回流
A122: M1436 Khaki | B122: 服装 | C122: 針織褲 | D122: 针织长裤 | E122: 冬季 | F122: ATHLETICS | G122: GOLF | H122: FEMALE | I122: 2025-09-23 | J122: 1 | K122: 1332 | L122: 2025-09-29 | M122: 斐樂大貨 | N122: 回流
A123: M0989 Susanna | B123: 服装 | C123: 針織褲 | D123: 针织长裤 | E123: 冬季 | F123: LIFESTYLE | G123: WHITE | H123: MALE | I123: 2025-09-23 | J123: 1 | K123: 753 | L123: 2025-09-29 | M123: 斐樂大貨 | N123: 回流
A124: M2172 Janet | B124: 服装 | C124: 針織褲 | D124: 针织长裤 | E124: 冬季 | F124: LIFESTYLE | G124: WHITE | H124: MALE | I124: 2025-09-23 | J124: 1 | K124: 768 | L124: 2025-09-29 | M124: 斐樂大貨 | N124: 回流
A125: M2172 Janet | B125: 服装 | C125: 針織褲 | D125: 针织长裤 | E125: 冬季 | F125: LIFESTYLE | G125: HERITAGE | H125: MALE | I125: 2025-09-04 | J125: 1 | K125: 748 | L125: 2025-09-29 | M125: 斐樂大貨 | N125: 回流
A126: M2172 Janet | B126: 服装 | C126: 針織褲 | D126: 针织长裤 | E126: 冬季 | F126: LIFESTYLE | G126: WHITE | H126: FEMALE | I126: 2025-09-23 | J126: 1 | K126: 880 | L126: 2025-09-29 | M126: 斐樂大貨
A127: M2172 Janet | B127: 服装 | C127: 針織褲 | D127: 针织长裤 | E127: 冬季 | F127: LIFESTYLE | G127: WHITE | H127: FEMALE | I127: 2025-09-23 | J127: 1 | K127: 768 | L127: 2025-09-29 | M127: 斐樂大貨 | N127: 回流
A128: M0989 Susanna | B128: 服装 | C128: 針織上衣 | D128: 针织长袖外套 | E128: 秋季 | F128: ATHLETICS | G128: FITNESS | H128: MALE | I128: 2025-07-22 | J128: 1 | K128: 1267 | L128: 2025-09-29 | M128: 斐樂大貨 | N128: 回流
A129: M0989 Susanna | B129: 服装 | C129: 針織上衣 | D129: 针织长袖外套 | E129: 秋季 | F129: ATHLETICS | G129: FITNESS | H129: MALE | I129: 2025-07-22 | J129: 1 | K129: 1258 | L129: 2025-09-29 | M129: 斐樂大貨
A130: M2798 Ryan | B130: 服装 | C130: 針織上衣 | D130: 针织长袖外套 | E130: 冬季 | F130: ATHLETICS | G130: FITNESS | H130: MALE | I130: 2025-09-04 | J130: 1 | K130: 1480 | L130: 2025-09-29 | M130: 斐樂大貨
A131: M0989 Susanna | B131: 服装 | C131: 針織上衣 | D131: 针织长袖外套 | E131: 冬季 | F131: ATHLETICS | G131: FITNESS | H131: FEMALE | I131: 2025-09-04 | J131: 1 | K131: 1267 | L131: 2025-09-29 | M131: 斐樂大貨 | N131: 回流
A132: M2798 Ryan | B132: 服装 | C132: 針織上衣 | D132: 针织连帽外套 | E132: 冬季 | F132: ATHLETICS | G132: FITNESS | H132: FEMALE | I132: 2025-09-04 | J132: 1 | K132: 1240 | L132: 2025-09-29 | M132: 斐樂大貨
A133: M1436 Khaki | B133: 服装 | C133: 針織上衣 | D133: 针织连帽外套 | E133: 冬季 | F133: ATHLETICS | G133: GOLF | H133: FEMALE | I133: 2025-09-23 | J133: 1 | K133: 1926 | L133: 2025-09-29 | M133: 斐樂大貨 | N133: 回流
A134: M1436 Khaki | B134: 服装 | C134: 針織上衣 | D134: 针织长袖外套 | E134: 秋季 | F134: LIFESTYLE | G134: BLUE | H134: MALE | I134: 2025-08-05 | J134: 1 | K134: 1649 | L134: 2025-09-29 | M134: 斐樂大貨 | N134: 回流
A135: M2172 Janet | B135: 服装 | C135: 針織上衣 | D135: 针织连帽外套 | E135: 冬季 | F135: LIFESTYLE | G135: WHITE | H135: FEMALE | I135: 2025-09-23 | J135: 1 | K135: 1208 | L135: 2025-09-29 | M135: 斐樂大貨 | N135: 回流
A136: M2172 Janet | B136: 配件 | C136: 包類 | D136: 背包 | E136: 秋季 | F136: LIFESTYLE | G136: WHITE | H136: MALE | I136: 2025-06-19 | J136: 1 | K136: 880 | L136: 2025-09-29 | M136: 斐樂大貨
A137: M0989 Susanna | B137: 配件 | C137: 帽類 | D137: 棒球帽 | E137: 夏季 | F137: ATHLETICS | G137: FITNESS | H137: MALE | I137: 2025-03-06 | J137: 1 | K137: 323 | L137: 2025-09-29 | M137: 斐樂大貨
A138: M2798 Ryan | B138: 配件 | C138: 襪類 | D138: 低腰袜 | E138: 夏季 | F138: ATHLETICS | G138: FITNESS | H138: FEMALE | I138: 2025-03-06 | J138: 1 | K138: 65 | L138: 2025-09-29 | M138: 斐樂大貨
A139: M2798 Ryan | B139: 配件 | C139: 襪類 | D139: 低腰袜 | E139: 秋季 | F139: ATHLETICS | G139: FITNESS | H139: FEMALE | I139: 2025-06-03 | J139: 1 | K139: 60 | L139: 2025-09-29 | M139: 斐樂大貨
A140: M0989 Susanna | B140: 配件 | C140: 襪類 | D140: 低腰袜 | E140: 春季 | F140: LIFESTYLE | G140: WHITE | H140: MALE | I140: 2025-01-07 | J140: 1 | K140: 51 | L140: 2025-09-29 | M140: 斐樂大貨
A141: M1436 Khaki | B141: 配件 | C141: 襪類 | D141: 低腰袜 | E141: 春季 | F141: LIFESTYLE | G141: FILA ORIGINALE | H141: MALE | I141: 2025-01-07 | J141: 2 | K141: 102 | L141: 2025-09-29 | M141: 斐樂大貨 | N141: 回流
A142: M1436 Khaki | B142: 配件 | C142: 襪類 | D142: 中腰袜 | E142: 春季 | F142: LIFESTYLE | G142: FILA ORIGINALE | H142: MALE | I142: 2024-12-05 | J142: 1 | K142: 70 | L142: 2025-09-29 | M142: 斐樂大貨
A143: M0989 Susanna | B143: 配件 | C143: 襪類 | D143: 中腰袜 | E143: 夏季 | F143: LIFESTYLE | G143: WHITE | H143: MALE | I143: 2025-03-06 | J143: 1 | K143: 60 | L143: 2025-09-29 | M143: 斐樂大貨
A144: M1436 Khaki | B144: 配件 | C144: 襪類 | D144: 中腰袜 | E144: 夏季 | F144: LIFESTYLE | G144: WHITE | H144: MALE | I144: 2025-03-06 | J144: 1 | K144: 70 | L144: 2025-09-29 | M144: 斐樂大貨
A145: M2798 Ryan | B145: 配件 | C145: 襪類 | D145: 浅口袜 | E145: 夏季 | F145: LIFESTYLE | G145: WHITE | H145: MALE | I145: 2025-03-06 | J145: 1 | K145: 60 | L145: 2025-09-29 | M145: 斐樂大貨
A146: M0989 Susanna | B146: 配件 | C146: 襪類 | D146: 低腰袜 | E146: 秋季 | F146: LIFESTYLE | G146: FILA ORIGINALE | H146: MALE | I146: 2025-06-03 | J146: 2 | K146: 102 | L146: 2025-09-29 | M146: 斐樂大貨 | N146: 回流
A147: M2798 Ryan | B147: 配件 | C147: 襪類 | D147: 低腰袜 | E147: 秋季 | F147: LIFESTYLE | G147: FILA ORIGINALE | H147: MALE | I147: 2025-06-03 | J147: 1 | K147: 51 | L147: 2025-09-29 | M147: 斐樂大貨 | N147: 回流
A148: M2172 Janet | B148: 配件 | C148: 襪類 | D148: 低腰袜 | E148: 冬季 | F148: LIFESTYLE | G148: WHITE | H148: MALE | I148: 2025-09-04 | J148: 1 | K148: 51 | L148: 2025-09-29 | M148: 斐樂大貨
A149: M1436 Khaki | B149: 配件 | C149: 襪類 | D149: 浅口袜 | E149: 秋季 | F149: LIFESTYLE | G149: FILA ORIGINALE | H149: FEMALE | I149: 2025-06-03 | J149: 1 | K149: 60 | L149: 2025-09-29 | M149: 斐樂大貨
A150: M2798 Ryan | B150: 配件 | C150: 襪類 | D150: 低腰袜 | E150: 冬季 | F150: LIFESTYLE | G150: HERITAGE | H150: FEMALE | I150: 2025-09-04 | J150: 1 | K150: 60 | L150: 2025-09-29 | M150: 斐樂大貨
A151: M2798 Ryan | B151: 配件 | C151: 襪類 | D151: 低腰袜 | E151: 冬季 | F151: LIFESTYLE | G151: HERITAGE | H151: FEMALE | I151: 2025-09-04 | J151: 1 | K151: 60 | L151: 2025-09-29 | M151: 斐樂大貨
A152: M2172 Janet | B152: 广宣用品 | C152: 促销品 | D152: FILA车载保温杯（白） | E152: 常青 | H152: 不分 | I152: 2025-05-29 | J152: 1 | K152: 0 | L152: 2025-09-29 | M152: 斐樂大貨 | N152: 回流
A153: M2798 Ryan | B153: 广宣用品 | C153: 促销品 | D153: FILA车载保温杯（白） | E153: 常青 | H153: 不分 | I153: 2025-05-29 | J153: 1 | K153: 0 | L153: 2025-09-29 | M153: 斐樂大貨 | N153: 回流
A154: M0989 Susanna | B154: 广宣用品 | C154: 促销品 | D154: FILA宽拉杆拉杆箱（白色） | E154: 常青 | H154: 不分 | I154: 2025-06-12 | J154: 1 | K154: 0 | L154: 2025-09-29 | M154: 斐樂大貨 | N154: 回流
A155: M2798 Ryan | B155: 其它 | C155: 其它 | D155: PLASTIC BAG | E155: 春季 | H155: UNISEX | J155: 1 | K155: 1 | L155: 2025-09-29 | M155: 通用 | N155: 回流
A156: M1436 Khaki | B156: 其它 | C156: 其它 | D156: PLASTIC BAG | E156: 春季 | H156: UNISEX | J156: 1 | K156: 1 | L156: 2025-09-29 | M156: 通用
A157: M1436 Khaki | B157: 其它 | C157: 其它 | D157: PLASTIC BAG | E157: 春季 | H157: UNISEX | J157: 1 | K157: 1 | L157: 2025-09-29 | M157: 通用 | N157: 回流
A158: M2798 Ryan | B158: 其它 | C158: 其它 | D158: PLASTIC BAG | E158: 春季 | H158: UNISEX | J158: 1 | K158: 1 | L158: 2025-09-29 | M158: 通用
A159: M0989 Susanna | B159: 其它 | C159: 其它 | D159: PLASTIC BAG | E159: 春季 | H159: UNISEX | J159: 2 | K159: 2 | L159: 2025-09-29 | M159: 通用
A160: M0989 Susanna | B160: 其它 | C160: 其它 | D160: PLASTIC BAG | E160: 春季 | H160: UNISEX | J160: 1 | K160: 1 | L160: 2025-09-29 | M160: 通用 | N160: 回流
A161: M1436 Khaki | B161: 其它 | C161: 其它 | D161: PLASTIC BAG | E161: 春季 | H161: UNISEX | J161: 1 | K161: 1 | L161: 2025-09-29 | M161: 通用
A162: M1436 Khaki | B162: 其它 | C162: 其它 | D162: PLASTIC BAG | E162: 春季 | H162: UNISEX | J162: 1 | K162: 1 | L162: 2025-09-29 | M162: 通用 | N162: 回流
A163: M2172 Janet | B163: 其它 | C163: 其它 | D163: PLASTIC BAG | E163: 春季 | H163: UNISEX | J163: 1 | K163: 1 | L163: 2025-09-29 | M163: 通用
A164: M2172 Janet | B164: 其它 | C164: 其它 | D164: PLASTIC BAG | E164: 春季 | H164: UNISEX | J164: 1 | K164: 1 | L164: 2025-09-29 | M164: 通用 | N164: 回流
A165: M2798 Ryan | B165: 鞋类 | C165: 運動鞋 | D165: 先锋运动鞋 | E165: 秋季 | F165: FASHION | G165: ICONA | H165: MALE | I165: 2025-07-03 | J165: 1 | K165: 998 | L165: 2025-09-30 | M165: 斐樂大貨 | N165: 回流
A166: M2798 Ryan | B166: 鞋类 | C166: 運動鞋 | D166: 摩登运动鞋 | E166: 冬季 | F166: FASHION | G166: MODERNO | H166: MALE | I166: 2025-09-04 | J166: 1 | K166: 833 | L166: 2025-09-30 | M166: 斐樂大貨
A167: M1436 Khaki | B167: 鞋类 | C167: 運動鞋 | D167: 复古运动鞋 | E167: 冬季 | F167: FASHION | G167: ORIGINALE | H167: MALE | I167: 2025-09-04 | J167: 1 | K167: 882 | L167: 2025-09-30 | M167: 斐樂大貨 | N167: 回流
A168: M2902 Carmen | B168: 鞋类 | C168: 運動鞋 | D168: 复古运动鞋 | E168: 冬季 | F168: FASHION | G168: ORIGINALE | H168: MALE | I168: 2025-09-04 | J168: 1 | K168: 792 | L168: 2025-09-30 | M168: 斐樂大貨 | N168: 回流
A169: M2902 Carmen | B169: 鞋类 | C169: 運動鞋 | D169: 复古运动鞋 | E169: 冬季 | F169: FASHION | G169: ORIGINALE | H169: MALE | I169: 2025-09-04 | J169: 1 | K169: 980 | L169: 2025-09-30 | M169: 斐樂大貨
A170: M2798 Ryan | B170: 鞋类 | C170: 運動鞋 | D170: 复古运动鞋 | E170: 冬季 | F170: FASHION | G170: ORIGINALE | H170: MALE | I170: 2025-09-04 | J170: 1 | K170: 833 | L170: 2025-09-30 | M170: 斐樂大貨
A171: M1436 Khaki | B171: 鞋类 | C171: 運動鞋 | D171: 摩登运动鞋 | E171: 冬季 | F171: FASHION | G171: MODERNO | H171: FEMALE | I171: 2025-09-04 | J171: 1 | K171: 980 | L171: 2025-09-30 | M171: 斐樂大貨
A172: M1436 Khaki | B172: 鞋类 | C172: 運動鞋 | D172: 复古运动鞋 | E172: 冬季 | F172: FASHION | G172: ORIGINALE | H172: FEMALE | I172: 2025-09-04 | J172: 1 | K172: 805 | L172: 2025-09-30 | M172: 斐樂大貨 | N172: 回流
A173: M2902 Carmen | B173: 鞋类 | C173: 跑步鞋 | D173: 路跑鞋 | E173: 冬季 | F173: ATHLETICS | G173: SPORT PERFORMANCE | H173: MALE | I173: 2025-09-04 | J173: 1 | K173: 1062 | L173: 2025-09-30 | M173: 斐樂大貨 | N173: 回流
A174: M2902 Carmen | B174: 鞋类 | C174: 跑步鞋 | D174: 户外鞋 | E174: 冬季 | F174: ATHLETICS | G174: SPORT PERFORMANCE | H174: FEMALE | I174: 2025-09-04 | J174: 1 | K174: 1147 | L174: 2025-09-30 | M174: 斐樂大貨 | N174: 回流
A175: M2902 Carmen | B175: 服装 | C175: 編織衫 | D175: 编织衫 | E175: 冬季 | F175: ATHLETICS | G175: GOLF | H175: 男 | I175: 2025-09-04 | J175: 1 | K175: 1267 | L175: 2025-09-30 | M175: 斐樂大貨 | N175: 回流
A176: M2902 Carmen | B176: 服装 | C176: 編織衫 | D176: 编织衫 | E176: 冬季 | F176: ATHLETICS | G176: GOLF | H176: FEMALE | I176: 2025-09-04 | J176: -1 | K176: -1480 | L176: 2025-09-30 | M176: 斐樂大貨 | N176: 回流
A177: M2172 Janet | B177: 服装 | C177: 編織衫 | D177: 编织衫 | E177: 冬季 | F177: LIFESTYLE | G177: HERITAGE | H177: FEMALE | I177: 2025-09-04 | J177: 1 | K177: 833 | L177: 2025-09-30 | M177: 斐樂大貨
A178: M1436 Khaki | B178: 服装 | C178: 短T類 | D178: 针织短袖POLO衫 | E178: 秋季 | F178: LIFESTYLE | G178: BLUE | H178: MALE | I178: 2025-06-19 | J178: 1 | K178: 969 | L178: 2025-09-30 | M178: 斐樂大貨 | N178: 回流
A179: M1436 Khaki | B179: 服装 | C179: 短T類 | D179: 针织短袖POLO衫 | E179: 冬季 | F179: LIFESTYLE | G179: HERITAGE | H179: MALE | I179: 2025-09-04 | J179: 1 | K179: 608 | L179: 2025-09-30 | M179: 斐樂大貨 | N179: 回流
A180: M2172 Janet | B180: 服装 | C180: 內搭 | D180: 针织长袖上衣 | E180: 冬季 | F180: ATHLETICS | G180: FITNESS | H180: MALE | I180: 2025-09-04 | J180: 1 | K180: 632 | L180: 2025-09-30 | M180: 斐樂大貨 | N180: 回流
A181: M1436 Khaki | B181: 服装 | C181: 內搭 | D181: 针织长袖上衣 | E181: 冬季 | F181: ATHLETICS | G181: FITNESS | H181: MALE | I181: 2025-09-04 | J181: 1 | K181: 663 | L181: 2025-09-30 | M181: 斐樂大貨 | N181: 回流
A182: M2902 Carmen | B182: 服装 | C182: 內搭 | D182: 针织长袖上衣 | E182: 冬季 | F182: ATHLETICS | G182: FITNESS | H182: MALE | I182: 2025-09-04 | J182: 1 | K182: 668 | L182: 2025-09-30 | M182: 斐樂大貨 | N182: 回流
A183: M2801 Fanny | B183: 服装 | C183: 內搭 | D183: 针织长袖POLO衫 | E183: 冬季 | F183: ATHLETICS | G183: GOLF | H183: 男 | I183: 2025-09-04 | J183: 1 | K183: 1403 | L183: 2025-09-30 | M183: 斐樂大貨 | N183: 回流
A184: M2801 Fanny | B184: 服装 | C184: 內搭 | D184: 针织套头衫 | E184: 冬季 | F184: ATHLETICS | H184: MALE | I184: 2025-09-23 | J184: 1 | K184: 1035 | L184: 2025-09-30 | M184: 斐樂大貨 | N184: 回流
A185: M2172 Janet | B185: 服装 | C185: 內搭 | D185: 针织套头衫 | E185: 冬季 | F185: ATHLETICS | H185: MALE | I185: 2025-09-23 | J185: 1 | K185: 1002 | L185: 2025-09-30 | M185: 斐樂大貨 | N185: 回流
A186: M2798 Ryan | B186: 服装 | C186: 內搭 | D186: 针织套头衫 | E186: 冬季 | F186: LIFESTYLE | G186: WHITE | H186: MALE | I186: 2025-09-23 | J186: 1 | K186: 708 | L186: 2025-09-30 | M186: 斐樂大貨 | N186: 回流
A187: M1436 Khaki | B187: 服装 | C187: 內搭 | D187: 针织套头衫 | E187: 冬季 | F187: LIFESTYLE | G187: HERITAGE | H187: MALE | I187: 2025-09-04 | J187: 1 | K187: 690 | L187: 2025-09-30 | M187: 斐樂大貨 | N187: 回流
A188: M2798 Ryan | B188: 服装 | C188: 內搭 | D188: 针织长袖衫 | E188: 冬季 | F188: LIFESTYLE | G188: FILA ORIGINALE | H188: MALE | I188: 2025-09-23 | J188: 1 | K188: 547 | L188: 2025-09-30 | M188: 斐樂大貨 | N188: 回流
A189: M2798 Ryan | B189: 服装 | C189: 內搭 | D189: 针织长袖POLO衫 | E189: 冬季 | F189: LIFESTYLE | G189: FILA ORIGINALE | H189: MALE | I189: 2025-09-23 | J189: 1 | K189: 711 | L189: 2025-09-30 | M189: 斐樂大貨 | N189: 回流
A190: M2172 Janet | B190: 服装 | C190: 內搭 | D190: 针织套头衫 | E190: 冬季 | F190: LIFESTYLE | G190: FILA ORIGINALE | H190: MALE | I190: 2025-09-23 | J190: 1 | K190: 632 | L190: 2025-09-30 | M190: 斐樂大貨 | N190: 回流
A191: M2798 Ryan | B191: 服装 | C191: 內搭 | D191: 针织套头衫 | E191: 冬季 | F191: LIFESTYLE | G191: FILA ORIGINALE | H191: MALE | I191: 2025-09-23 | J191: 1 | K191: 630 | L191: 2025-09-30 | M191: 斐樂大貨 | N191: 回流
A192: M2902 Carmen | B192: 服装 | C192: 梭織褲 | D192: 梭织长裤 | E192: 秋季 | F192: ATHLETICS | G192: A.P. | H192: MALE | I192: 2025-06-03 | J192: 1 | K192: 976 | L192: 2025-09-30 | M192: 斐樂大貨 | N192: 回流
A193: M2801 Fanny | B193: 服装 | C193: 梭織褲 | D193: 梭织长裤 | E193: 秋季 | F193: ATHLETICS | G193: A.P. | H193: MALE | I193: 2025-06-03 | J193: 1 | K193: 979 | L193: 2025-09-30 | M193: 斐樂大貨 | N193: 回流
A194: M2172 Janet | B194: 服装 | C194: 梭織褲 | D194: 梭织长裤 | E194: 冬季 | F194: ATHLETICS | H194: MALE | I194: 2025-09-23 | J194: 1 | K194: 620 | L194: 2025-09-30 | M194: 斐樂大貨
A195: M2801 Fanny | B195: 服装 | C195: 梭織褲 | D195: 梭织长裤 | E195: 冬季 | F195: ATHLETICS | H195: MALE | I195: 2025-09-23 | J195: 1 | K195: 880 | L195: 2025-09-30 | M195: 斐樂大貨 | N195: 回流
A196: M1436 Khaki | B196: 服装 | C196: 梭織上衣 | D196: 梭织外套 | E196: 冬季 | F196: ATHLETICS | G196: GOLF | H196: MALE | I196: 2025-09-04 | J196: 1 | K196: 2366 | L196: 2025-09-30 | M196: 斐樂大貨 | N196: 回流
A197: M2172 Janet | B197: 服装 | C197: 梭織上衣 | D197: 梭织外套 | E197: 冬季 | F197: LIFESTYLE | G197: HERITAGE | H197: MALE | I197: 2025-09-04 | J197: 1 | K197: 1649 | L197: 2025-09-30 | M197: 斐樂大貨 | N197: 回流
A198: M2798 Ryan | B198: 服装 | C198: 梭織上衣 | D198: 梭织外套 | E198: 冬季 | F198: LIFESTYLE | G198: HERITAGE | H198: MALE | I198: 2025-09-04 | J198: 1 | K198: 1351 | L198: 2025-09-30 | M198: 斐樂大貨 | N198: 回流
A199: M2902 Carmen | B199: 服装 | C199: 梭織上衣 | D199: 梭织外套 | E199: 冬季 | F199: LIFESTYLE | G199: WHITE | H199: FEMALE | I199: 2025-09-23 | J199: 1 | K199: 1680 | L199: 2025-09-30 | M199: 斐樂大貨 | N199: 回流
A200: M1436 Khaki | B200: 服装 | C200: 羽絨服 | D200: 羽绒马甲 | E200: 冬季 | F200: ATHLETICS | G200: GOLF | H200: 男 | I200: 2025-09-04 | J200: 1 | K200: 1819 | L200: 2025-09-30 | M200: 斐樂大貨 | N200: 回流
A201: M2902 Carmen | B201: 服装 | C201: 羽絨服 | D201: 女装外套 | E201: 冬季 | F201: ATHLETICS | G201: FITNESS | H201: FEMALE | I201: 2025-09-23 | J201: -1 | K201: -2480 | L201: 2025-09-30 | M201: 斐樂大貨 | N201: 回流
A202: M2172 Janet | B202: 服装 | C202: 羽絨服 | D202: 羽绒服 | E202: 冬季 | F202: LIFESTYLE | G202: WHITE | H202: MALE | I202: 2025-11-06 | J202: 1 | K202: 1925 | L202: 2025-09-30 | M202: 斐樂大貨 | N202: 回流
A203: M1436 Khaki | B203: 服装 | C203: 羽絨服 | D203: 羽绒服 | E203: 冬季 | F203: LIFESTYLE | G203: WHITE | H203: MALE | I203: 2025-11-06 | J203: 1 | K203: 1955 | L203: 2025-09-30 | M203: 斐樂大貨 | N203: 回流
A204: M2902 Carmen | B204: 服装 | C204: 羽絨服 | D204: 羽绒服两件套 | E204: 冬季 | F204: LIFESTYLE | G204: WHITE | H204: FEMALE | I204: 2025-11-20 | J204: 1 | K204: 3380 | L204: 2025-09-30 | M204: 斐樂大貨 | N204: 回流
A205: M1436 Khaki | B205: 服装 | C205: 羽絨服 | D205: 羽绒服两件套 | E205: 冬季 | F205: LIFESTYLE | G205: WHITE | H205: FEMALE | I205: 2025-11-20 | J205: 1 | K205: 2776 | L205: 2025-09-30 | M205: 斐樂大貨 | N205: 回流
A206: M2172 Janet | B206: 服装 | C206: 針織褲 | D206: 针织长裤 | E206: 冬季 | F206: ATHLETICS | G206: FITNESS | H206: MALE | I206: 2025-09-04 | J206: 1 | K206: 713 | L206: 2025-09-30 | M206: 斐樂大貨 | N206: 回流
A207: M2798 Ryan | B207: 服装 | C207: 針織褲 | D207: 针织长裤 | E207: 冬季 | F207: ATHLETICS | G207: FITNESS | H207: MALE | I207: 2025-09-04 | J207: 1 | K207: 708 | L207: 2025-09-30 | M207: 斐樂大貨 | N207: 回流
A208: M2902 Carmen | B208: 服装 | C208: 針織褲 | D208: 针织长裤 | E208: 冬季 | F208: ATHLETICS | G208: FITNESS | H208: MALE | I208: 2025-09-04 | J208: 1 | K208: 753 | L208: 2025-09-30 | M208: 斐樂大貨 | N208: 回流
A209: M2801 Fanny | B209: 服装 | C209: 針織褲 | D209: 针织长裤 | E209: 冬季 | F209: LIFESTYLE | G209: WHITE | H209: MALE | I209: 2025-09-23 | J209: 1 | K209: 735 | L209: 2025-09-30 | M209: 斐樂大貨 | N209: 回流
A210: M2798 Ryan | B210: 服装 | C210: 針織褲 | D210: 针织长裤 | E210: 冬季 | F210: LIFESTYLE | G210: FILA ORIGINALE | H210: MALE | I210: 2025-09-23 | J210: 1 | K210: 628 | L210: 2025-09-30 | M210: 斐樂大貨 | N210: 回流
A211: M2172 Janet | B211: 服装 | C211: 針織褲 | D211: 针织长裤 | E211: 冬季 | F211: LIFESTYLE | G211: WHITE | H211: FEMALE | I211: 2025-09-23 | J211: 1 | K211: 762 | L211: 2025-09-30 | M211: 斐樂大貨 | N211: 回流
A212: M2801 Fanny | B212: 服装 | C212: 針織褲 | D212: 针织长裤 | E212: 冬季 | F212: LIFESTYLE | G212: WHITE | H212: FEMALE | I212: 2025-09-23 | J212: 1 | K212: 785 | L212: 2025-09-30 | M212: 斐樂大貨 | N212: 回流
A213: M2172 Janet | B213: 服装 | C213: 針織褲 | D213: 针织长裤 | E213: 冬季 | F213: LIFESTYLE | G213: HERITAGE | H213: FEMALE | I213: 2025-09-04 | J213: 1 | K213: 799 | L213: 2025-09-30 | M213: 斐樂大貨
A214: M2902 Carmen | B214: 服装 | C214: 針織上衣 | D214: 针织长袖外套 | E214: 秋季 | F214: ATHLETICS | G214: FITNESS | H214: MALE | I214: 2025-07-22 | J214: 1 | K214: 1267 | L214: 2025-09-30 | M214: 斐樂大貨 | N214: 回流
A215: M2172 Janet | B215: 服装 | C215: 針織上衣 | D215: 针织长袖外套 | E215: 秋季 | F215: ATHLETICS | G215: FITNESS | H215: MALE | I215: 2025-07-22 | J215: 1 | K215: 1201 | L215: 2025-09-30 | M215: 斐樂大貨 | N215: 回流
A216: M2172 Janet | B216: 服装 | C216: 針織上衣 | D216: 针织长袖外套 | E216: 冬季 | F216: ATHLETICS | G216: FITNESS | H216: MALE | I216: 2025-09-04 | J216: 1 | K216: 1258 | L216: 2025-09-30 | M216: 斐樂大貨 | N216: 回流
A217: M2172 Janet | B217: 服装 | C217: 針織上衣 | D217: 针织马甲 | E217: 冬季 | F217: ATHLETICS | H217: FEMALE | I217: 2025-09-23 | J217: 1 | K217: 740 | L217: 2025-09-30 | M217: 斐樂大貨
A218: M2798 Ryan | B218: 服装 | C218: 針織上衣 | D218: 针织长袖外套 | E218: 秋季 | F218: LIFESTYLE | G218: BLUE | H218: MALE | I218: 2025-08-05 | J218: 1 | K218: 1940 | L218: 2025-09-30 | M218: 斐樂大貨
A219: M2172 Janet | B219: 服装 | C219: 針織上衣 | D219: 针织连帽外套 | E219: 冬季 | F219: LIFESTYLE | G219: WHITE | H219: FEMALE | I219: 2025-09-23 | J219: 1 | K219: 1200 | L219: 2025-09-30 | M219: 斐樂大貨 | N219: 回流
A220: M2801 Fanny | B220: 服装 | C220: 針織上衣 | D220: 针织连帽外套 | E220: 冬季 | F220: LIFESTYLE | G220: WHITE | H220: FEMALE | I220: 2025-09-23 | J220: 1 | K220: 1236 | L220: 2025-09-30 | M220: 斐樂大貨 | N220: 回流
A221: M2801 Fanny | B221: 服装 | C221: 針織上衣 | D221: 针织长袖外套 | E221: 冬季 | F221: LIFESTYLE | G221: HERITAGE | H221: FEMALE | I221: 2025-09-04 | J221: 1 | K221: 1480 | L221: 2025-09-30 | M221: 斐樂大貨
A222: M2172 Janet | B222: 服装 | C222: 針織上衣 | D222: 针织长袖外套 | E222: 冬季 | F222: LIFESTYLE | G222: HERITAGE | H222: FEMALE | I222: 2025-09-04 | J222: 1 | K222: 1258 | L222: 2025-09-30 | M222: 斐樂大貨
A223: M2172 Janet | B223: 配件 | C223: 包類 | D223: 背包 | E223: 冬季 | F223: ATHLETICS | G223: EXPLORE | H223: UNISEX | I223: 2025-09-23 | J223: 1 | K223: 290 | L223: 2025-09-30 | M223: 斐樂大貨
A224: M2172 Janet | B224: 配件 | C224: 包類 | D224: 挎包 | E224: 冬季 | F224: LIFESTYLE | G224: HERITAGE | H224: MALE | I224: 2025-09-04 | J224: 1 | K224: 578 | L224: 2025-09-30 | M224: 斐樂大貨 | N224: 回流
A225: M2798 Ryan | B225: 配件 | C225: 襪類 | D225: 中腰袜 | E225: 夏季 | F225: LIFESTYLE | G225: WHITE | H225: MALE | I225: 2025-03-06 | J225: 1 | K225: 70 | L225: 2025-09-30 | M225: 斐樂大貨
A226: M2801 Fanny | B226: 配件 | C226: 襪類 | D226: 低腰袜 | E226: 夏季 | F226: LIFESTYLE | G226: WHITE | H226: MALE | I226: 2025-03-06 | J226: 1 | K226: 56 | L226: 2025-09-30 | M226: 斐樂大貨 | N226: 回流
A227: M2798 Ryan | B227: 配件 | C227: 襪類 | D227: 中腰袜 | E227: 秋季 | F227: LIFESTYLE | G227: WHITE | H227: MALE | I227: 2025-06-03 | J227: 1 | K227: 60 | L227: 2025-09-30 | M227: 斐樂大貨
A228: M2798 Ryan | B228: 配件 | C228: 襪類 | D228: 低腰袜 | E228: 秋季 | F228: LIFESTYLE | G228: FILA ORIGINALE | H228: MALE | I228: 2025-06-03 | J228: 1 | K228: 60 | L228: 2025-09-30 | M228: 斐樂大貨
A229: M2798 Ryan | B229: 配件 | C229: 襪類 | D229: 低腰袜 | E229: 冬季 | F229: LIFESTYLE | G229: WHITE | H229: MALE | I229: 2025-09-04 | J229: 1 | K229: 60 | L229: 2025-09-30 | M229: 斐樂大貨
A230: M2798 Ryan | B230: 配件 | C230: 襪類 | D230: 中腰袜 | E230: 冬季 | F230: LIFESTYLE | G230: FILA ORIGINALE | H230: MALE | I230: 2025-09-04 | J230: 1 | K230: 70 | L230: 2025-09-30 | M230: 斐樂大貨
A231: M2798 Ryan | B231: 配件 | C231: 襪類 | D231: 浅口袜 | E231: 秋季 | F231: LIFESTYLE | G231: FILA ORIGINALE | H231: FEMALE | I231: 2025-06-03 | J231: 1 | K231: 60 | L231: 2025-09-30 | M231: 斐樂大貨
A232: M2172 Janet | B232: 广宣用品 | C232: 促销品 | D232: FILA车载保温杯（白） | E232: 常青 | H232: 不分 | I232: 2025-05-29 | J232: 3 | K232: 0 | L232: 2025-09-30 | M232: 斐樂大貨 | N232: 回流
A233: M2798 Ryan | B233: 广宣用品 | C233: 促销品 | D233: FILA车载保温杯（白） | E233: 常青 | H233: 不分 | I233: 2025-05-29 | J233: 1 | K233: 0 | L233: 2025-09-30 | M233: 斐樂大貨 | N233: 回流
A234: M2801 Fanny | B234: 广宣用品 | C234: 促销品 | D234: FILA车载保温杯（白） | E234: 常青 | H234: 不分 | I234: 2025-05-29 | J234: 2 | K234: 0 | L234: 2025-09-30 | M234: 斐樂大貨 | N234: 回流
A235: M1436 Khaki | B235: 广宣用品 | C235: 促销品 | D235: FILA新款拉杆箱（绿色） | E235: 常青 | H235: 不分 | I235: 2025-06-04 | J235: 1 | K235: 0 | L235: 2025-09-30 | M235: 斐樂大貨 | N235: 回流
A236: M2902 Carmen | B236: 广宣用品 | C236: 促销品 | D236: FILA新款拉杆箱（绿色） | E236: 常青 | H236: 不分 | I236: 2025-06-04 | J236: 1 | K236: 0 | L236: 2025-09-30 | M236: 斐樂大貨 | N236: 回流
A237: M1436 Khaki | B237: 其它 | C237: 其它 | D237: PLASTIC BAG | E237: 春季 | H237: UNISEX | J237: 1 | K237: 1 | L237: 2025-09-30 | M237: 通用
A238: M2172 Janet | B238: 其它 | C238: 其它 | D238: PLASTIC BAG | E238: 春季 | H238: UNISEX | J238: 1 | K238: 1 | L238: 2025-09-30 | M238: 通用 | N238: 回流
A239: M2798 Ryan | B239: 其它 | C239: 其它 | D239: PLASTIC BAG | E239: 春季 | H239: UNISEX | J239: 1 | K239: 1 | L239: 2025-09-30 | M239: 通用 | N239: 回流
A240: M2902 Carmen | B240: 其它 | C240: 其它 | D240: PLASTIC BAG | E240: 春季 | H240: UNISEX | J240: 1 | K240: 1 | L240: 2025-09-30 | M240: 通用 | N240: 回流
A241: M1436 Khaki | B241: 其它 | C241: 其它 | D241: PLASTIC BAG | E241: 春季 | H241: UNISEX | J241: 2 | K241: 2 | L241: 2025-09-30 | M241: 通用 | N241: 回流
A242: M2172 Janet | B242: 其它 | C242: 其它 | D242: PLASTIC BAG | E242: 春季 | H242: UNISEX | J242: 1 | K242: 1 | L242: 2025-09-30 | M242: 通用
A243: M2798 Ryan | B243: 其它 | C243: 其它 | D243: PLASTIC BAG | E243: 春季 | H243: UNISEX | J243: 1 | K243: 1 | L243: 2025-09-30 | M243: 通用
A244: M2902 Carmen | B244: 其它 | C244: 其它 | D244: PLASTIC BAG | E244: 春季 | H244: UNISEX | J244: 1 | K244: 1 | L244: 2025-09-30 | M244: 通用
... 651 more rows
